account_party,address,code,date,document_number,expense_code_name,expense_code_name_short,id,party_cell,party_cell_code,party_cell_geoobject,purpose,source_bank_account_number,source_bank_account_type,sum,target_legal_personality,target_legal_personality_code,target_type
Самопоміч,"Одеська область, Одеса, вулиця Канатна, 1",70,2019-12-28,IS/NA/980/1,Банківські послуги,Інші витрати,310201,Одеська міська організація,39923299,Одеська область,"Комісія банку за розрахункове обслуговування недіючого рахунка за 12.2019, згідно тарифів Банка. Без ПДВ.",29037010353673,current,127.58,"ПАТ ""Банк Восток""",26237202,юридична особа
Самопоміч,"Київ, вулиця Єреванська, 1",70,2019-12-28,TR.1170985,Банківські послуги,Інші витрати,309625,Центральний офіс,38558365,Україна,"Абонлата за розрахункове обслуговування по рахунку № 26006924866928.980 за перiод з 2019-12-01 по 2019-12-31 зг. договору № 2019/КД/291-0048 від 2019-06-18 , без ПДВ",26006924866928,current,60.00,"АБ ""Укргазбанк""",23697280,юридична особа
Самопоміч,"Київ, вулиця Турівська, 12",62,2019-12-27,382,Сплата ЄСВ,Податкові платежі,310192,Київська міська організація,39842314,Київ,201;;;ЄСВ ВIД ЗАРПЛАТИ ЗА грудень 2019Р.,26005056218695,current,334.93,ДПІ у Подільському районі ГУ ДФС у м. Києві,39467012,юридична особа
Самопоміч,"Київ, вулиця Межигірська, 25",61,2019-12-27,381,Військовий збір,Податкові платежі,310185,Київська міська організація,39842314,Київ,ВIЙСЬКОВИЙ ЗБIР ВIД ЗАРПЛАТИ ЗА грудень 2019Р.,26005056218695,current,25.68,УДКСУ у Подільському районі м. Києва,37975298,юридична особа
Самопоміч,"Київ, вулиця Межигірська, 25",63,2019-12-27,383,Податок на доходи,Податкові платежі,310184,Київська міська організація,39842314,Київ,ПДФО ВIД ЗАРПЛАТИ ЗА грудень 2019 Р.,26005056218695,current,348.13,УДКСУ у Подільському районі м. Києва,37975298,юридична особа
Самопоміч,"Київ, вулиця Михайла Грушевського, 1Д",70,2019-12-27,JCRO0M9E3L,Банківські послуги,Інші витрати,310171,Київська міська організація,39842314,Київ,Сплата комiсiї за касове обслуговуваннягрудень 2019,26005056218695,current,3.88,"ПАТ КБ ""Приватбанк""",14360570,юридична особа
Самопоміч,"Київ, вулиця Михайла Грушевського, 1Д",70,2019-12-27,CRO2VN464Y,Банківські послуги,Інші витрати,310170,Київська міська організація,39842314,Київ,"Комiсiя за виконання платежiв в нацiональнiй валютi, згiдно з вiдкритою офертою банку N б/н вiд 2017-10-19 та тарифiв банку, без ПДВ.",26005056218695,current,3.00,"ПАТ КБ ""Приватбанк""",14360570,юридична особа
Самопоміч,"Київ, вулиця Михайла Грушевського, 1Д",70,2019-12-27,CRO2VN45PY,Банківські послуги,Інші витрати,310169,Київська міська організація,39842314,Київ,"Комiсiя за виконання платежiв в нацiональнiй валютi, згiдно з вiдкритою офертою банку N б/н вiд 2017-10-19 та тарифiв банку, без ПДВ.",26005056218695,current,3.00,"ПАТ КБ ""Приватбанк""",14360570,юридична особа
Самопоміч,"Київ, вулиця Михайла Грушевського, 1Д",70,2019-12-27,CRO2VN460Y,Банківські послуги,Інші витрати,310168,Київська міська організація,39842314,Київ,"Комiсiя за виконання платежiв в нацiональнiй валютi, згiдно з вiдкритою офертою банку N б/н вiд 2017-10-19 та тарифiв банку, без ПДВ.",26005056218695,current,3.00,"ПАТ КБ ""Приватбанк""",14360570,юридична особа
Самопоміч,"Київ, вулиця Генерала Алмазова, 2",82,2019-12-27,384,"Гонорари, в тому числі за надані консультаційні послуги","Гонорари, в тому числі за надані консультаційні послуги",310139,Київська міська організація,39842314,Київ,"Оплата за консул.з питань комерц.дiяльн. та керування за перiод 2019-12-02-2019-12-26, зг. рах №12 вiд 2019-12-27. Без ПДВ.",26005056218695,current,11500.00,Казарінова Олена Вікторівна,,фізична особа
Самопоміч,Київ,84,2019-12-27,1,"Заробітна плата, премії","Заробітна плата, лікарняні, вагітності, відрядження, компенсації",310138,Київська міська організація,39842314,Київ,Зарплата за грудень 2019р.,26005056218695,current,1551.34,Зубер Світлана Олександрівна,,фізична особа
Самопоміч,"Київ, вулиця Єреванська, 1",70,2019-12-27,TR.1170953_985,Банківські послуги,Інші витрати,310116,Центральний офіс,38558365,Україна,"Плата за розрахункове обслуговування по рахунку № 26008924418040.980 з 2019-12-27 по 2019-12-27 згідно Договору № 2019/КД/291-0048 від 2019-06-18 р, без ПДВ",26008924418040,state,0.80,"АБ ""Укргазбанк""",23697280,юридична особа
Самопоміч,"Київ, вулиця Єреванська, 1",70,2019-12-27,TR.1170953_984,Банківські послуги,Інші витрати,310115,Центральний офіс,38558365,Україна,"Плата за розрахункове обслуговування по рахунку № 26008924418040.980 з 2019-12-27 по 2019-12-27 згідно Договору № 2019/КД/291-0048 від 2019-06-18 р, без ПДВ",26008924418040,state,0.80,"АБ ""Укргазбанк""",23697280,юридична особа
Самопоміч,"Київ, вулиця Єреванська, 1",70,2019-12-27,TR.1170953_983,Банківські послуги,Інші витрати,310114,Центральний офіс,38558365,Україна,"Плата за розрахункове обслуговування по рахунку № 26008924418040.980 з 2019-12-27 по 2019-12-27 згідно Договору № 2019/КД/291-0048 від 2019-06-18 р, без ПДВ",26008924418040,state,0.80,"АБ ""Укргазбанк""",23697280,юридична особа
Самопоміч,"Київ, вулиця Єреванська, 1",70,2019-12-27,TR.1170953_982,Банківські послуги,Інші витрати,310113,Центральний офіс,38558365,Україна,"Плата за розрахункове обслуговування по рахунку № 26008924418040.980 з 2019-12-27 по 2019-12-27 згідно Договору № 2019/КД/291-0048 від 2019-06-18 р, без ПДВ",26008924418040,state,0.80,"АБ ""Укргазбанк""",23697280,юридична особа
Самопоміч,"Київ, вулиця Єреванська, 1",70,2019-12-27,TR.1170953_981,Банківські послуги,Інші витрати,310112,Центральний офіс,38558365,Україна,"Плата за розрахункове обслуговування по рахунку № 26008924418040.980 з 2019-12-27 по 2019-12-27 згідно Договору № 2019/КД/291-0048 від 2019-06-18 р, без ПДВ",26008924418040,state,0.80,"АБ ""Укргазбанк""",23697280,юридична особа
Самопоміч,"Київ, вулиця Єреванська, 1",70,2019-12-27,TR.1170953_980,Банківські послуги,Інші витрати,310111,Центральний офіс,38558365,Україна,"Плата за розрахункове обслуговування по рахунку № 26008924418040.980 з 2019-12-27 по 2019-12-27 згідно Договору № 2019/КД/291-0048 від 2019-06-18 р, без ПДВ",26008924418040,state,0.80,"АБ ""Укргазбанк""",23697280,юридична особа
Самопоміч,"Київ, вулиця Єреванська, 1",70,2019-12-27,TR.1170953_979,Банківські послуги,Інші витрати,310110,Центральний офіс,38558365,Україна,"Плата за розрахункове обслуговування в після операційний час по рахунку № 26008924418040.980 з 2019-12-27 по 2019-12-27 згідно Договору № 2019/КД/291-0048 від 2019-06-18 р, без ПДВ",26008924418040,state,0.80,"АБ ""Укргазбанк""",23697280,юридична особа
Самопоміч,"Київ, вулиця Єреванська, 1",70,2019-12-27,TR.1170953_978,Банківські послуги,Інші витрати,310109,Центральний офіс,38558365,Україна,"Плата за надання інших довідок, повідомлень за запитом власника рахунку згідно договору № 2019/КД/291-0048 від 2019-06-18 р. (без ПДВ)",26008924418040,state,3000.00,"АБ ""Укргазбанк""",23697280,юридична особа
Самопоміч,"Київ, бульвар Тараса Шевченка, 18",76,2019-12-27,3306,Послуги зв’язку,Послуги зв’язку,310108,Центральний офіс,38558365,Україна,"Оплата за телекомунікаційні послуги за листопад 2019р.,зг.рах.-акт № 460000000001822019-11-95 від 30.11.19р.зг. договору №4600000000018295 в т.ч. ПДВ 36.98 грн.",26008924418040,state,221.90,"ПАТ ""Укртелеком""",21560766,юридична особа
Самопоміч,"Львівська область, Львів, вулиця Іларіона Свєнціцького, 1",76,2019-12-27,3305,Послуги зв’язку,Послуги зв’язку,310107,Центральний офіс,38558365,Україна,"Оплата за телекомунікаційні послуги за листопад 2019 р по дог. №166851, згідно акту наданих послуг від 2019-11-30 р. в т.ч. ПДВ 75.50 грн.",26008924418040,state,453.00,"ДП ""НТЦ ""Українська академічна і дослідницька мережа"" Інституту фізики конденсованих систем НАН України""",30275262,юридична особа
Самопоміч,"Київ, вулиця Лугова, 12",72,2019-12-27,3308,"Придбання, ремонт офісної техніки та програмного забезпечення (Бухгалтерські програми, Ліга.закон, домени)",Придбання офісної техніки та програмного забезпечення,310106,Центральний офіс,38558365,Україна,"Оплата за посл. у сфері інформатизації щодо розміщення користувацької інформ. за листопад 19р.,зг.акту над.посл. №6003957 від 30.11.19р. в т.ч. ПДВ 4228.71 грн.",26008924418040,state,25372.25,ТОВ 'Софтпром Солюшинз',38282502,юридична особа
Самопоміч,"Київська обл., Вишгородський район, Вишгород, вулиця Шолуденка, 11",79,2019-12-27,3309,"Оренда будинків і приміщень та експлуатаційні витрати (прибирання, страхування орендованих будинків, охорона, сигналізація, ремонт, вивіз сміття, тощо)",Оренда нерухомості,310105,Центральний офіс,38558365,Україна,"Оплата за оренду приміщення і комунальні послуги за серпень 2019р., згідно акту наданих послуг № 153 від 2019-10-01р. в т.ч. ПДВ 586.00 грн.",26008924418040,state,3516.00,"ТОВ ""Зооцентр Турбота""",38423990,юридична особа
Самопоміч,"Львівська область, Львів, вулиця Академіка Андрія Сахарова, 42",79,2019-12-27,3312,"Оренда будинків і приміщень та експлуатаційні витрати (прибирання, страхування орендованих будинків, охорона, сигналізація, ремонт, вивіз сміття, тощо)",Оренда нерухомості,310104,Центральний офіс,38558365,Україна,"Оплата за оренду нежитлового приміщення у грудні 2019р., згідно рахунку-фактури № СФ-0000960 від 2019-12-27р. в т.ч. ПДВ 200.28 грн.",26008924418040,state,1201.69,"ПАТ ""Промбудприлад""",31588943,юридична особа
Самопоміч,"Полтавська область, Полтава, вулиця Європейська, 57",75,2019-12-27,3310,Поштові послуги та поширення друкованих матеріалів,Поштові послуги та поширення друкованих матеріалів,310103,Центральний офіс,38558365,Україна,"Оплата за організацію перевезення відправлень, згідно акту наданих послуг № НП-003123431 від 2019-12-20 р. в т.ч. ПДВ 406.77 грн.",26008924418040,state,2440.61,"ТОВ ""Нова пошта""",31316718,юридична особа
Самопоміч,"Львівська область, Львів, вулиця Шевченка, 1",79,2019-12-27,3307,"Оренда будинків і приміщень та експлуатаційні витрати (прибирання, страхування орендованих будинків, охорона, сигналізація, ремонт, вивіз сміття, тощо)",Оренда нерухомості,310102,Центральний офіс,38558365,Україна,"Оплата за електричну енергію за листопад 2019 р., згідно акту наданих послуг від 2019-11-30 р. в т.ч. ПДВ 210.41 грн.",26008924418040,state,1262.45,"ТОВ ""Львівенергозбут""",42092130,юридична особа
Самопоміч,"Київ, вулиця Єреванська, 1",70,2019-12-26,TR.1170953_977,Банківські послуги,Інші витрати,310101,Центральний офіс,38558365,Україна,"Плата за розрахункове обслуговування по рахунку № 26008924418040.980 з 2019-12-26 по 2019-12-26 згідно Договору № 2019/КД/291-0048 від 2019-06-18 р, без ПДВ",26008924418040,state,0.80,"АБ ""Укргазбанк""",23697280,юридична особа
Самопоміч,"Київ, вулиця Єреванська, 1",70,2019-12-26,TR.1170953_976,Банківські послуги,Інші витрати,310100,Центральний офіс,38558365,Україна,"Плата за розрахункове обслуговування по рахунку № 26008924418040.980 з 2019-12-26 по 2019-12-26 згідно Договору № 2019/КД/291-0048 від 2019-06-18 р, без ПДВ",26008924418040,state,0.80,"АБ ""Укргазбанк""",23697280,юридична особа
Самопоміч,"Київ, вулиця Єреванська, 1",70,2019-12-26,TR.1170953_975,Банківські послуги,Інші витрати,310099,Центральний офіс,38558365,Україна,"Плата за розрахункове обслуговування по рахунку № 26008924418040.980 з 2019-12-26 по 2019-12-26 згідно Договору № 2019/КД/291-0048 від 2019-06-18 р, без ПДВ",26008924418040,state,0.80,"АБ ""Укргазбанк""",23697280,юридична особа
Самопоміч,"Київ, вулиця Єреванська, 1",70,2019-12-26,TR.1170953_974,Банківські послуги,Інші витрати,310098,Центральний офіс,38558365,Україна,"Плата за розрахункове обслуговування по рахунку № 26008924418040.980 з 2019-12-26 по 2019-12-26 згідно Договору № 2019/КД/291-0048 від 2019-06-18 р, без ПДВ",26008924418040,state,0.80,"АБ ""Укргазбанк""",23697280,юридична особа
Самопоміч,"Київ, вулиця Єреванська, 1",70,2019-12-26,TR.1170953_973,Банківські послуги,Інші витрати,310097,Центральний офіс,38558365,Україна,"Плата за розрахункове обслуговування по рахунку № 26008924418040.980 з 2019-12-26 по 2019-12-26 згідно Договору № 2019/КД/291-0048 від 2019-06-18 р, без ПДВ",26008924418040,state,0.80,"АБ ""Укргазбанк""",23697280,юридична особа
Самопоміч,"Київ, вулиця Єреванська, 1",70,2019-12-26,TR.1170953_972,Банківські послуги,Інші витрати,310096,Центральний офіс,38558365,Україна,"Плата за розрахункове обслуговування по рахунку № 26008924418040.980 з 2019-12-26 по 2019-12-26 згідно Договору № 2019/КД/291-0048 від 2019-06-18 р, без ПДВ",26008924418040,state,0.80,"АБ ""Укргазбанк""",23697280,юридична особа
Самопоміч,"Київ, вулиця Єреванська, 1",70,2019-12-26,TR.1170953_971,Банківські послуги,Інші витрати,310095,Центральний офіс,38558365,Україна,"Плата за розрахункове обслуговування по рахунку № 26008924418040.980 з 2019-12-26 по 2019-12-26 згідно Договору № 2019/КД/291-0048 від 2019-06-18 р, без ПДВ",26008924418040,state,0.80,"АБ ""Укргазбанк""",23697280,юридична особа
Самопоміч,"Київ, вулиця Єреванська, 1",70,2019-12-26,TR.1170953_970,Банківські послуги,Інші витрати,310094,Центральний офіс,38558365,Україна,"Плата за розрахункове обслуговування по рахунку № 26008924418040.980 з 2019-12-26 по 2019-12-26 згідно Договору № 2019/КД/291-0048 від 2019-06-18 р, без ПДВ",26008924418040,state,0.80,"АБ ""Укргазбанк""",23697280,юридична особа
Самопоміч,"Київ, Повітрофлотський проспект, 72",76,2019-12-26,3300,Послуги зв’язку,Послуги зв’язку,310093,Центральний офіс,38558365,Україна,"Оплата за телекомунікаційні послуги за листопад 2019р., згідно акту наданих послуг від 2019-11-30р. договір № 8566-Т від 31.01.17 р. в т.ч. ПДВ 31.92 грн.",26008924418040,state,191.51,"ТОВ ""Укрком""",22891175,юридична особа
Самопоміч,"Львівська область, Львів, вулиця Джохара Дудаєва, 19, 1",72,2019-12-26,3302,"Придбання, ремонт офісної техніки та програмного забезпечення (Бухгалтерські програми, Ліга.закон, домени)",Придбання офісної техніки та програмного забезпечення,310092,Центральний офіс,38558365,Україна,"Оплата за програмну продукцію з технічною підтримкою, згідно акту №2872 від 2019-11-30р.",26008924418040,state,11067.98,ТОВ ʼМАКЛАУДʼ,40231242,юридична особа
Самопоміч,"Полтавська область, Полтава, вулиця Європейська, 57",75,2019-12-26,3301,Поштові послуги та поширення друкованих матеріалів,Поштові послуги та поширення друкованих матеріалів,310091,Центральний офіс,38558365,Україна,"Оплата за організацію перевезення відправлень, згідно акту наданих послуг № НП-003082431 від 2019-12-10 р. в т.ч. ПДВ 552.39 грн.",26008924418040,state,3314.35,"ТОВ ""Нова пошта""",31316718,юридична особа
Самопоміч,"Київ, вулиця Богдана Хмельницького, 52-Б",81,2019-12-26,3299,Аудит,"Гонорари, в тому числі за надані консультаційні послуги",310090,Центральний офіс,38558365,Україна,"Оплата за І-й етап аудиторських послуг з виконання зовнішнього незалежного аудиту, згідно рахунку на оплату №453 від 12.12.19р. в т.ч. ПДВ 45095.00 грн.",26008924418040,state,270570.00,"ТОВ ""Аудиторська фірма “ПКФ Аудит-фінанси”",34619277,юридична особа
Самопоміч,"Полтавська область, Полтава, вулиця Кагамлика, 84",79,2019-12-26,3304,"Оренда будинків і приміщень та експлуатаційні витрати (прибирання, страхування орендованих будинків, охорона, сигналізація, ремонт, вивіз сміття, тощо)",Оренда нерухомості,310089,Центральний офіс,38558365,Україна,"Оплата за вивезення та захоронення твердих побутових відходів, згідно акту наданих послуг №57179 від 2019-10-01р. в т.ч. ПДВ 2.29 грн.",26008924418040,state,13.76,Полтавське автотранспортне КП 1628,03351823,юридична особа
Самопоміч,"Київ, вулиця Єреванська, 1",70,2019-12-26,3295,Банківські послуги,Інші витрати,310088,Центральний офіс,38558365,Україна,Банківська комісія за виплату зарплати і розрахункових працівників за грудень 2019 р.,26008924418040,state,578.51,"АБ ""Укргазбанк""",23697280,юридична особа
Самопоміч,"Львівська область, Львів, вулиця Конотопська, 6",63,2019-12-26,3298,Податок на доходи,Податкові платежі,310087,Центральний офіс,38558365,Україна,*;101;38558365; сплата ПДФО із зарплати та розрахункових працівників за грудень 2019 р.;;;11010100,26008924418040,state,25871.35,УДКСУ у Франківському районі м. Львова,37965138,юридична особа
Самопоміч,"Львівська область, Львів, вулиця Стрийська, 35",62,2019-12-26,3297,Сплата ЄСВ,Податкові платежі,310086,Центральний офіс,38558365,Україна,*;101;38558365; сплата єдиного соціального внеску 22% із зарплати та розрахункових працівників за грудень 2019р .,26008924418040,state,31620.53,ГОЛОВНЕ УПРАВЛІННЯ ДФС У ЛЬВІВСЬКІЙ ОБЛАСТІ,43143039,юридична особа
Самопоміч,"Львівська область, Львів, вулиця Конотопська, 6",61,2019-12-26,3294,Військовий збір,Податкові платежі,310085,Центральний офіс,38558365,Україна,*;101;38558365; сплата військового збору із зарплати і розрахункових працівників за грудень 2019 р.;;; 11011000,26008924418040,state,2155.96,УДКСУ у Франківському районі м. Львова,37965138,юридична особа
Самопоміч,"Івано-Франківська область, Коломийський район, Коломия",84,2019-12-26,243,"Заробітна плата, премії","Заробітна плата, лікарняні, вагітності, відрядження, компенсації",309748,Центральний офіс,38558365,Україна,Зарплата,26008924418040,state,23263.10,Федюк Любомир Мирославович,,фізична особа
Самопоміч,"Львівська область, Львів",84,2019-12-26,243,"Заробітна плата, премії","Заробітна плата, лікарняні, вагітності, відрядження, компенсації",309747,Центральний офіс,38558365,Україна,Зарплата,26008924418040,state,2270.39,Васів Наталія Юріївна,,фізична особа
Самопоміч,"Закарпатська область, Мукачево",84,2019-12-26,243,"Заробітна плата, премії","Заробітна плата, лікарняні, вагітності, відрядження, компенсації",309746,Центральний офіс,38558365,Україна,Зарплата,26008924418040,state,20206.01,Ковач Ольга Володимирівна,,фізична особа
Самопоміч,"Львівська область, Львів",84,2019-12-26,243,"Заробітна плата, премії","Заробітна плата, лікарняні, вагітності, відрядження, компенсації",309745,Центральний офіс,38558365,Україна,Зарплата,26008924418040,state,10402.75,Івасько Лілія Михайлівна,,фізична особа
Самопоміч,"Львівська область, Львів",84,2019-12-26,243,"Заробітна плата, премії","Заробітна плата, лікарняні, вагітності, відрядження, компенсації",309744,Центральний офіс,38558365,Україна,Зарплата,26008924418040,state,5502.74,Кокорузь Марія Михайлівна,,фізична особа
Самопоміч,Київ,84,2019-12-26,243,"Заробітна плата, премії","Заробітна плата, лікарняні, вагітності, відрядження, компенсації",309743,Центральний офіс,38558365,Україна,Зарплата,26008924418040,state,18959.26,Баланович Станіслав Васильович,,фізична особа
Самопоміч,"Львівська область, Львів",84,2019-12-26,243,"Заробітна плата, премії","Заробітна плата, лікарняні, вагітності, відрядження, компенсації",309742,Центральний офіс,38558365,Україна,Зарплата,26008924418040,state,17372.19,Камінська Ірина Степанівна,,фізична особа
Самопоміч,"Львівська область, Львів",84,2019-12-26,243,"Заробітна плата, премії","Заробітна плата, лікарняні, вагітності, відрядження, компенсації",309741,Центральний офіс,38558365,Україна,Зарплата,26008924418040,state,8909.81,Дунаєвська Ольга Євстахіївна,,фізична особа
Самопоміч,"Львівська область, Львів",84,2019-12-26,243,"Заробітна плата, премії","Заробітна плата, лікарняні, вагітності, відрядження, компенсації",309740,Центральний офіс,38558365,Україна,Зарплата,26008924418040,state,8816.09,Склярук Олександр Олександрович,,фізична особа
Самопоміч,"Львівська область, Львів, вулиця Івана Франка, 150-152",82,2019-12-26,3303,"Гонорари, в тому числі за надані консультаційні послуги","Гонорари, в тому числі за надані консультаційні послуги",309672,Центральний офіс,38558365,Україна,"Оплата за написання текстів для газети, згідно акту наданих послуг від 2019-12-11р.",26008924418040,state,3000.00,Струк Марія Ярославівна,,фізична особа
Самопоміч,"Сумська область, Конотоп, вулиця Братів Лузанів, 48",79,2019-12-26,259,"Оренда будинків і приміщень та експлуатаційні витрати (прибирання, страхування орендованих будинків, охорона, сигналізація, ремонт, вивіз сміття, тощо)",Оренда нерухомості,309624,Центральний офіс,38558365,Україна,"Оплата за вiдшкодування послуг теплопостачання з 21.11.19 по 20.12.19, згiдно рахунку N94 вiд 2019-12-20р. в т.ч. ПДВ 483,45 грн.",26001053732835,current,2900.85,Конотопське УДКСУв Сумській обл.,37784555,юридична особа
Самопоміч,"Київ, вулиця Михайла Грушевського, 1Д",70,2019-12-26,CQO2VI9ZLY,Банківські послуги,Інші витрати,309623,Центральний офіс,38558365,Україна,"Комiсiя за виконання платежiв в нацiональнiй валютi, згiдно з вiдкритою офертою банку N б/н вiд 2018-04-23 та тарифiв банку, без ПДВ.",26001053732835,current,3.00,"ПАТ КБ ""Приватбанк""",14360570,юридична особа
Самопоміч,"Київ, вулиця Братиславська, 14Б",79,2019-12-24,12,"Оренда будинків і приміщень та експлуатаційні витрати (прибирання, страхування орендованих будинків, охорона, сигналізація, ремонт, вивіз сміття, тощо)",Оренда нерухомості,310125,Барська районна організація,39919455,Вінницька область,"Оплата за оренду нежитлового приміщення згідно договору від 01/04-2019 від 2019-04-01р., без ПДВ.",26000171311565,current,1020.00,"ТОВ ""Вектор БМ""",42258575,юридична особа
Самопоміч,"Київ, вулиця Єреванська, 1",70,2019-12-24,TR.1170953_969,Банківські послуги,Інші витрати,310084,Центральний офіс,38558365,Україна,"Плата за розрахункове обслуговування в після операційний час по рахунку № 26008924418040.980 з 2019-12-24 по 2019-12-24 згідно Договору № 2019/КД/291-0048 від 2019-06-18 р, без ПДВ",26008924418040,state,0.80,"АБ ""Укргазбанк""",23697280,юридична особа
Самопоміч,"Київ, вулиця Єреванська, 1",70,2019-12-24,TR.1170953_968,Банківські послуги,Інші витрати,310083,Центральний офіс,38558365,Україна,Плата за видача послідуючих захищених носіїв USB -токенів згідно Договору № 2019/КД/291-0048 від 2019-06-18 р. (в т. ч. ПДВ 94.00 ) ʼОбʼєднання ʼСамопомічʼ 38558365,26008924418040,state,564.00,"АБ ""Укргазбанк""",23697280,юридична особа
Самопоміч,"Київ, вулиця Смоленська, 31/33",76,2019-12-24,3293,Послуги зв’язку,Послуги зв’язку,310082,Центральний офіс,38558365,Україна,"Оплата за телекомунікаційні послуги за листопад 2019 р., згідно акту наданих послуг від 30.11.19р. в т.ч. ПДВ 16.00 грн.",26008924418040,state,96.00,"ПрАТ ""Датагруп""",31720260,юридична особа
Самопоміч,"Київ, вулиця Єреванська, 1",70,2019-12-19,TR.1170953_967,Банківські послуги,Інші витрати,310081,Центральний офіс,38558365,Україна,"Плата за розрахункове обслуговування по рахунку № 26008924418040.980 з 2019-12-19 по 2019-12-19 згідно Договору № 2019/КД/291-0048 від 2019-06-18 р, без ПДВ",26008924418040,state,0.80,"АБ ""Укргазбанк""",23697280,юридична особа
Самопоміч,"Київ, вулиця Кирилівська, 102",43,2019-12-19,3292,Інші витрати,Інші витрати,310080,Центральний офіс,38558365,Україна,"Оплата за обробку даних та перевидачу сертифiкату відкритого ключа та інше, згідно рахунку №ЛСЛ38558365 від 2019-12-19р. в т.ч. ПДВ 2,00 грн.",26008924418040,state,184.00,"ТОВ ""Центр сертифікації ключів ""Україна""",36865753,юридична особа
Самопоміч,"Київ, вулиця Єреванська, 1",70,2019-12-18,TR.1170985,Банківські послуги,Інші витрати,309622,Центральний офіс,38558365,Україна,"Плата за розрахункове обслуговування по рахунку № 26006924866928.980 з 2019-12-18 по 2019-12-18 згідно Договору № 2019/КД/291-0048 від 2019-06-18 р, без ПДВ",26006924866928,current,0.80,"АБ ""Укргазбанк""",23697280,юридична особа
Самопоміч,"Львівська область, Львів",66,2019-12-18,3290,Повернення внесків приватних внесків (донорам),Повернення приватних внесків (донорам),309557,Центральний офіс,38558365,Україна,"Повернення коштів отриманих 29.08.19р., у звʼязку з порушеннням п. 8 ст. 15 ЗУ про Політичні партії в Україні (податковий борг).",26001053732835,current,384000.00,Кіт-Садова Катерина Орестівна,,фізична особа
Самопоміч,"Львівська область, Львів",66,2019-12-18,3291,Повернення внесків приватних внесків (донорам),Повернення приватних внесків (донорам),309556,Центральний офіс,38558365,Україна,"Повернення коштів отриманих 20.08.19р., у звʼязку з порушеннням п. 8 ст. 15 ЗУ про Політичні партії в Україні (податковий борг).",26001053732835,current,500000.00,Лаврик Наталя Орестівна,,фізична особа
Самопоміч,"Київ, вулиця Турівська, 12",62,2019-12-17,382,Сплата ЄСВ,Податкові платежі,310191,Київська міська організація,39842314,Київ,201;;;ЄСВ ВIД ЗАРПЛАТИ ЗА грудень 2019Р.,26005056218695,current,180.00,ДПІ у Подільському районі ГУ ДФС у м. Києві,39467012,юридична особа
Самопоміч,"Київ, вулиця Межигірська, 25",63,2019-12-17,381,Податок на доходи,Податкові платежі,310183,Київська міська організація,39842314,Київ,ПДФО ВIД ЗАРПЛАТИ ЗА грудень 2019 Р.,26005056218695,current,200.00,УДКСУ у Подільському районі м. Києва,37975298,юридична особа
Самопоміч,"Київ, вулиця Межигірська, 25",61,2019-12-17,383,Військовий збір,Податкові платежі,310182,Київська міська організація,39842314,Київ,ВIЙСЬКОВИЙ ЗБIР ВIД ЗАРПЛАТИ ЗА грудень 2019Р.,26005056218695,current,20.00,УДКСУ у Подільському районі м. Києва,37975298,юридична особа
Самопоміч,"Київ, вулиця Михайла Грушевського, 1Д",70,2019-12-17,CHO2U9OA2Y,Банківські послуги,Інші витрати,310167,Київська міська організація,39842314,Київ,"Комiсiя за виконання платежiв в нацiональнiй валютi, згiдно з вiдкритою офертою банку N б/н вiд 2017-10-19 та тарифiв банку, без ПДВ.",26005056218695,current,3.00,"ПАТ КБ ""Приватбанк""",14360570,юридична особа
Самопоміч,"Київ, вулиця Михайла Грушевського, 1Д",70,2019-12-17,CHO2U9OE4Y,Банківські послуги,Інші витрати,310166,Київська міська організація,39842314,Київ,"Комiсiя за виконання платежiв в нацiональнiй валютi, згiдно з вiдкритою офертою банку N б/н вiд 2017-10-19 та тарифiв банку, без ПДВ.",26005056218695,current,3.00,"ПАТ КБ ""Приватбанк""",14360570,юридична особа
Самопоміч,"Київ, вулиця Михайла Грушевського, 1Д",70,2019-12-17,380,Банківські послуги,Інші витрати,310165,Київська міська організація,39842314,Київ,Комiсiя РКО вiд зарплати за грудень 2019р.,26005056218695,current,2.25,"ПАТ КБ ""Приватбанк""",14360570,юридична особа
Самопоміч,"Київ, вулиця Михайла Грушевського, 1Д",70,2019-12-17,CHO2U9OC0Y,Банківські послуги,Інші витрати,310164,Київська міська організація,39842314,Київ,"Комiсiя за виконання платежiв в нацiональнiй валютi, згiдно з вiдкритою офертою банку N б/н вiд 2017-10-19 та тарифiв банку, без ПДВ.",26005056218695,current,3.00,"ПАТ КБ ""Приватбанк""",14360570,юридична особа
Самопоміч,Київ,84,2019-12-17,379,"Заробітна плата, премії","Заробітна плата, лікарняні, вагітності, відрядження, компенсації",310137,Київська міська організація,39842314,Київ,Зарплата за грудень 2019р.,26005056218695,current,900.00,Зубер Світлана Олександрівна,,фізична особа
Самопоміч,"Київ, вулиця Єреванська, 1",70,2019-12-17,TR.1170985_86,Банківські послуги,Інші витрати,309621,Центральний офіс,38558365,Україна,"Плата за розрахункове обслуговування по рахунку № 26006924866928.980 з 2019-12-17 по 2019-12-17 згідно Договору № 2019/КД/291-0048 від 2019-06-18 р, без ПДВ",26006924866928,current,0.80,"АБ ""Укргазбанк""",23697280,юридична особа
Самопоміч,"Київ, вулиця Єреванська, 1",70,2019-12-17,TR.1170985,Банківські послуги,Інші витрати,309620,Центральний офіс,38558365,Україна,"Плата за розрахункове обслуговування по рахунку № 26006924866928.980 з 2019-12-17 по 2019-12-17 згідно Договору № 2019/КД/291-0048 від 2019-06-18 р, без ПДВ",26006924866928,current,0.80,"АБ ""Укргазбанк""",23697280,юридична особа
Самопоміч,"Сумська область, Конотоп, вулиця Братів Лузанів, 48",79,2019-12-17,3288,"Оренда будинків і приміщень та експлуатаційні витрати (прибирання, страхування орендованих будинків, охорона, сигналізація, ремонт, вивіз сміття, тощо)",Оренда нерухомості,309617,Центральний офіс,38558365,Україна,"Оплата за оренду нежитлового приміщення за листопад 2019р., згідно рахунку №97 від 2019-12-10 року",26006924866928,current,2037.40,Конотопське УДКСУв Сумській обл.,37784555,юридична особа
Самопоміч,"Сумська область, Конотоп, вулиця Братів Лузанів, 48",79,2019-12-17,3289,"Оренда будинків і приміщень та експлуатаційні витрати (прибирання, страхування орендованих будинків, охорона, сигналізація, ремонт, вивіз сміття, тощо)",Оренда нерухомості,309616,Центральний офіс,38558365,Україна,"Оплата за компенсацію податку на землю за листопад 2019р., згідно рахунку №98 від 2019-12-04 року",26006924866928,current,150.47,Конотопське УДКСУв Сумській обл.,37784555,юридична особа
Самопоміч,"Київ, вулиця Михайла Грушевського, 1Д",70,2019-12-17,CHO2U5UANY,Банківські послуги,Інші витрати,309615,Центральний офіс,38558365,Україна,"Комiсiя за виконання платежiв в нацiональнiй валютi, згiдно з вiдкритою офертою банку N б/н вiд 2018-04-23 та тарифiв банку, без ПДВ.",26001053732835,current,3.00,"ПАТ КБ ""Приватбанк""",14360570,юридична особа
Самопоміч,"Київ, вулиця Михайла Грушевського, 1Д",70,2019-12-13,J1213FUJ6U,Банківські послуги,Інші витрати,310203,Тернопільська обласна організація,39915272,Тернопільська область,Комісія за обслуговування рахунку,26001055118006,current,10.70,"ПАТ КБ ""Приватбанк""",14360570,юридична особа
Самопоміч,"Тернопільська область, Тернопіль",58,2019-12-13,J121303WY7,"Виготовлення друкованих матеріалів (плакатів, листівок, буклетів та інших агітаційних матеріалів)",Друкована агітація,310202,Тернопільська обласна організація,39915272,Тернопільська область,Видача за банер,26001055118006,current,1338.00,Пастух Анастасія Тарасівна,,фізична особа
Самопоміч,"Київ, вулиця Єреванська, 1",70,2019-12-13,TR.1170953_966,Банківські послуги,Інші витрати,310079,Центральний офіс,38558365,Україна,"Плата за розрахункове обслуговування по рахунку № 26008924418040.980 з 2019-12-13 по 2019-12-13 згідно Договору № 2019/КД/291-0048 від 2019-06-18 р, без ПДВ",26008924418040,state,0.80,"АБ ""Укргазбанк""",23697280,юридична особа
Самопоміч,"Київ, вулиця Єреванська, 1",70,2019-12-13,TR.1170953_965,Банківські послуги,Інші витрати,310078,Центральний офіс,38558365,Україна,"Плата за розрахункове обслуговування по рахунку № 26008924418040.980 з 2019-12-13 по 2019-12-13 згідно Договору № 2019/КД/291-0048 від 2019-06-18 р, без ПДВ",26008924418040,state,0.80,"АБ ""Укргазбанк""",23697280,юридична особа
Самопоміч,"Київ, вулиця Єреванська, 1",70,2019-12-13,TR.1170953_964,Банківські послуги,Інші витрати,310077,Центральний офіс,38558365,Україна,"Плата за розрахункове обслуговування по рахунку № 26008924418040.980 з 2019-12-13 по 2019-12-13 згідно Договору № 2019/КД/291-0048 від 2019-06-18 р, без ПДВ",26008924418040,state,0.80,"АБ ""Укргазбанк""",23697280,юридична особа
Самопоміч,"Київ, вулиця Єреванська, 1",70,2019-12-13,3284,Банківські послуги,Інші витрати,310076,Центральний офіс,38558365,Україна,Банківська комісія за виплату авансу працівників за грудень 2019 р.,26008924418040,state,268.07,"АБ ""Укргазбанк""",23697280,юридична особа
Самопоміч,"Львівська область, Львів, вулиця Конотопська, 6",63,2019-12-13,3285,Податок на доходи,Податкові платежі,310075,Центральний офіс,38558365,Україна,*;101;38558365; сплата ПДФО із авансу працівників за грудень 2019 р.;;;11010100,26008924418040,state,11987.99,УДКСУ у Франківському районі м. Львова,37965138,юридична особа
Самопоміч,"Львівська область, Львів, вулиця Стрийська, 35",62,2019-12-13,3283,Сплата ЄСВ,Податкові платежі,310074,Центральний офіс,38558365,Україна,*;101;38558365; сплата єдиного соціального внеску 22% із авансу працівників за грудень 2019р .,26008924418040,state,14651.99,ГОЛОВНЕ УПРАВЛІННЯ ДФС У ЛЬВІВСЬКІЙ ОБЛАСТІ,43143039,юридична особа
Самопоміч,"Львівська область, Львів, вулиця Конотопська, 6",61,2019-12-13,3287,Військовий збір,Податкові платежі,310073,Центральний офіс,38558365,Україна,*;101;38558365; сплата військового збору із авансу працівників за грудень 2019 р.;;; 11011000,26008924418040,state,998.99,УДКСУ у Франківському районі м. Львова,37965138,юридична особа
Самопоміч,"Львівська область, Львів",84,2019-12-13,241,"Заробітна плата, премії","Заробітна плата, лікарняні, вагітності, відрядження, компенсації",309739,Центральний офіс,38558365,Україна,Зарплата,26008924418040,state,1907.08,Васів Наталія Юріївна,,фізична особа
Самопоміч,"Львівська область, Львів",84,2019-12-13,241,"Заробітна плата, премії","Заробітна плата, лікарняні, вагітності, відрядження, компенсації",309738,Центральний офіс,38558365,Україна,Зарплата,26008924418040,state,5240.17,Склярук Олександр Олександрович,,фізична особа
Самопоміч,"Львівська область, Львів",84,2019-12-13,241,"Заробітна плата, премії","Заробітна плата, лікарняні, вагітності, відрядження, компенсації",309737,Центральний офіс,38558365,Україна,Зарплата,26008924418040,state,5002.51,Кокорузь Марія Михайлівна,,фізична особа
Самопоміч,"Львівська область, Львів",84,2019-12-13,241,"Заробітна плата, премії","Заробітна плата, лікарняні, вагітності, відрядження, компенсації",309736,Центральний офіс,38558365,Україна,Зарплата,26008924418040,state,9525.83,Камінська Ірина Степанівна,,фізична особа
Самопоміч,"Івано-Франківська область, Коломийський район, Коломия",84,2019-12-13,241,"Заробітна плата, премії","Заробітна плата, лікарняні, вагітності, відрядження, компенсації",309735,Центральний офіс,38558365,Україна,Зарплата,26008924418040,state,7858.33,Федюк Любомир Мирославович,,фізична особа
Самопоміч,"Закарпатська область, Мукачево",84,2019-12-13,241,"Заробітна плата, премії","Заробітна плата, лікарняні, вагітності, відрядження, компенсації",309734,Центральний офіс,38558365,Україна,Зарплата,26008924418040,state,7149.17,Ковач Ольга Володимирівна,,фізична особа
Самопоміч,"Львівська область, Львів",84,2019-12-13,241,"Заробітна плата, премії","Заробітна плата, лікарняні, вагітності, відрядження, компенсації",309733,Центральний офіс,38558365,Україна,Зарплата,26008924418040,state,4049.92,Дунаєвська Ольга Євстахіївна,,фізична особа
Самопоміч,"Львівська область, Львів",84,2019-12-13,241,"Заробітна плата, премії","Заробітна плата, лікарняні, вагітності, відрядження, компенсації",309732,Центральний офіс,38558365,Україна,Зарплата,26008924418040,state,4772.50,Івасько Лілія Михайлівна,,фізична особа
Самопоміч,Київ,84,2019-12-13,241,"Заробітна плата, премії","Заробітна плата, лікарняні, вагітності, відрядження, компенсації",309731,Центральний офіс,38558365,Україна,Зарплата,26008924418040,state,8107.50,Баланович Станіслав Васильович,,фізична особа
Самопоміч,"Київ, вулиця Єреванська, 1",70,2019-12-11,TR.1170953_963,Банківські послуги,Інші витрати,310072,Центральний офіс,38558365,Україна,"Плата за розрахункове обслуговування по рахунку № 26008924418040.980 з 2019-12-11 по 2019-12-11 згідно Договору № 2019/КД/291-0048 від 2019-06-18 р, без ПДВ",26008924418040,state,0.80,"АБ ""Укргазбанк""",23697280,юридична особа
Самопоміч,"Київ, вулиця Єреванська, 1",70,2019-12-11,TR.1170953_962,Банківські послуги,Інші витрати,310071,Центральний офіс,38558365,Україна,"Плата за розрахункове обслуговування по рахунку № 26008924418040.980 з 2019-12-11 по 2019-12-11 згідно Договору № 2019/КД/291-0048 від 2019-06-18 р, без ПДВ",26008924418040,state,0.80,"АБ ""Укргазбанк""",23697280,юридична особа
Самопоміч,"Київ, вулиця Єреванська, 1",70,2019-12-11,TR.1170953_961,Банківські послуги,Інші витрати,310070,Центральний офіс,38558365,Україна,"Плата за розрахункове обслуговування по рахунку № 26008924418040.980 з 2019-12-11 по 2019-12-11 згідно Договору № 2019/КД/291-0048 від 2019-06-18 р, без ПДВ",26008924418040,state,0.80,"АБ ""Укргазбанк""",23697280,юридична особа
Самопоміч,"Київ, вулиця Єреванська, 1",70,2019-12-11,TR.1170953_960,Банківські послуги,Інші витрати,310069,Центральний офіс,38558365,Україна,"Плата за розрахункове обслуговування по рахунку № 26008924418040.980 з 2019-12-11 по 2019-12-11 згідно Договору № 2019/КД/291-0048 від 2019-06-18 р, без ПДВ",26008924418040,state,0.80,"АБ ""Укргазбанк""",23697280,юридична особа
Самопоміч,"Київ, вулиця Єреванська, 1",70,2019-12-11,TR.1170953_959,Банківські послуги,Інші витрати,310068,Центральний офіс,38558365,Україна,"Плата за розрахункове обслуговування по рахунку № 26008924418040.980 з 2019-12-11 по 2019-12-11 згідно Договору № 2019/КД/291-0048 від 2019-06-18 р, без ПДВ",26008924418040,state,0.80,"АБ ""Укргазбанк""",23697280,юридична особа
Самопоміч,"Київ, вулиця Єреванська, 1",70,2019-12-11,TR.1170953_958,Банківські послуги,Інші витрати,310067,Центральний офіс,38558365,Україна,"Плата за розрахункове обслуговування по рахунку № 26008924418040.980 з 2019-12-11 по 2019-12-11 згідно Договору № 2019/КД/291-0048 від 2019-06-18 р, без ПДВ",26008924418040,state,0.80,"АБ ""Укргазбанк""",23697280,юридична особа
Самопоміч,"Київ, вулиця Єреванська, 1",70,2019-12-11,TR.1170953_957,Банківські послуги,Інші витрати,310066,Центральний офіс,38558365,Україна,"Плата за розрахункове обслуговування по рахунку № 26008924418040.980 з 2019-12-11 по 2019-12-11 згідно Договору № 2019/КД/291-0048 від 2019-06-18 р, без ПДВ",26008924418040,state,0.80,"АБ ""Укргазбанк""",23697280,юридична особа
Самопоміч,"Львівська область, Львів, вулиця Іларіона Свєнціцького, 1",76,2019-12-11,3276,Послуги зв’язку,Послуги зв’язку,310065,Центральний офіс,38558365,Україна,"Оплата за телекомунікаційні послуги за листопад 2019 р по дог. №168754, згідно акту наданих послуг від 2019-11-30 р. в т.ч. ПДВ 105.50 грн.",26008924418040,state,633.00,"ДП ""НТЦ ""Українська академічна і дослідницька мережа"" Інституту фізики конденсованих систем НАН України""",30275262,юридична особа
Самопоміч,"Львівська область, Львів, площа Ринок, 1",78,2019-12-11,3275,Оренда обладнання та технічних засобів,Оренда обладнання та технічних засобів,310064,Центральний офіс,38558365,Україна,"Оплата за оренду терміналу та сканера, згідно рахунку на оплату № 7065 від 2019-12-09 р. в т.ч. ПДВ 286.44 грн.",26008924418040,state,1718.62,"ЛКП ""Міський центр інформаційних технологій""",23948670,юридична особа
Самопоміч,"Полтавська область, Полтава, вулиця Європейська, 57",75,2019-12-11,3279,Поштові послуги та поширення друкованих матеріалів,Поштові послуги та поширення друкованих матеріалів,310063,Центральний офіс,38558365,Україна,"Оплата за організацію перевезення відправлень, згідно акту наданих послуг № НП-003047894 від 2019-11-30 р. в т.ч. ПДВ 81.47 грн.",26008924418040,state,488.80,"ТОВ ""Нова пошта""",31316718,юридична особа
Самопоміч,"Київ, вулиця Дегтярівська, 53",76,2019-12-11,3281,Послуги зв’язку,Послуги зв’язку,310062,Центральний офіс,38558365,Україна,"Оплата за надані послуги мобільного звʼязку за листопад 2019 р., згідно рахунку № 39-23912430 від 2019-11-30 р. в т.ч. ПДВ 283,92 грн.",26008924418040,state,1810.00,"ПрАТ ""Київстар""",21673832,юридична особа
Самопоміч,"Київ, вулиця Дегтярівська, 53",76,2019-12-11,3282,Послуги зв’язку,Послуги зв’язку,310061,Центральний офіс,38558365,Україна,"Оплата за надані послуги мобільного звʼязку за жовтень 2019 р., згідно рахунку № 27-21422419 від 2019-10-31 р. в т.ч. ПДВ 91.31 грн.",26008924418040,state,547.84,"ПрАТ ""Київстар""",21673832,юридична особа
Самопоміч,"Львівська область, Львів, вулиця Широка, 81",74,2019-12-11,3277,"Придбання канцтоварів, паперу, інших предметів і матеріалів, а також госп товари",Придбання канцтоварів та госп. товарів,310060,Центральний офіс,38558365,Україна,"Оплата за коробки архівні, згідно накладної №58830 від 2019-12-03 р. в т.ч. ПДВ 102.55 грн.",26008924418040,state,615.30,ТОВ 'Ромус-Поліграф',25551379,юридична особа
Самопоміч,"Львівська область, Львів, вулиця Гіпсова, 54",72,2019-12-11,3278,"Придбання, ремонт офісної техніки та програмного забезпечення (Бухгалтерські програми, Ліга.закон, домени)",Придбання офісної техніки та програмного забезпечення,309671,Центральний офіс,38558365,Україна,"Оплата за оренду принтера НР та покопійне обслуговування, згідно акту наданих послуг №2882 від 2019-12-04р.",26008924418040,state,1359.00,Кіхтан Андрій Володимирович,,фізична особа
Самопоміч,"Тернопільська область, Тернопіль, проспект Злуки, 5, 91",58,2019-12-11,3280,"Виготовлення друкованих матеріалів (плакатів, листівок, буклетів та інших агітаційних матеріалів)",Друкована агітація,309670,Центральний офіс,38558365,Україна,"Оплата за друк газети ʼОбʼєднання ʼСАМОПОМІЧʼ 12,834 тис. шт., згідно акту надання послуг №84 від 2019-12-09р.",26008924418040,state,8085.42,Луцишин-Кобилянська Марія Володимирівна,,фізична особа
Самопоміч,"Київ, вулиця Єреванська, 1",70,2019-12-05,TR.1170985,Банківські послуги,Інші витрати,309614,Центральний офіс,38558365,Україна,"Плата за розрахункове обслуговування в після операційний час по рахунку № 26006924866928.980 з 2019-12-05 по 2019-12-05 згідно Договору № 2019/КД/291-0048 від 2019-06-18 р, без ПДВ",26006924866928,current,0.80,"АБ ""Укргазбанк""",23697280,юридична особа
Самопоміч,"Київ, вулиця Братська, 10",82,2019-12-05,3274,"Гонорари, в тому числі за надані консультаційні послуги","Гонорари, в тому числі за надані консультаційні послуги",309558,Центральний офіс,38558365,Україна,"Оплата нотаріальні дії, згідно рахунку №100 від 2019-12-04р.",26006924866928,current,4000.00,Пелих Юлія Валентинівна,,фізична особа
Самопоміч,Київ,84,2019-12-04,378,"Заробітна плата, премії","Заробітна плата, лікарняні, вагітності, відрядження, компенсації",310136,Київська міська організація,39842314,Київ,Зарплата за листопад 2019р.. податки сплаченi в повному обсязi 2019-12-02.,26005056218695,current,763.93,Зубер Світлана Олександрівна,,фізична особа
Самопоміч,"Київ, вулиця Єреванська, 1",70,2019-12-04,TR.1170953_956,Банківські послуги,Інші витрати,310059,Центральний офіс,38558365,Україна,"Плата за розрахункове обслуговування по рахунку № 26008924418040.980 з 2019-12-04 по 2019-12-04 згідно Договору № 2019/КД/291-0048 від 2019-06-18 р, без ПДВ",26008924418040,state,0.80,"АБ ""Укргазбанк""",23697280,юридична особа
Самопоміч,"Тернопільська область, Тернопіль, вулиця Текстильна, 28",75,2019-12-04,3273,Поштові послуги та поширення друкованих матеріалів,Поштові послуги та поширення друкованих матеріалів,310058,Центральний офіс,38558365,Україна,"Відшкод. витрат приймання передплати і доставки періодичних друк.видань за вересень, зг. акту від 2019-09-30р. до договору доручення №0103/17 від 2017-03-01р.",26008924418040,state,96669.02,"ТОВ ""ПОДІЛЛЯ-ТЕР""",36829762,юридична особа
Самопоміч,"Київ, вулиця Турівська, 12",62,2019-12-03,376,Сплата ЄСВ,Податкові платежі,310190,Київська міська організація,39842314,Київ,201;;;ЄСВ ВIД ЗАРПЛАТИ ЗА ЖОВТЕНЬ 2019Р.,26005056218695,current,204.74,ДПІ у Подільському районі ГУ ДФС у м. Києві,39467012,юридична особа
Самопоміч,"Київ, вулиця Турівська, 12",62,2019-12-03,380,Сплата ЄСВ,Податкові платежі,310189,Київська міська організація,39842314,Київ,201;;;ЄСВ ВIД ЗАРПЛАТИ ЗА ЛИСТОПАД 2019Р.,26005056218695,current,155.00,ДПІ у Подільському районі ГУ ДФС у м. Києві,39467012,юридична особа
Самопоміч,"Київ, вулиця Межигірська, 25",63,2019-12-03,377,Податок на доходи,Податкові платежі,310181,Київська міська організація,39842314,Київ,ПДФО ВIД ЗАРПЛАТИ ЗА ЛИСТОПАД 2019 Р.,26005056218695,current,172.06,УДКСУ у Подільському районі м. Києва,37975298,юридична особа
Самопоміч,"Київ, вулиця Межигірська, 25",61,2019-12-03,375,Військовий збір,Податкові платежі,310180,Київська міська організація,39842314,Київ,ВIЙСЬКОВИЙ ЗБIР ВIД ЗАРПЛАТИ ЗА ЛИСТОПАД 2019Р.,26005056218695,current,11.01,УДКСУ у Подільському районі м. Києва,37975298,юридична особа
Самопоміч,"Київ, вулиця Михайла Грушевського, 1Д",70,2019-12-03,C2O2S90K8Y,Банківські послуги,Інші витрати,310163,Київська міська організація,39842314,Київ,"Комiсiя за виконання платежiв в нацiональнiй валютi, згiдно з вiдкритою офертою банку N б/н вiд 2017-10-19 та тарифiв банку, без ПДВ.",26005056218695,current,3.00,"ПАТ КБ ""Приватбанк""",14360570,юридична особа
Самопоміч,"Київ, вулиця Михайла Грушевського, 1Д",70,2019-12-03,C2O2S90K4Y,Банківські послуги,Інші витрати,310162,Київська міська організація,39842314,Київ,"Комiсiя за виконання платежiв в нацiональнiй валютi, згiдно з вiдкритою офертою банку N б/н вiд 2017-10-19 та тарифiв банку, без ПДВ.",26005056218695,current,3.00,"ПАТ КБ ""Приватбанк""",14360570,юридична особа
Самопоміч,"Київ, вулиця Михайла Грушевського, 1Д",70,2019-12-03,C2O2S90K2Y,Банківські послуги,Інші витрати,310161,Київська міська організація,39842314,Київ,"Комiсiя за виконання платежiв в нацiональнiй валютi, згiдно з вiдкритою офертою банку N б/н вiд 2017-10-19 та тарифiв банку, без ПДВ.",26005056218695,current,3.00,"ПАТ КБ ""Приватбанк""",14360570,юридична особа
Самопоміч,"Київ, вулиця Михайла Грушевського, 1Д",70,2019-12-03,C2O2S9267Y,Банківські послуги,Інші витрати,310160,Київська міська організація,39842314,Київ,"Комiсiя за виконання платежiв в нацiональнiй валютi, згiдно з вiдкритою офертою банку N б/н вiд 2017-10-19 та тарифiв банку, без ПДВ.",26005056218695,current,3.00,"ПАТ КБ ""Приватбанк""",14360570,юридична особа
Самопоміч,"Київ, вулиця Михайла Грушевського, 1Д",70,2019-12-02,AN9bt04p6p,Банківські послуги,Інші витрати,310198,Мелітопольська міська організація,39964031,Запорізька область,"Комісія за обслуговування недіючого рахунку №26008055723683 за грудень 2019 р., згідно тарифів банку, без ПДВ",26008055723683,current,100.00,"ПАТ КБ ""Приватбанк""",14360570,юридична особа
Самопоміч,"Київ, вулиця Єреванська, 1",70,2019-12-02,TR.9166500.104497.8669,Банківські послуги,Інші витрати,310195,Львівська обласна організація,38582948,Львівська область,"Списання комісії за розрахунково-касове обслуговування неактивних рахунків по рахунку № 26002924856783.980 за листопад 2019р. Зг. Дог. №2018/КД/291-0198 від2018-11-27, без ПДВ",26002924856783,current,100.00,"АБ ""Укргазбанк""",23697280,юридична особа
Самопоміч,"Київ, вулиця Михайла Грушевського, 1Д",70,2019-12-02,379,Банківські послуги,Інші витрати,310159,Київська міська організація,39842314,Київ,Комiсiя РКО вiд зарплати за листопад 2019р.,26005056218695,current,1.91,"ПАТ КБ ""Приватбанк""",14360570,юридична особа
Самопоміч,"Київ, вулиця Михайла Грушевського, 1Д",70,2019-12-02,AS9BTLR89P,Банківські послуги,Інші витрати,310158,Київська міська організація,39842314,Київ,"Комiсiя за обслуговування рахунку за листопад 2019 р. згiдно договору банкiвського рахунку вiд 2017-10-19, без ПДВ.",26005056218695,current,100.00,"ПАТ КБ ""Приватбанк""",14360570,юридична особа
Самопоміч,"Київ, вулиця Михайла Грушевського, 1Д",70,2019-12-02,AN9bt00wyp,Банківські послуги,Інші витрати,310128,Вінницька міська організація,39916686,Вінницька область,"Комісія за обслуговування недіючого рахунку № 26001055325259 за листопад 2019 р., згідно тарифів банку, без ПДВ",26001055325259,current,100.00,"ПАТ КБ ""Приватбанк""",14360570,юридична особа
Самопоміч,"Вінницька область, Вінниця, вулиця Соборна, 71",70,2019-12-02,6153625003,Банківські послуги,Інші витрати,310124,Барська районна організація,39919455,Вінницька область,Списання щомісячної плати за обслуговування ТП Моя громада за за листопад 2019 р.,26000171311565,current,49.00,"Вінницька обласна філія АТ ""Ощадбанк""",09302607,юридична особа
Самопоміч,"Вінницька область, Вінниця, вулиця Соборна, 71",70,2019-12-02,6146382403,Банківські послуги,Інші витрати,310123,Барська районна організація,39919455,Вінницька область,Коміс.за розрах.обсл. рахунку 26000171311565 з 01-11-2019 по 30-11-2019. Без НДС,26000171311565,current,100.00,"Вінницька обласна філія АТ ""Ощадбанк""",09302607,юридична особа
Самопоміч,"Київ, вулиця Єреванська, 1",70,2019-12-02,TR.1170953_955,Банківські послуги,Інші витрати,310057,Центральний офіс,38558365,Україна,"Плата за розрахункове обслуговування по рахунку № 26008924418040.980 з 2019-12-02 по 2019-12-02 згідно Договору № 2019/КД/291-0048 від 2019-06-18 р, без ПДВ",26008924418040,state,0.80,"АБ ""Укргазбанк""",23697280,юридична особа
Самопоміч,"Київ, вулиця Єреванська, 1",70,2019-12-02,TR.1170953_954,Банківські послуги,Інші витрати,310056,Центральний офіс,38558365,Україна,"Плата за розрахункове обслуговування по рахунку № 26008924418040.980 з 2019-12-02 по 2019-12-02 згідно Договору № 2019/КД/291-0048 від 2019-06-18 р, без ПДВ",26008924418040,state,0.80,"АБ ""Укргазбанк""",23697280,юридична особа
Самопоміч,"Київ, вулиця Єреванська, 1",70,2019-12-02,TR.1170953_953,Банківські послуги,Інші витрати,310055,Центральний офіс,38558365,Україна,"Плата за розрахункове обслуговування по рахунку № 26008924418040.980 з 2019-12-02 по 2019-12-02 згідно Договору № 2019/КД/291-0048 від 2019-06-18 р, без ПДВ",26008924418040,state,0.80,"АБ ""Укргазбанк""",23697280,юридична особа
Самопоміч,"Київ, вулиця Єреванська, 1",70,2019-12-02,TR.1170953_952,Банківські послуги,Інші витрати,310054,Центральний офіс,38558365,Україна,"Плата за розрахункове обслуговування по рахунку № 26008924418040.980 з 2019-12-02 по 2019-12-02 згідно Договору № 2019/КД/291-0048 від 2019-06-18 р, без ПДВ",26008924418040,state,0.80,"АБ ""Укргазбанк""",23697280,юридична особа
Самопоміч,"Київ, вулиця Єреванська, 1",70,2019-12-02,TR.1170953_951,Банківські послуги,Інші витрати,310053,Центральний офіс,38558365,Україна,"Плата за розрахункове обслуговування по рахунку № 26008924418040.980 з 2019-12-02 по 2019-12-02 згідно Договору № 2019/КД/291-0048 від 2019-06-18 р, без ПДВ",26008924418040,state,0.80,"АБ ""Укргазбанк""",23697280,юридична особа
Самопоміч,"Київ, вулиця Єреванська, 1",70,2019-12-02,TR.1170953_950,Банківські послуги,Інші витрати,310052,Центральний офіс,38558365,Україна,"Плата за розрахункове обслуговування по рахунку № 26008924418040.980 з 2019-12-02 по 2019-12-02 згідно Договору № 2019/КД/291-0048 від 2019-06-18 р, без ПДВ",26008924418040,state,0.80,"АБ ""Укргазбанк""",23697280,юридична особа
Самопоміч,"Київ, вулиця Єреванська, 1",70,2019-12-02,TR.1170953_949,Банківські послуги,Інші витрати,310051,Центральний офіс,38558365,Україна,"Плата за розрахункове обслуговування по рахунку № 26008924418040.980 з 2019-12-02 по 2019-12-02 згідно Договору № 2019/КД/291-0048 від 2019-06-18 р, без ПДВ",26008924418040,state,0.80,"АБ ""Укргазбанк""",23697280,юридична особа
Самопоміч,"Київ, Повітрофлотський проспект, 72",76,2019-12-02,3271,Послуги зв’язку,Послуги зв’язку,310050,Центральний офіс,38558365,Україна,"Оплата за телекомунікаційні послуги за жовтень 2019р., згідно акту наданих послуг від 2019-10-31р. договір № 8566-Т від 31.01.17 р. в т.ч. ПДВ 31.92 грн.",26008924418040,state,191.51,"ТОВ ""Укрком""",22891175,юридична особа
Самопоміч,"Львівська область, Львів, вулиця Академіка Андрія Сахарова, 42",79,2019-12-02,3268,"Оренда будинків і приміщень та експлуатаційні витрати (прибирання, страхування орендованих будинків, охорона, сигналізація, ремонт, вивіз сміття, тощо)",Оренда нерухомості,310049,Центральний офіс,38558365,Україна,"Оплата за оренду нежитлового приміщення у листопаді 2019р., згідно акту виконаних робіт від 2019-11-30 р. в т.ч. ПДВ 367.50 грн.",26008924418040,state,2205.00,"ПАТ ""Промбудприлад""",31588943,юридична особа
Самопоміч,"Полтавська область, Полтава, вулиця Європейська, 57",75,2019-12-02,3270,Поштові послуги та поширення друкованих матеріалів,Поштові послуги та поширення друкованих матеріалів,310048,Центральний офіс,38558365,Україна,"Оплата за організацію перевезення відправлень, згідно акту наданих послуг № НП-003003747 від 2019-11-20 р. в т.ч. ПДВ 147.42 грн.",26008924418040,state,884.50,"ТОВ ""Нова пошта""",31316718,юридична особа
Самопоміч,"Київ, вулиця Іоанна Павла II, 13",82,2019-12-02,3272,"Гонорари, в тому числі за надані консультаційні послуги","Гонорари, в тому числі за надані консультаційні послуги",309669,Центральний офіс,38558365,Україна,"Оплата за послуги з проведення консультування, згідно акту наданих послуг від 2019-11-19 р.",26008924418040,state,40000.00,Казарінова Олена Вікторівна,,фізична особа
Самопоміч,"Київ, вулиця Михайла Драгоманова, 31, 88",69,2019-12-02,3266,Організація заходів та інші організаційні послуги,Організація заходів та інші організаційні послуги,309668,Центральний офіс,38558365,Україна,"Оплата за організацію заходу, згідно акту наданих послуг №218 від 2019-11-15р.",26008924418040,state,2748.33,Букало Олександра Олегівна,,фізична особа
Самопоміч,"Тернопільська область, Тернопіль, проспект Злуки, 5, 91",58,2019-12-02,3267,"Виготовлення друкованих матеріалів (плакатів, листівок, буклетів та інших агітаційних матеріалів)",Друкована агітація,309667,Центральний офіс,38558365,Україна,"Оплата за друк газети ʼОбʼєднання ʼСАМОПОМІЧʼ 17,912 тис. шт., згідно акту надання послуг №77 від 2019-11-19р.",26008924418040,state,9493.36,Луцишин-Кобилянська Марія Володимирівна,,фізична особа
Самопоміч,"Київська обл., Києво-Святошинський район, Петрушки, вулиця Миру",53,2019-12-02,3269,Витрати на розміщення зовнішньої реклами,Зовнішня реклама,309666,Центральний офіс,38558365,Україна,"Оплата за виготовлення та монтаж банерів, згідно рахунку-фактури №10 від 2019-10-24року",26008924418040,state,14368.42,Нечипорук Володимир Ігорович,,фізична особа
Самопоміч,"Київ, вулиця Михайла Грушевського, 1Д",70,2019-12-02,AS9btlddip,Банківські послуги,Інші витрати,309613,Центральний офіс,38558365,Україна,"Комісія за обслуговування рахунку за листопад 2019 р. згідно договору банківського рахунку від 2018-04-23, без ПДВ.",26006924866928,current,100.00,"ПАТ КБ ""Приватбанк""",14360570,юридична особа
Самопоміч,"Київ, вулиця Михайла Грушевського, 1Д",70,2019-12-02,C2O2S4QK2Y,Банківські послуги,Інші витрати,309612,Центральний офіс,38558365,Україна,"Комiсiя за виконання платежiв в нацiональнiй валютi, згiдно з вiдкритою офертою банку N б/н вiд 2018-04-23 та тарифiв банку, без ПДВ.",26001053732835,current,3.00,"ПАТ КБ ""Приватбанк""",14360570,юридична особа
Самопоміч,"Київ, вулиця Михайла Грушевського, 1Д",70,2019-12-02,C2O2S4QUKY,Банківські послуги,Інші витрати,309611,Центральний офіс,38558365,Україна,"Комiсiя за виконання платежiв в нацiональнiй валютi, згiдно з вiдкритою офертою банку N б/н вiд 2018-04-23 та тарифiв банку, без ПДВ.",26006924866928,current,3.00,"ПАТ КБ ""Приватбанк""",14360570,юридична особа
Самопоміч,"Дніпропетровська область, Дніпровський район, Підгородне, Центральна вулиця, 46",59,2019-12-02,258,Грошова застава,Грошова застава,309610,Центральний офіс,38558365,Україна,Грошова застава місцевої організації Політичної партії ʼОбʼєднання ʼСамопомічʼ за кандидата на посаду міського голови,26001053732835,current,3286.00,Підгородненська міська виборча комісія,43354552,юридична особа
Самопоміч,"Дніпропетровська область, Дніпровський район, Підгородне, Центральна вулиця, 46",59,2019-12-02,257,Грошова застава,Грошова застава,309609,Центральний офіс,38558365,Україна,Грошова застава за кандидатів у депутати місцевої організації Політичної партії ʼОбʼєднання Самопомічʼ,26001053732835,current,3286.00,Підгородненська міська виборча комісія,43354552,юридична особа
Самопоміч,"Київ, вулиця Єреванська, 1",70,2019-11-29,TR.1170953_948,Банківські послуги,Інші витрати,310047,Центральний офіс,38558365,Україна,"Плата за розрахункове обслуговування по рахунку № 26008924418040.980 за перiод з 2019-11-01 по 2019-11-30 зг. договору № 2019/КД/291-0048 від 2019-06-18 , без ПДВ",26008924418040,state,60.00,"АБ ""Укргазбанк""",23697280,юридична особа
Самопоміч,"Київ, вулиця Єреванська, 1",70,2019-11-29,TR.1170953_947,Банківські послуги,Інші витрати,310046,Центральний офіс,38558365,Україна,"Плата за розрахункове обслуговування по рахунку № 26008924418040.980 з 2019-11-29 по 2019-11-29 згідно Договору № 2019/КД/291-0048 від 2019-06-18 р, без ПДВ",26008924418040,state,0.80,"АБ ""Укргазбанк""",23697280,юридична особа
Самопоміч,"Київ, вулиця Єреванська, 1",70,2019-11-29,TR.1170953_946,Банківські послуги,Інші витрати,310045,Центральний офіс,38558365,Україна,"Плата за розрахункове обслуговування по рахунку № 26008924418040.980 з 2019-11-29 по 2019-11-29 згідно Договору № 2019/КД/291-0048 від 2019-06-18 р, без ПДВ",26008924418040,state,0.80,"АБ ""Укргазбанк""",23697280,юридична особа
Самопоміч,"Київ, вулиця Єреванська, 1",70,2019-11-29,TR.1170953_945,Банківські послуги,Інші витрати,310044,Центральний офіс,38558365,Україна,"Плата за розрахункове обслуговування по рахунку № 26008924418040.980 з 2019-11-29 по 2019-11-29 згідно Договору № 2019/КД/291-0048 від 2019-06-18 р, без ПДВ",26008924418040,state,0.80,"АБ ""Укргазбанк""",23697280,юридична особа
Самопоміч,"Київ, вулиця Єреванська, 1",70,2019-11-29,TR.1170953_944,Банківські послуги,Інші витрати,310043,Центральний офіс,38558365,Україна,"Плата за розрахункове обслуговування по рахунку № 26008924418040.980 з 2019-11-29 по 2019-11-29 згідно Договору № 2019/КД/291-0048 від 2019-06-18 р, без ПДВ",26008924418040,state,0.80,"АБ ""Укргазбанк""",23697280,юридична особа
Самопоміч,"Київ, вулиця Єреванська, 1",70,2019-11-29,TR.1170953_943,Банківські послуги,Інші витрати,310042,Центральний офіс,38558365,Україна,"Плата за розрахункове обслуговування по рахунку № 26008924418040.980 з 2019-11-29 по 2019-11-29 згідно Договору № 2019/КД/291-0048 від 2019-06-18 р, без ПДВ",26008924418040,state,0.80,"АБ ""Укргазбанк""",23697280,юридична особа
Самопоміч,"Київ, вулиця Єреванська, 1",70,2019-11-29,TR.1170953_942,Банківські послуги,Інші витрати,310041,Центральний офіс,38558365,Україна,"Плата за розрахункове обслуговування по рахунку № 26008924418040.980 з 2019-11-29 по 2019-11-29 згідно Договору № 2019/КД/291-0048 від 2019-06-18 р, без ПДВ",26008924418040,state,0.80,"АБ ""Укргазбанк""",23697280,юридична особа
Самопоміч,"Київ, вулиця Єреванська, 1",70,2019-11-29,TR.1170953_941,Банківські послуги,Інші витрати,310040,Центральний офіс,38558365,Україна,"Плата за розрахункове обслуговування по рахунку № 26008924418040.980 з 2019-11-29 по 2019-11-29 згідно Договору № 2019/КД/291-0048 від 2019-06-18 р, без ПДВ",26008924418040,state,0.80,"АБ ""Укргазбанк""",23697280,юридична особа
Самопоміч,"Київ, вулиця Єреванська, 1",70,2019-11-29,3263,Банківські послуги,Інші витрати,310039,Центральний офіс,38558365,Україна,Банківська комісія за виплату відпускних працівників за грудень 2019 р.,26008924418040,state,18.16,"АБ ""Укргазбанк""",23697280,юридична особа
Самопоміч,"Київ, вулиця Єреванська, 1",70,2019-11-29,3258,Банківські послуги,Інші витрати,310038,Центральний офіс,38558365,Україна,Банківська комісія за виплату зарплати і розрахункових працівників за листопад 2019 р.,26008924418040,state,314.75,"АБ ""Укргазбанк""",23697280,юридична особа
Самопоміч,"Львівська область, Львів, вулиця Конотопська, 6",63,2019-11-29,3256,Податок на доходи,Податкові платежі,310037,Центральний офіс,38558365,Україна,*;101;38558365; сплата ПДФО із зарплати та розрахункових працівників за листопад 2019 р.;;;11010100,26008924418040,state,14075.99,УДКСУ у Франківському районі м. Львова,37965138,юридична особа
Самопоміч,"Львівська область, Львів, вулиця Конотопська, 6",63,2019-11-29,3261,Податок на доходи,Податкові платежі,310036,Центральний офіс,38558365,Україна,*;101;38558365; сплата ПДФО із відпускних працівників за грудень 2019 р.;;;11010100,26008924418040,state,812.30,УДКСУ у Франківському районі м. Львова,37965138,юридична особа
Самопоміч,"Львівська область, Львів, вулиця Стрийська, 35",62,2019-11-29,3260,Сплата ЄСВ,Податкові платежі,310035,Центральний офіс,38558365,Україна,*;101;38558365; сплата єдиного соціального внеску 22% із відпускних працівників за грудень 2019р .,26008924418040,state,992.81,ГОЛОВНЕ УПРАВЛІННЯ ДФС У ЛЬВІВСЬКІЙ ОБЛАСТІ,43143039,юридична особа
Самопоміч,"Львівська область, Львів, вулиця Стрийська, 35",62,2019-11-29,3255,Сплата ЄСВ,Податкові платежі,310034,Центральний офіс,38558365,Україна,*;101;38558365; сплата єдиного соціального внеску 22% із зарплати та розрахункових працівників за листопад 2019р .,26008924418040,state,17203.99,ГОЛОВНЕ УПРАВЛІННЯ ДФС У ЛЬВІВСЬКІЙ ОБЛАСТІ,43143039,юридична особа
Самопоміч,"Львівська область, Львів, вулиця Конотопська, 6",61,2019-11-29,3262,Військовий збір,Податкові платежі,310033,Центральний офіс,38558365,Україна,*;101;38558365; сплата військового збору із відпускних працівників за грудень 2019 р.;;; 11011000,26008924418040,state,67.69,УДКСУ у Франківському районі м. Львова,37965138,юридична особа
Самопоміч,"Львівська область, Львів, вулиця Конотопська, 6",61,2019-11-29,3257,Військовий збір,Податкові платежі,310032,Центральний офіс,38558365,Україна,*;101;38558365; сплата військового збору із зарплати і розрахункових працівників за листопад 2019 р.;;; 11011000,26008924418040,state,1173.00,УДКСУ у Франківському районі м. Львова,37965138,юридична особа
Самопоміч,"Львівська область, Львів",84,2019-11-29,239,"Заробітна плата, премії","Заробітна плата, лікарняні, вагітності, відрядження, компенсації",309730,Центральний офіс,38558365,Україна,Зарплата,26008924418040,state,5271.73,Івасько Лілія Михайлівна,,фізична особа
Самопоміч,"Львівська область, Львів",84,2019-11-29,239,"Заробітна плата, премії","Заробітна плата, лікарняні, вагітності, відрядження, компенсації",309729,Центральний офіс,38558365,Україна,Зарплата,26008924418040,state,5002.51,Кокорузь Марія Михайлівна,,фізична особа
Самопоміч,"Івано-Франківська область, Коломийський район, Коломия",84,2019-11-29,239,"Заробітна плата, премії","Заробітна плата, лікарняні, вагітності, відрядження, компенсації",309728,Центральний офіс,38558365,Україна,Зарплата,26008924418040,state,8031.20,Федюк Любомир Мирославович,,фізична особа
Самопоміч,"Львівська область, Львів",84,2019-11-29,239,"Заробітна плата, премії","Заробітна плата, лікарняні, вагітності, відрядження, компенсації",309727,Центральний офіс,38558365,Україна,Зарплата,26008924418040,state,4224.95,Блавацька Ілона Олегівна,,фізична особа
Самопоміч,"Львівська область, Львів",84,2019-11-29,239,"Заробітна плата, премії","Заробітна плата, лікарняні, вагітності, відрядження, компенсації",309726,Центральний офіс,38558365,Україна,Зарплата,26008924418040,state,2071.87,Васів Наталія Юріївна,,фізична особа
Самопоміч,"Львівська область, Львів",84,2019-11-29,239,"Заробітна плата, премії","Заробітна плата, лікарняні, вагітності, відрядження, компенсації",309725,Центральний офіс,38558365,Україна,Зарплата,26008924418040,state,9525.83,Камінська Ірина Степанівна,,фізична особа
Самопоміч,"Львівська область, Львів",84,2019-11-29,239,"Заробітна плата, премії","Заробітна плата, лікарняні, вагітності, відрядження, компенсації",309724,Центральний офіс,38558365,Україна,Зарплата,26008924418040,state,8099.83,Дунаєвська Ольга Євстахіївна,,фізична особа
Самопоміч,Київ,84,2019-11-29,239,"Заробітна плата, премії","Заробітна плата, лікарняні, вагітності, відрядження, компенсації",309723,Центральний офіс,38558365,Україна,Зарплата,26008924418040,state,8210.90,Баланович Станіслав Васильович,,фізична особа
Самопоміч,"Львівська область, Львів",84,2019-11-29,239,"Заробітна плата, премії","Заробітна плата, лікарняні, вагітності, відрядження, компенсації",309722,Центральний офіс,38558365,Україна,Зарплата,26008924418040,state,5240.17,Склярук Олександр Олександрович,,фізична особа
Самопоміч,"Закарпатська область, Мукачево",84,2019-11-29,239,"Заробітна плата, премії","Заробітна плата, лікарняні, вагітності, відрядження, компенсації",309721,Центральний офіс,38558365,Україна,Зарплата,26008924418040,state,7271.95,Ковач Ольга Володимирівна,,фізична особа
Самопоміч,"Львівська область, Львів",84,2019-11-29,240,"Заробітна плата, премії","Заробітна плата, лікарняні, вагітності, відрядження, компенсації",309720,Центральний офіс,38558365,Україна,Зарплата,26008924418040,state,3632.79,Дунаєвська Ольга Євстахіївна,,фізична особа
Самопоміч,"Львівська область, Львів, вулиця Івана Франка, 150-152",82,2019-11-29,3265,"Гонорари, в тому числі за надані консультаційні послуги","Гонорари, в тому числі за надані консультаційні послуги",309665,Центральний офіс,38558365,Україна,"Оплата за написання текстів для газети, та інше, згідно акту наданих послуг від 2019-11-18р.",26008924418040,state,4620.00,Струк Марія Ярославівна,,фізична особа
Самопоміч,"Київ, вулиця Єреванська, 1",70,2019-11-29,TR.1170985,Банківські послуги,Інші витрати,309608,Центральний офіс,38558365,Україна,"Плата за розрахункове обслуговування по рахунку № 26006924866928.980 за перiод з 2019-11-01 по 2019-11-30 зг. договору № 2019/КД/291-0048 від 2019-06-18 , без ПДВ",26006924866928,current,60.00,"АБ ""Укргазбанк""",23697280,юридична особа
Самопоміч,"Київ, вулиця Єреванська, 1",70,2019-11-29,TR.1170985_85,Банківські послуги,Інші витрати,309607,Центральний офіс,38558365,Україна,"Плата за розрахункове обслуговування по рахунку № 26006924866928.980 з 2019-11-29 по 2019-11-29 згідно Договору № 2019/КД/291-0048 від 2019-06-18 р, без ПДВ",26006924866928,current,0.80,"АБ ""Укргазбанк""",23697280,юридична особа
Самопоміч,"Київ, вулиця Єреванська, 1",70,2019-11-29,TR.1170985,Банківські послуги,Інші витрати,309606,Центральний офіс,38558365,Україна,"Плата за розрахункове обслуговування по рахунку № 26006924866928.980 з 2019-11-29 по 2019-11-29 згідно Договору № 2019/КД/291-0048 від 2019-06-18 р, без ПДВ",26006924866928,current,0.80,"АБ ""Укргазбанк""",23697280,юридична особа
Самопоміч,"Сумська область, Конотоп, вулиця Братів Лузанів, 48",79,2019-11-29,3253,"Оренда будинків і приміщень та експлуатаційні витрати (прибирання, страхування орендованих будинків, охорона, сигналізація, ремонт, вивіз сміття, тощо)",Оренда нерухомості,309605,Центральний офіс,38558365,Україна,"Оплата за компенсацію податку на землю за жовтень 2019р., згідно рахунку №81 від 2019-11-12 року",26006924866928,current,150.47,Конотопське УДКСУв Сумській обл.,37784555,юридична особа
Самопоміч,"Сумська область, Конотоп, вулиця Братів Лузанів, 48",79,2019-11-29,3254,"Оренда будинків і приміщень та експлуатаційні витрати (прибирання, страхування орендованих будинків, охорона, сигналізація, ремонт, вивіз сміття, тощо)",Оренда нерухомості,309604,Центральний офіс,38558365,Україна,"Оплата відшкодування за послуги теплопостачання з 25.10.19 по 20.11.19р. , згідно рахунку №92 від 2019-11-20р. в т.ч. ПДВ 299.63 грн.",26006924866928,current,1797.80,Конотопське УДКСУв Сумській обл.,37784555,юридична особа
Самопоміч,"Київ, вулиця Єреванська, 1",70,2019-11-25,TR.1170953_940,Банківські послуги,Інші витрати,310031,Центральний офіс,38558365,Україна,"Плата за розрахункове обслуговування по рахунку № 26008924418040.980 з 2019-11-25 по 2019-11-25 згідно Договору № 2019/КД/291-0048 від 2019-06-18 р, без ПДВ",26008924418040,state,0.80,"АБ ""Укргазбанк""",23697280,юридична особа
Самопоміч,"Київ, вулиця Єреванська, 1",70,2019-11-25,TR.1170953_939,Банківські послуги,Інші витрати,310030,Центральний офіс,38558365,Україна,"Плата за розрахункове обслуговування по рахунку № 26008924418040.980 з 2019-11-25 по 2019-11-25 згідно Договору № 2019/КД/291-0048 від 2019-06-18 р, без ПДВ",26008924418040,state,0.80,"АБ ""Укргазбанк""",23697280,юридична особа
Самопоміч,"Київ, вулиця Єреванська, 1",70,2019-11-25,TR.1170953_938,Банківські послуги,Інші витрати,310029,Центральний офіс,38558365,Україна,"Плата за розрахункове обслуговування по рахунку № 26008924418040.980 з 2019-11-25 по 2019-11-25 згідно Договору № 2019/КД/291-0048 від 2019-06-18 р, без ПДВ",26008924418040,state,0.80,"АБ ""Укргазбанк""",23697280,юридична особа
Самопоміч,"Київ, вулиця Єреванська, 1",70,2019-11-25,TR.1170953_937,Банківські послуги,Інші витрати,310028,Центральний офіс,38558365,Україна,"Плата за розрахункове обслуговування по рахунку № 26008924418040.980 з 2019-11-25 по 2019-11-25 згідно Договору № 2019/КД/291-0048 від 2019-06-18 р, без ПДВ",26008924418040,state,0.80,"АБ ""Укргазбанк""",23697280,юридична особа
Самопоміч,"Київ, вулиця Єреванська, 1",70,2019-11-25,TR.1170953_936,Банківські послуги,Інші витрати,310027,Центральний офіс,38558365,Україна,"Плата за розрахункове обслуговування по рахунку № 26008924418040.980 з 2019-11-25 по 2019-11-25 згідно Договору № 2019/КД/291-0048 від 2019-06-18 р, без ПДВ",26008924418040,state,0.80,"АБ ""Укргазбанк""",23697280,юридична особа
Самопоміч,"Київ, вулиця Єреванська, 1",70,2019-11-25,TR.1170953_935,Банківські послуги,Інші витрати,310026,Центральний офіс,38558365,Україна,"Плата за розрахункове обслуговування по рахунку № 26008924418040.980 з 2019-11-25 по 2019-11-25 згідно Договору № 2019/КД/291-0048 від 2019-06-18 р, без ПДВ",26008924418040,state,0.80,"АБ ""Укргазбанк""",23697280,юридична особа
Самопоміч,"Київ, вулиця Єреванська, 1",70,2019-11-25,TR.1170953_934,Банківські послуги,Інші витрати,310025,Центральний офіс,38558365,Україна,"Плата за розрахункове обслуговування по рахунку № 26008924418040.980 з 2019-11-25 по 2019-11-25 згідно Договору № 2019/КД/291-0048 від 2019-06-18 р, без ПДВ",26008924418040,state,0.80,"АБ ""Укргазбанк""",23697280,юридична особа
Самопоміч,"Київ, вулиця Єреванська, 1",70,2019-11-25,TR.1170953_933,Банківські послуги,Інші витрати,310024,Центральний офіс,38558365,Україна,"Плата за розрахункове обслуговування по рахунку № 26008924418040.980 з 2019-11-25 по 2019-11-25 згідно Договору № 2019/КД/291-0048 від 2019-06-18 р, без ПДВ",26008924418040,state,0.80,"АБ ""Укргазбанк""",23697280,юридична особа
Самопоміч,"Київ, вулиця Єреванська, 1",70,2019-11-25,TR.1170953_932,Банківські послуги,Інші витрати,310023,Центральний офіс,38558365,Україна,"Плата за розрахункове обслуговування по рахунку № 26008924418040.980 з 2019-11-25 по 2019-11-25 згідно Договору № 2019/КД/291-0048 від 2019-06-18 р, без ПДВ",26008924418040,state,0.80,"АБ ""Укргазбанк""",23697280,юридична особа
Самопоміч,"Київ, вулиця Кирилівська, 86",50,2019-11-25,3244,Оплата ефірного часу на радіо,Реклама на радіо,310022,Центральний офіс,38558365,Україна,"Оплата заборгованості, згідно рішення суду №914/1574/19 від 12.11.19р.",26008924418040,state,226800.00,"ТОВ ""ТРК ""Радіо-Ера""",30019068,юридична особа
Самопоміч,"Полтавська область, Полтава, вулиця Європейська, 57",75,2019-11-25,3247,Поштові послуги та поширення друкованих матеріалів,Поштові послуги та поширення друкованих матеріалів,310021,Центральний офіс,38558365,Україна,"Оплата за організацію перевезення відправлень, згідно акту наданих послуг № НП-002966957 від 2019-11-10 р. в т.ч. ПДВ 227.44 грн.",26008924418040,state,1364.65,"ТОВ ""Нова пошта""",31316718,юридична особа
Самопоміч,"Київ, вулиця Кирилівська, 86",50,2019-11-25,3245,Оплата ефірного часу на радіо,Реклама на радіо,310020,Центральний офіс,38558365,Україна,"Оплата за відшкодування судувого збору, згідно рішення суду №914/1574/19 від 12.11.19р.",26008924418040,state,3402.00,"ТОВ ""ТРК ""Радіо-Ера""",30019068,юридична особа
Самопоміч,"Львівська область, Львів, Галицька площа, 15",79,2019-11-25,3246,"Оренда будинків і приміщень та експлуатаційні витрати (прибирання, страхування орендованих будинків, охорона, сигналізація, ремонт, вивіз сміття, тощо)",Оренда нерухомості,310019,Центральний офіс,38558365,Україна,"101;Г-83-17суб від 09.01.18р.; 38558365,Оплата за оренду приміщень за жовтень 2019 р., згідно акту № ОУ-0031367 від 2019-10-31 р. в т.ч. ПДВ 8981.59 грн.",26008924418040,state,53889.55,Управління комунальної власності Департаменту економічного розвитку Львівської міської ради,25558625,юридична особа
Самопоміч,"Львівська область, Львів, вулиця Гіпсова, 54",72,2019-11-25,3248,"Придбання, ремонт офісної техніки та програмного забезпечення (Бухгалтерські програми, Ліга.закон, домени)",Придбання офісної техніки та програмного забезпечення,309664,Центральний офіс,38558365,Україна,"Оплата за оренду принтера НР та покопійне обслуговування, згідно акту наданих послуг №2655 від 2019-11-12р.",26008924418040,state,2392.00,Кіхтан Андрій Володимирович,,фізична особа
Самопоміч,"Рівненська область, Рівне, вулиця Андрія Мельника, 25",79,2019-11-25,3251,"Оренда будинків і приміщень та експлуатаційні витрати (прибирання, страхування орендованих будинків, охорона, сигналізація, ремонт, вивіз сміття, тощо)",Оренда нерухомості,309663,Центральний офіс,38558365,Україна,"Оплата за оренду офісного приміщення № 204 за серпень 2019р., згідно рахунку-фактури №08-2019-204 від 2019-10-01р.",26008924418040,state,6160.00,Крутякова Ліана Феліксівна,,фізична особа
Самопоміч,"Рівненська область, Рівне, вулиця Андрія Мельника, 25",79,2019-11-25,3250,"Оренда будинків і приміщень та експлуатаційні витрати (прибирання, страхування орендованих будинків, охорона, сигналізація, ремонт, вивіз сміття, тощо)",Оренда нерухомості,309662,Центральний офіс,38558365,Україна,"Оплата за оренду офісного приміщення № 204 за липень 2019р., згідно рахунку-фактури №07-2019-204 від 2019-10-01р.",26008924418040,state,6160.00,Крутякова Ліана Феліксівна,,фізична особа
Самопоміч,"Рівненська область, Рівне, вулиця Андрія Мельника, 25",79,2019-11-25,3252,"Оренда будинків і приміщень та експлуатаційні витрати (прибирання, страхування орендованих будинків, охорона, сигналізація, ремонт, вивіз сміття, тощо)",Оренда нерухомості,309661,Центральний офіс,38558365,Україна,"Оплата за оренду офісного приміщення № 201 за серпень 2019р., згідно рахунку-фактури №08-2019-201 від 01.10.19р.",26008924418040,state,8048.00,Крутякова Ліана Феліксівна,,фізична особа
Самопоміч,"Рівненська область, Рівне, вулиця Андрія Мельника, 25",79,2019-11-25,3249,"Оренда будинків і приміщень та експлуатаційні витрати (прибирання, страхування орендованих будинків, охорона, сигналізація, ремонт, вивіз сміття, тощо)",Оренда нерухомості,309660,Центральний офіс,38558365,Україна,"Оплата за оренду офісного приміщення № 201 за липень 2019р., згідно рахунку-фактури №07-2019-201 від 01.10.19р.",26008924418040,state,8048.00,Крутякова Ліана Феліксівна,,фізична особа
Самопоміч,"Київ, вулиця Єреванська, 1",70,2019-11-22,TR.1170953_931,Банківські послуги,Інші витрати,310018,Центральний офіс,38558365,Україна,"Плата за розрахункове обслуговування по рахунку № 26008924418040.980 з 2019-11-22 по 2019-11-22 згідно Договору № 2019/КД/291-0048 від 2019-06-18 р, без ПДВ",26008924418040,state,0.80,"АБ ""Укргазбанк""",23697280,юридична особа
Самопоміч,"Київ, вулиця Єреванська, 1",70,2019-11-22,TR.1170953_930,Банківські послуги,Інші витрати,310017,Центральний офіс,38558365,Україна,"Плата за розрахункове обслуговування по рахунку № 26008924418040.980 з 2019-11-22 по 2019-11-22 згідно Договору № 2019/КД/291-0048 від 2019-06-18 р, без ПДВ",26008924418040,state,0.80,"АБ ""Укргазбанк""",23697280,юридична особа
Самопоміч,"Київ, вулиця Єреванська, 1",70,2019-11-22,TR.1170953_929,Банківські послуги,Інші витрати,310016,Центральний офіс,38558365,Україна,"Плата за розрахункове обслуговування по рахунку № 26008924418040.980 з 2019-11-22 по 2019-11-22 згідно Договору № 2019/КД/291-0048 від 2019-06-18 р, без ПДВ",26008924418040,state,0.80,"АБ ""Укргазбанк""",23697280,юридична особа
Самопоміч,"Київ, вулиця Єреванська, 1",70,2019-11-22,TR.1170953_928,Банківські послуги,Інші витрати,310015,Центральний офіс,38558365,Україна,"Плата за розрахункове обслуговування по рахунку № 26008924418040.980 з 2019-11-22 по 2019-11-22 згідно Договору № 2019/КД/291-0048 від 2019-06-18 р, без ПДВ",26008924418040,state,0.80,"АБ ""Укргазбанк""",23697280,юридична особа
Самопоміч,"Київ, вулиця Смоленська, 31/33",76,2019-11-22,3238,Послуги зв’язку,Послуги зв’язку,310014,Центральний офіс,38558365,Україна,"Оплата за телекомунікаційні послуги за жовтень 2019 р., згідно рахунку №3642418*4013251 від 2019-11-01р. в т.ч. ПДВ 16.00 грн.",26008924418040,state,96.00,"ПрАТ ""Датагруп""",31720260,юридична особа
Самопоміч,"Київ, вулиця Єреванська, 1",70,2019-11-22,3243,Банківські послуги,Інші витрати,310013,Центральний офіс,38558365,Україна,Банківська комісія за виплату розрахункових працівників за листопад 2019 р.,26008924418040,state,28.66,"АБ ""Укргазбанк""",23697280,юридична особа
Самопоміч,"Львівська область, Львів, вулиця Конотопська, 6",63,2019-11-22,3240,Податок на доходи,Податкові платежі,310012,Центральний офіс,38558365,Україна,*;101;38558365; сплата ПДФО із розрахункових працівників за листопад 2019 р.;;;11010100,26008924418040,state,1281.64,УДКСУ у Франківському районі м. Львова,37965138,юридична особа
Самопоміч,"Львівська область, Львів, вулиця Стрийська, 35",62,2019-11-22,3241,Сплата ЄСВ,Податкові платежі,310011,Центральний офіс,38558365,Україна,*;101;38558365; сплата єдиного соціального внеску 22% із розрахункових працівників за листопад 2019р .,26008924418040,state,1566.45,ГОЛОВНЕ УПРАВЛІННЯ ДФС У ЛЬВІВСЬКІЙ ОБЛАСТІ,43143039,юридична особа
Самопоміч,"Львівська область, Львів, вулиця Конотопська, 6",61,2019-11-22,3239,Військовий збір,Податкові платежі,310010,Центральний офіс,38558365,Україна,*;101;38558365; сплата військового збору із розрахункових працівників за листопад 2019 р.;;; 11011000,26008924418040,state,106.80,УДКСУ у Франківському районі м. Львова,37965138,юридична особа
Самопоміч,"Львівська область, Львів",84,2019-11-22,238,"Заробітна плата, премії","Заробітна плата, лікарняні, вагітності, відрядження, компенсації",309719,Центральний офіс,38558365,Україна,Зарплата,26008924418040,state,2830.13,Довганик Богдан Романович,,фізична особа
Самопоміч,"Львівська область, Львів",84,2019-11-22,238,"Заробітна плата, премії","Заробітна плата, лікарняні, вагітності, відрядження, компенсації",309718,Центральний офіс,38558365,Україна,Зарплата,26008924418040,state,2901.63,Супрун Марта Олегівна,,фізична особа
Самопоміч,"Київ, вулиця Єреванська, 1",70,2019-11-21,TR.1170985_84,Банківські послуги,Інші витрати,309603,Центральний офіс,38558365,Україна,"Плата за розрахункове обслуговування в після операційний час по рахунку № 26006924866928.980 з 2019-11-21 по 2019-11-21 згідно Договору № 2019/КД/291-0048 від 2019-06-18 р, без ПДВ",26006924866928,current,0.80,"АБ ""Укргазбанк""",23697280,юридична особа
Самопоміч,"Київ, вулиця Єреванська, 1",70,2019-11-21,TR.1170985,Банківські послуги,Інші витрати,309602,Центральний офіс,38558365,Україна,"Плата за розрахункове обслуговування в після операційний час по рахунку № 26006924866928.980 з 2019-11-21 по 2019-11-21 згідно Договору № 2019/КД/291-0048 від 2019-06-18 р, без ПДВ",26006924866928,current,0.80,"АБ ""Укргазбанк""",23697280,юридична особа
Самопоміч,"Полтавська область, Зіньківський район, Зіньків, вулиця Воздвиженська, 67",59,2019-11-21,3237,Грошова застава,Грошова застава,309601,Центральний офіс,38558365,Україна,Грошова застава за кандидатiв у депутати мiсцевої органiзацiї Полiтичної партiї ʼОбʼєднання Самопомічʼ,26006924866928,current,1471.00,Зіньківська міська виборча комісія,33977134,юридична особа
Самопоміч,"Полтавська область, Зіньківський район, Зіньків, вулиця Воздвиженська, 67",59,2019-11-21,3236,Грошова застава,Грошова застава,309600,Центральний офіс,38558365,Україна,Грошова застава мiсцевої органiзацiї Полiтичної партiї ʼОбʼєднання ʼСамопомiчʼ за кандидата на посаду мiського голови,26006924866928,current,1471.00,Зіньківська міська виборча комісія,33977134,юридична особа
Самопоміч,"Київ, вулиця Братиславська, 14Б",79,2019-11-20,11,"Оренда будинків і приміщень та експлуатаційні витрати (прибирання, страхування орендованих будинків, охорона, сигналізація, ремонт, вивіз сміття, тощо)",Оренда нерухомості,310122,Барська районна організація,39919455,Вінницька область,"Оплата за оренду нежитлового приміщення згідно договору від 01/04-2019 від 2019-04-01р., без ПДВ.",26000171311565,current,1020.00,"ТОВ ""Вектор БМ""",42258575,юридична особа
Самопоміч,"Київ, вулиця Турівська, 12",62,2019-11-18,371,Сплата ЄСВ,Податкові платежі,310188,Київська міська організація,39842314,Київ,201;;;ЄСВ ВIД ЗАРПЛАТИ ЗА ЛИСТОПАД 2019Р.,26005056218695,current,250.00,ДПІ у Подільському районі ГУ ДФС у м. Києві,39467012,юридична особа
Самопоміч,"Київ, вулиця Межигірська, 25",63,2019-11-18,370,Податок на доходи,Податкові платежі,310179,Київська міська організація,39842314,Київ,ПДФО ВIД ЗАРПЛАТИ ЗА ЛИСТОПАД 2019 Р.,26005056218695,current,200.00,УДКСУ у Подільському районі м. Києва,37975298,юридична особа
Самопоміч,"Київ, вулиця Межигірська, 25",61,2019-11-18,372,Військовий збір,Податкові платежі,310178,Київська міська організація,39842314,Київ,ВIЙСЬКОВИЙ ЗБIР ВIД ЗАРПЛАТИ ЗА ЛИСТОПАД 2019Р.,26005056218695,current,20.00,УДКСУ у Подільському районі м. Києва,37975298,юридична особа
Самопоміч,"Київ, вулиця Михайла Грушевського, 1Д",70,2019-11-18,369,Банківські послуги,Інші витрати,310157,Київська міська організація,39842314,Київ,Комiсiя РКО вiд зарплати за листопад 2019р.,26005056218695,current,2.25,"ПАТ КБ ""Приватбанк""",14360570,юридична особа
Самопоміч,"Київ, вулиця Михайла Грушевського, 1Д",70,2019-11-18,BIO2QF7CNY,Банківські послуги,Інші витрати,310156,Київська міська організація,39842314,Київ,"Комiсiя за виконання платежiв в нацiональнiй валютi, згiдно з вiдкритою офертою банку N б/н вiд 2017-10-19 та тарифiв банку, без ПДВ.",26005056218695,current,3.00,"ПАТ КБ ""Приватбанк""",14360570,юридична особа
Самопоміч,"Київ, вулиця Михайла Грушевського, 1Д",70,2019-11-18,BIO2QF7A7Y,Банківські послуги,Інші витрати,310155,Київська міська організація,39842314,Київ,"Комiсiя за виконання платежiв в нацiональнiй валютi, згiдно з вiдкритою офертою банку N б/н вiд 2017-10-19 та тарифiв банку, без ПДВ.",26005056218695,current,3.00,"ПАТ КБ ""Приватбанк""",14360570,юридична особа
Самопоміч,"Київ, вулиця Михайла Грушевського, 1Д",70,2019-11-18,BIO2QF7B5Y,Банківські послуги,Інші витрати,310154,Київська міська організація,39842314,Київ,"Комiсiя за виконання платежiв в нацiональнiй валютi, згiдно з вiдкритою офертою банку N б/н вiд 2017-10-19 та тарифiв банку, без ПДВ.",26005056218695,current,3.00,"ПАТ КБ ""Приватбанк""",14360570,юридична особа
Самопоміч,Київ,84,2019-11-18,368,"Заробітна плата, премії","Заробітна плата, лікарняні, вагітності, відрядження, компенсації",310135,Київська міська організація,39842314,Київ,Зарплата за листопад 2019р.,26005056218695,current,900.00,Зубер Світлана Олександрівна,,фізична особа
Самопоміч,"Київ, вулиця Єреванська, 1",70,2019-11-18,TR.1170953_927,Банківські послуги,Інші витрати,310009,Центральний офіс,38558365,Україна,"Плата за розрахункове обслуговування по рахунку № 26008924418040.980 з 2019-11-18 по 2019-11-18 згідно Договору № 2019/КД/291-0048 від 2019-06-18 р, без ПДВ",26008924418040,state,0.80,"АБ ""Укргазбанк""",23697280,юридична особа
Самопоміч,"Київ, вулиця Єреванська, 1",70,2019-11-18,TR.1170953_926,Банківські послуги,Інші витрати,310008,Центральний офіс,38558365,Україна,"Плата за розрахункове обслуговування по рахунку № 26008924418040.980 з 2019-11-18 по 2019-11-18 згідно Договору № 2019/КД/291-0048 від 2019-06-18 р, без ПДВ",26008924418040,state,0.80,"АБ ""Укргазбанк""",23697280,юридична особа
Самопоміч,"Київ, вулиця Єреванська, 1",70,2019-11-18,TR.1170953_925,Банківські послуги,Інші витрати,310007,Центральний офіс,38558365,Україна,"Плата за розрахункове обслуговування по рахунку № 26008924418040.980 з 2019-11-18 по 2019-11-18 згідно Договору № 2019/КД/291-0048 від 2019-06-18 р, без ПДВ",26008924418040,state,0.80,"АБ ""Укргазбанк""",23697280,юридична особа
Самопоміч,"Київ, вулиця Єреванська, 1",70,2019-11-18,3232,Банківські послуги,Інші витрати,310006,Центральний офіс,38558365,Україна,Банківська комісія за виплату розрахункових працівника за листопад 2019 р.,26008924418040,state,12.35,"АБ ""Укргазбанк""",23697280,юридична особа
Самопоміч,"Львівська область, Львів, вулиця Конотопська, 6",63,2019-11-18,3233,Податок на доходи,Податкові платежі,310005,Центральний офіс,38558365,Україна,*;101;38558365; сплата ПДФО із розрахункових працівника за листопад 2019 р.;;;11010100,26008924418040,state,552.39,УДКСУ у Франківському районі м. Львова,37965138,юридична особа
Самопоміч,"Львівська область, Львів, вулиця Стрийська, 35",62,2019-11-18,3231,Сплата ЄСВ,Податкові платежі,310004,Центральний офіс,38558365,Україна,*;101;38558365; сплата єдиного соціального внеску 22% із розрахункових працівника за листопад 2019р .,26008924418040,state,675.15,ГОЛОВНЕ УПРАВЛІННЯ ДФС У ЛЬВІВСЬКІЙ ОБЛАСТІ,43143039,юридична особа
Самопоміч,"Львівська область, Львів, вулиця Конотопська, 6",61,2019-11-18,3235,Військовий збір,Податкові платежі,310003,Центральний офіс,38558365,Україна,*;101;38558365; сплата військового збору із розрахункових працівника за листопад 2019 р.;;; 11011000,26008924418040,state,46.03,УДКСУ у Франківському районі м. Львова,37965138,юридична особа
Самопоміч,"Рівненська область, Острозький район",84,2019-11-18,236,"Заробітна плата, премії","Заробітна плата, лікарняні, вагітності, відрядження, компенсації",309717,Центральний офіс,38558365,Україна,Зарплата,26008924418040,state,2470.43,Новак Ірина Валентинівна,,фізична особа
Самопоміч,"Київ, вулиця Єреванська, 1",70,2019-11-15,TR.1170953_924,Банківські послуги,Інші витрати,310002,Центральний офіс,38558365,Україна,"Плата за розрахункове обслуговування по рахунку № 26008924418040.980 з 2019-11-15 по 2019-11-15 згідно Договору № 2019/КД/291-0048 від 2019-06-18 р, без ПДВ",26008924418040,state,0.80,"АБ ""Укргазбанк""",23697280,юридична особа
Самопоміч,"Київ, вулиця Єреванська, 1",70,2019-11-15,TR.1170953_923,Банківські послуги,Інші витрати,310001,Центральний офіс,38558365,Україна,"Плата за розрахункове обслуговування по рахунку № 26008924418040.980 з 2019-11-15 по 2019-11-15 згідно Договору № 2019/КД/291-0048 від 2019-06-18 р, без ПДВ",26008924418040,state,0.80,"АБ ""Укргазбанк""",23697280,юридична особа
Самопоміч,"Київ, вулиця Єреванська, 1",70,2019-11-15,TR.1170953_922,Банківські послуги,Інші витрати,310000,Центральний офіс,38558365,Україна,"Плата за розрахункове обслуговування по рахунку № 26008924418040.980 з 2019-11-15 по 2019-11-15 згідно Договору № 2019/КД/291-0048 від 2019-06-18 р, без ПДВ",26008924418040,state,0.80,"АБ ""Укргазбанк""",23697280,юридична особа
Самопоміч,"Київ, вулиця Єреванська, 1",70,2019-11-15,3224,Банківські послуги,Інші витрати,309999,Центральний офіс,38558365,Україна,Банківська комісія за виплату авансу працівників за листопад 2019 р.,26008924418040,state,345.18,"АБ ""Укргазбанк""",23697280,юридична особа
Самопоміч,"Львівська область, Львів, вулиця Конотопська, 6",63,2019-11-15,3222,Податок на доходи,Податкові платежі,309998,Центральний офіс,38558365,Україна,*;101;38558365; сплата ПДФО із авансу працівників за листопад 2019 р.;;;11010100,26008924418040,state,15436.68,УДКСУ у Франківському районі м. Львова,37965138,юридична особа
Самопоміч,"Львівська область, Львів, вулиця Стрийська, 35",62,2019-11-15,3225,Сплата ЄСВ,Податкові платежі,309997,Центральний офіс,38558365,Україна,*;101;38558365; сплата єдиного соціального внеску 22% із авансу працівників за листопад 2019р .,26008924418040,state,18867.05,ГОЛОВНЕ УПРАВЛІННЯ ДФС У ЛЬВІВСЬКІЙ ОБЛАСТІ,43143039,юридична особа
Самопоміч,"Львівська область, Львів, вулиця Конотопська, 6",61,2019-11-15,3221,Військовий збір,Податкові платежі,309996,Центральний офіс,38558365,Україна,*;101;38558365; сплата військового збору із авансу працівників за листопад 2019 р.;;; 11011000,26008924418040,state,1286.40,УДКСУ у Франківському районі м. Львова,37965138,юридична особа
Самопоміч,"Львівська область, Львів",84,2019-11-15,234,"Заробітна плата, премії","Заробітна плата, лікарняні, вагітності, відрядження, компенсації",309716,Центральний офіс,38558365,Україна,Зарплата,26008924418040,state,3929.93,Довганик Богдан Романович,,фізична особа
Самопоміч,"Львівська область, Львів",84,2019-11-15,234,"Заробітна плата, премії","Заробітна плата, лікарняні, вагітності, відрядження, компенсації",309715,Центральний офіс,38558365,Україна,Зарплата,26008924418040,state,1677.08,Блавацька Ілона Олегівна,,фізична особа
Самопоміч,"Закарпатська область, Мукачево",84,2019-11-15,234,"Заробітна плата, премії","Заробітна плата, лікарняні, вагітності, відрядження, компенсації",309714,Центральний офіс,38558365,Україна,Зарплата,26008924418040,state,7864.08,Ковач Ольга Володимирівна,,фізична особа
Самопоміч,"Львівська область, Львів",84,2019-11-15,234,"Заробітна плата, премії","Заробітна плата, лікарняні, вагітності, відрядження, компенсації",309713,Центральний офіс,38558365,Україна,Зарплата,26008924418040,state,5502.74,Кокорузь Марія Михайлівна,,фізична особа
Самопоміч,"Львівська область, Львів",84,2019-11-15,234,"Заробітна плата, премії","Заробітна плата, лікарняні, вагітності, відрядження, компенсації",309712,Центральний офіс,38558365,Україна,Зарплата,26008924418040,state,2097.79,Васів Наталія Юріївна,,фізична особа
Самопоміч,"Львівська область, Львів",84,2019-11-15,234,"Заробітна плата, премії","Заробітна плата, лікарняні, вагітності, відрядження, компенсації",309711,Центральний офіс,38558365,Україна,Зарплата,26008924418040,state,5249.75,Івасько Лілія Михайлівна,,фізична особа
Самопоміч,"Львівська область, Львів",84,2019-11-15,234,"Заробітна плата, премії","Заробітна плата, лікарняні, вагітності, відрядження, компенсації",309710,Центральний офіс,38558365,Україна,Зарплата,26008924418040,state,5764.18,Склярук Олександр Олександрович,,фізична особа
Самопоміч,"Львівська область, Львів",84,2019-11-15,234,"Заробітна плата, премії","Заробітна плата, лікарняні, вагітності, відрядження, компенсації",309709,Центральний офіс,38558365,Україна,Зарплата,26008924418040,state,10478.42,Камінська Ірина Степанівна,,фізична особа
Самопоміч,"Івано-Франківська область, Коломийський район, Коломия",84,2019-11-15,234,"Заробітна плата, премії","Заробітна плата, лікарняні, вагітності, відрядження, компенсації",309708,Центральний офіс,38558365,Україна,Зарплата,26008924418040,state,8644.17,Федюк Любомир Мирославович,,фізична особа
Самопоміч,Київ,84,2019-11-15,234,"Заробітна плата, премії","Заробітна плата, лікарняні, вагітності, відрядження, компенсації",309707,Центральний офіс,38558365,Україна,Зарплата,26008924418040,state,8918.25,Баланович Станіслав Васильович,,фізична особа
Самопоміч,"Львівська область, Львів",84,2019-11-15,234,"Заробітна плата, премії","Заробітна плата, лікарняні, вагітності, відрядження, компенсації",309706,Центральний офіс,38558365,Україна,Зарплата,26008924418040,state,8909.82,Дунаєвська Ольга Євстахіївна,,фізична особа
Самопоміч,"Київ, вулиця Єреванська, 1",70,2019-11-15,TR.1170985_83,Банківські послуги,Інші витрати,309599,Центральний офіс,38558365,Україна,"Плата за розрахункове обслуговування по рахунку № 26006924866928.980 з 2019-11-15 по 2019-11-15 згідно Договору № 2019/КД/291-0048 від 2019-06-18 р, без ПДВ",26006924866928,current,0.80,"АБ ""Укргазбанк""",23697280,юридична особа
Самопоміч,"Київ, вулиця Єреванська, 1",70,2019-11-15,TR.1170985_82,Банківські послуги,Інші витрати,309598,Центральний офіс,38558365,Україна,"Плата за розрахункове обслуговування по рахунку № 26006924866928.980 з 2019-11-15 по 2019-11-15 згідно Договору № 2019/КД/291-0048 від 2019-06-18 р, без ПДВ",26006924866928,current,0.80,"АБ ""Укргазбанк""",23697280,юридична особа
Самопоміч,"Київ, вулиця Єреванська, 1",70,2019-11-15,TR.1170985_81,Банківські послуги,Інші витрати,309597,Центральний офіс,38558365,Україна,"Плата за розрахункове обслуговування по рахунку № 26006924866928.980 з 2019-11-15 по 2019-11-15 згідно Договору № 2019/КД/291-0048 від 2019-06-18 р, без ПДВ",26006924866928,current,0.80,"АБ ""Укргазбанк""",23697280,юридична особа
Самопоміч,"Київ, вулиця Єреванська, 1",70,2019-11-15,TR.1170985_80,Банківські послуги,Інші витрати,309596,Центральний офіс,38558365,Україна,"Плата за розрахункове обслуговування по рахунку № 26006924866928.980 з 2019-11-15 по 2019-11-15 згідно Договору № 2019/КД/291-0048 від 2019-06-18 р, без ПДВ",26006924866928,current,0.80,"АБ ""Укргазбанк""",23697280,юридична особа
Самопоміч,"Київ, вулиця Єреванська, 1",70,2019-11-15,TR.1170985,Банківські послуги,Інші витрати,309595,Центральний офіс,38558365,Україна,"Плата за розрахункове обслуговування по рахунку № 26006924866928.980 з 2019-11-15 по 2019-11-15 згідно Договору № 2019/КД/291-0048 від 2019-06-18 р, без ПДВ",26006924866928,current,0.80,"АБ ""Укргазбанк""",23697280,юридична особа
Самопоміч,"Сумська область, Конотоп, вулиця Братів Лузанів, 48",79,2019-11-15,3230,"Оренда будинків і приміщень та експлуатаційні витрати (прибирання, страхування орендованих будинків, охорона, сигналізація, ремонт, вивіз сміття, тощо)",Оренда нерухомості,309592,Центральний офіс,38558365,Україна,"Оплата за оренду нежитлового приміщення за жовтень 2019р., згідно рахунку №92 від 2019-11-12 року",26006924866928,current,2035.28,Конотопське УДКСУв Сумській обл.,37784555,юридична особа
Самопоміч,"Сумська область, Конотоп, вулиця Братів Лузанів, 48",79,2019-11-15,3229,"Оренда будинків і приміщень та експлуатаційні витрати (прибирання, страхування орендованих будинків, охорона, сигналізація, ремонт, вивіз сміття, тощо)",Оренда нерухомості,309591,Центральний офіс,38558365,Україна,"Оплата за оренду нежитлового приміщення за вересень 2019р., згідно рахунку №85 від 2019-10-10 року",26006924866928,current,2021.13,Конотопське УДКСУв Сумській обл.,37784555,юридична особа
Самопоміч,"Сумська область, Конотоп, вулиця Братів Лузанів, 48",79,2019-11-15,3228,"Оренда будинків і приміщень та експлуатаційні витрати (прибирання, страхування орендованих будинків, охорона, сигналізація, ремонт, вивіз сміття, тощо)",Оренда нерухомості,309590,Центральний офіс,38558365,Україна,"Оплата за компенсацію податку на землю за вересень 2019р., згідно рахунку №76 від 2019-10-03 року",26006924866928,current,150.47,Конотопське УДКСУв Сумській обл.,37784555,юридична особа
Самопоміч,"Сумська область, Конотоп, вулиця Братів Лузанів, 48",79,2019-11-15,3226,"Оренда будинків і приміщень та експлуатаційні витрати (прибирання, страхування орендованих будинків, охорона, сигналізація, ремонт, вивіз сміття, тощо)",Оренда нерухомості,309589,Центральний офіс,38558365,Україна,"Оплата відшкодування за отриману елетроенергію з 10.09.19р. по 09.10.19р., згідно згідно рахунку №121708/43 від 10.10.19р.",26006924866928,current,212.42,Конотопське УДКСУв Сумській обл.,37784555,юридична особа
Самопоміч,"Сумська область, Конотоп, вулиця Братів Лузанів, 48",79,2019-11-15,3227,"Оренда будинків і приміщень та експлуатаційні витрати (прибирання, страхування орендованих будинків, охорона, сигналізація, ремонт, вивіз сміття, тощо)",Оренда нерухомості,309588,Центральний офіс,38558365,Україна,"Оплата відшкодування за отриману електроенергію з 10.10.19 по 09.11.19р. , згідно згідно рахунку №121708/52 від 2019-11-14р.",26006924866928,current,232.92,Конотопське УДКСУв Сумській обл.,37784555,юридична особа
Самопоміч,"Київ, вулиця Михайла Грушевського, 1Д",70,2019-11-15,BFO2Q99W5Y,Банківські послуги,Інші витрати,309587,Центральний офіс,38558365,Україна,"Комiсiя за виконання платежiв в нацiональнiй валютi, згiдно з вiдкритою офертою банку N б/н вiд 2018-04-23 та тарифiв банку, без ПДВ.",26006924866928,current,3.00,"ПАТ КБ ""Приватбанк""",14360570,юридична особа
Самопоміч,"Київ, вулиця Єреванська, 1",70,2019-11-13,TR.1170953_921,Банківські послуги,Інші витрати,309995,Центральний офіс,38558365,Україна,"Плата за розрахункове обслуговування по рахунку № 26008924418040.980 з 2019-11-13 по 2019-11-13 згідно Договору № 2019/КД/291-0048 від 2019-06-18 р, без ПДВ",26008924418040,state,0.80,"АБ ""Укргазбанк""",23697280,юридична особа
Самопоміч,"Київ, вулиця Єреванська, 1",70,2019-11-13,TR.1170953_920,Банківські послуги,Інші витрати,309994,Центральний офіс,38558365,Україна,"Плата за розрахункове обслуговування по рахунку № 26008924418040.980 з 2019-11-13 по 2019-11-13 згідно Договору № 2019/КД/291-0048 від 2019-06-18 р, без ПДВ",26008924418040,state,0.80,"АБ ""Укргазбанк""",23697280,юридична особа
Самопоміч,"Київ, вулиця Єреванська, 1",70,2019-11-13,TR.1170953_919,Банківські послуги,Інші витрати,309993,Центральний офіс,38558365,Україна,"Плата за розрахункове обслуговування по рахунку № 26008924418040.980 з 2019-11-13 по 2019-11-13 згідно Договору № 2019/КД/291-0048 від 2019-06-18 р, без ПДВ",26008924418040,state,0.80,"АБ ""Укргазбанк""",23697280,юридична особа
Самопоміч,"Київ, вулиця Єреванська, 1",70,2019-11-13,TR.1170953_918,Банківські послуги,Інші витрати,309992,Центральний офіс,38558365,Україна,"Плата за розрахункове обслуговування по рахунку № 26008924418040.980 з 2019-11-13 по 2019-11-13 згідно Договору № 2019/КД/291-0048 від 2019-06-18 р, без ПДВ",26008924418040,state,0.80,"АБ ""Укргазбанк""",23697280,юридична особа
Самопоміч,"Київ, вулиця Єреванська, 1",70,2019-11-13,TR.1170953_917,Банківські послуги,Інші витрати,309991,Центральний офіс,38558365,Україна,"Плата за розрахункове обслуговування по рахунку № 26008924418040.980 з 2019-11-13 по 2019-11-13 згідно Договору № 2019/КД/291-0048 від 2019-06-18 р, без ПДВ",26008924418040,state,0.80,"АБ ""Укргазбанк""",23697280,юридична особа
Самопоміч,"Київ, вулиця Єреванська, 1",70,2019-11-13,TR.1170953_916,Банківські послуги,Інші витрати,309990,Центральний офіс,38558365,Україна,"Плата за розрахункове обслуговування по рахунку № 26008924418040.980 з 2019-11-13 по 2019-11-13 згідно Договору № 2019/КД/291-0048 від 2019-06-18 р, без ПДВ",26008924418040,state,0.80,"АБ ""Укргазбанк""",23697280,юридична особа
Самопоміч,"Київ, вулиця Єреванська, 1",70,2019-11-13,TR.1170953_915,Банківські послуги,Інші витрати,309989,Центральний офіс,38558365,Україна,"Плата за розрахункове обслуговування по рахунку № 26008924418040.980 з 2019-11-13 по 2019-11-13 згідно Договору № 2019/КД/291-0048 від 2019-06-18 р, без ПДВ",26008924418040,state,0.80,"АБ ""Укргазбанк""",23697280,юридична особа
Самопоміч,"Київ, вулиця Єреванська, 1",70,2019-11-13,TR.1170953_914,Банківські послуги,Інші витрати,309988,Центральний офіс,38558365,Україна,"Плата за розрахункове обслуговування по рахунку № 26008924418040.980 з 2019-11-13 по 2019-11-13 згідно Договору № 2019/КД/291-0048 від 2019-06-18 р, без ПДВ",26008924418040,state,0.80,"АБ ""Укргазбанк""",23697280,юридична особа
Самопоміч,"Київ, вулиця Єреванська, 1",70,2019-11-13,TR.1170953_913,Банківські послуги,Інші витрати,309987,Центральний офіс,38558365,Україна,"Плата за розрахункове обслуговування по рахунку № 26008924418040.980 з 2019-11-13 по 2019-11-13 згідно Договору № 2019/КД/291-0048 від 2019-06-18 р, без ПДВ",26008924418040,state,0.80,"АБ ""Укргазбанк""",23697280,юридична особа
Самопоміч,"Київ, вулиця Єреванська, 1",70,2019-11-13,TR.1170953_912,Банківські послуги,Інші витрати,309986,Центральний офіс,38558365,Україна,"Плата за розрахункове обслуговування по рахунку № 26008924418040.980 з 2019-11-13 по 2019-11-13 згідно Договору № 2019/КД/291-0048 від 2019-06-18 р, без ПДВ",26008924418040,state,0.80,"АБ ""Укргазбанк""",23697280,юридична особа
Самопоміч,"Київ, вулиця Єреванська, 1",70,2019-11-13,TR.1170953_911,Банківські послуги,Інші витрати,309985,Центральний офіс,38558365,Україна,"Плата за розрахункове обслуговування в після операційний час по рахунку № 26008924418040.980 з 2019-11-12 по 2019-11-12 згідно Договору № 2019/КД/291-0048 від 2019-06-18 р, без ПДВ",26008924418040,state,0.80,"АБ ""Укргазбанк""",23697280,юридична особа
Самопоміч,"Київ, бульвар Тараса Шевченка, 18",76,2019-11-13,3213,Послуги зв’язку,Послуги зв’язку,309984,Центральний офіс,38558365,Україна,"Оплата за телекомунікаційні послуги за жовтень 2019р.,зг. рах.-акт № 460000000001822019-10-95 від 31.10.19р.зг. договору №4600000000018295 в т.ч. ПДВ 36.98 грн.",26008924418040,state,221.90,"ПАТ ""Укртелеком""",21560766,юридична особа
Самопоміч,"Львівська область, Львів, вулиця Іларіона Свєнціцького, 1",76,2019-11-13,3215,Послуги зв’язку,Послуги зв’язку,309983,Центральний офіс,38558365,Україна,"Оплата за телекомунікаційні послуги за жовтень 2019 р по дог. №168754, згідно акту наданих послуг від 2019-10-31 р. в т.ч. ПДВ 105.50 грн.",26008924418040,state,633.00,"ДП ""НТЦ ""Українська академічна і дослідницька мережа"" Інституту фізики конденсованих систем НАН України""",30275262,юридична особа
Самопоміч,"Львівська область, Львів, вулиця Іларіона Свєнціцького, 1",76,2019-11-13,3214,Послуги зв’язку,Послуги зв’язку,309982,Центральний офіс,38558365,Україна,"Оплата за телекомунікаційні послуги за жовтень 2019 р по дог. №166851, згідно акту наданих послуг від 2019-10-31 р. в т.ч. ПДВ 75.50 грн.",26008924418040,state,453.00,"ДП ""НТЦ ""Українська академічна і дослідницька мережа"" Інституту фізики конденсованих систем НАН України""",30275262,юридична особа
Самопоміч,"Львівська область, Львів, вулиця Джохара Дудаєва, 19, 1",72,2019-11-13,3211,"Придбання, ремонт офісної техніки та програмного забезпечення (Бухгалтерські програми, Ліга.закон, домени)",Придбання офісної техніки та програмного забезпечення,309981,Центральний офіс,38558365,Україна,"Оплата за програмну продукцію з технічною підтримкою, згідно акту №2598 від 2019-10-31р.",26008924418040,state,11429.11,ТОВ ʼМАКЛАУДʼ,40231242,юридична особа
Самопоміч,"Київ, вулиця Лугова, 12",72,2019-11-13,3220,"Придбання, ремонт офісної техніки та програмного забезпечення (Бухгалтерські програми, Ліга.закон, домени)",Придбання офісної техніки та програмного забезпечення,309980,Центральний офіс,38558365,Україна,"Оплата за посл. у сфері інформатизації щодо розміщення користувацької інформ. за жовтень 19р.,зг. акту над.посл. №6003512 від 31.10.19р. в т.ч. ПДВ 4430.95 грн.",26008924418040,state,26585.68,ТОВ 'Софтпром Солюшинз',38282502,юридична особа
Самопоміч,"Львівська область, Радехівський район, Радехів, вулиця Івана Франка, 2",79,2019-11-13,3218,"Оренда будинків і приміщень та експлуатаційні витрати (прибирання, страхування орендованих будинків, охорона, сигналізація, ремонт, вивіз сміття, тощо)",Оренда нерухомості,309979,Центральний офіс,38558365,Україна,"Оплата за оренду нежитлового приміщення за вересень 2019 р., згідно акту наданих послуг № 07/09 від 2019-10-01 р.",26008924418040,state,718.86,Радехівська міська рада,37976988,юридична особа
Самопоміч,"Полтавська область, Полтава, вулиця Європейська, 57",75,2019-11-13,3217,Поштові послуги та поширення друкованих матеріалів,Поштові послуги та поширення друкованих матеріалів,309978,Центральний офіс,38558365,Україна,"Оплата за організацію перевезення відправлень, згідно акту наданих послуг № НП-002923297 від 2019-10-31 р. в т.ч. ПДВ 216.49 грн.",26008924418040,state,1298.90,"ТОВ ""Нова пошта""",31316718,юридична особа
Самопоміч,"Київ, вулиця Дегтярівська, 53",76,2019-11-13,3219,Послуги зв’язку,Послуги зв’язку,309977,Центральний офіс,38558365,Україна,"Оплата за надані послуги мобільного звʼязку за жовтень 2019 р., згідно рахунку № 38-21422417 від 2019-10-31 р. в т.ч. ПДВ 297,33 грн.",26008924418040,state,1895.46,"ПрАТ ""Київстар""",21673832,юридична особа
Самопоміч,"Київ, вулиця Зоологічна, 4А",82,2019-11-13,3207,"Гонорари, в тому числі за надані консультаційні послуги","Гонорари, в тому числі за надані консультаційні послуги",309976,Центральний офіс,38558365,Україна,"Оплата за комунікаційний консалтинг,написання статей та інше, згідно акту наданих послуг №107 від 2019-10-31 р. в т.ч. ПДВ 12556.90 грн.",26008924418040,state,75341.40,"ТОВ ""Служба мобільних новин""",35893973,юридична особа
Самопоміч,"Львівська область, Львів, вулиця Широка, 81",74,2019-11-13,3216,"Придбання канцтоварів, паперу, інших предметів і матеріалів, а також госп товари",Придбання канцтоварів та госп. товарів,309975,Центральний офіс,38558365,Україна,"Оплата за канцтовари, згідно накладної №54009 від 2019-10-31 р. в т.ч. ПДВ 60.54 грн.",26008924418040,state,363.26,ТОВ 'Ромус-Поліграф',25551379,юридична особа
Самопоміч,"Львівська область, Львів, вулиця Шевченка, 1",79,2019-11-13,3212,"Оренда будинків і приміщень та експлуатаційні витрати (прибирання, страхування орендованих будинків, охорона, сигналізація, ремонт, вивіз сміття, тощо)",Оренда нерухомості,309974,Центральний офіс,38558365,Україна,"Оплата за електричну енергію за жовтень 2019 р., згідно акту наданих послуг від 2019-10-31 р. в т.ч. ПДВ 217.63 грн.",26008924418040,state,1305.78,"ТОВ ""Львівенергозбут""",42092130,юридична особа
Самопоміч,"Київ, вулиця Єреванська, 1",70,2019-11-13,3208,Банківські послуги,Інші витрати,309973,Центральний офіс,38558365,Україна,Банківська комісія за відшкодування відрядних витрат,26008924418040,state,9.71,"АБ ""Укргазбанк""",23697280,юридична особа
Самопоміч,"Львівська область, Львів",83,2019-11-13,171,"Виплати працівникам (не зарплата): лікарняні, вагітності, відрядження, компенсації ","Заробітна плата, лікарняні, вагітності, відрядження, компенсації",309674,Центральний офіс,38558365,Україна,відрядження,26008924418040,state,1942.00,Склярук Олександр Олександрович,,фізична особа
Самопоміч,"Київ, вулиця Єреванська, 1",70,2019-11-13,TR.1170985,Банківські послуги,Інші витрати,309586,Центральний офіс,38558365,Україна,"Плата за розрахункове обслуговування по рахунку № 26006924866928.980 з 2019-11-13 по 2019-11-13 згідно Договору № 2019/КД/291-0048 від 2019-06-18 р, без ПДВ",26006924866928,current,0.80,"АБ ""Укргазбанк""",23697280,юридична особа
Самопоміч,"Львівська область, Львів, вулиця Шевченка, 1",79,2019-11-13,3210,"Оренда будинків і приміщень та експлуатаційні витрати (прибирання, страхування орендованих будинків, охорона, сигналізація, ремонт, вивіз сміття, тощо)",Оренда нерухомості,309585,Центральний офіс,38558365,Україна,"Оплата пені, згідно рахунку за пеню від 31.10.19р. по дог. 54512 .",26006924866928,current,14.70,"ТОВ ""Львівенергозбут""",42092130,юридична особа
Самопоміч,"Київ, вулиця Михайла Грушевського, 1Д",70,2019-11-04,AN9av06n7p,Банківські послуги,Інші витрати,310197,Мелітопольська міська організація,39964031,Запорізька область,"Комісія за обслуговування недіючого рахунку №26008055723683 за жовтень 2019 р., згідно тарифів банку, без ПДВ",26008055723683,current,100.00,"ПАТ КБ ""Приватбанк""",14360570,юридична особа
Самопоміч,"Київ, вулиця Михайла Грушевського, 1Д",70,2019-11-04,AN9av00wbp,Банківські послуги,Інші витрати,310127,Вінницька міська організація,39916686,Вінницька область,"Комісія за обслуговування недіючого рахунку № 26001055325259 за жовтень 2019 р., згідно тарифів банку, без ПДВ",26001055325259,current,100.00,"ПАТ КБ ""Приватбанк""",14360570,юридична особа
Самопоміч,"Київ, вулиця Єреванська, 1",70,2019-11-01,TR.9166500.96392.8669,Банківські послуги,Інші витрати,310194,Львівська обласна організація,38582948,Львівська область,"Списання комісії за розрахунково-касове обслуговування неактивних рахунків по рахунку № 26002924856783.980 за жовтень 2019р. Зг. Дог. №2018/КД/291-0198 від2018-11-27, без ПДВ",26002924856783,current,100.00,"АБ ""Укргазбанк""",23697280,юридична особа
Самопоміч,"Київ, вулиця Михайла Грушевського, 1Д",70,2019-11-01,AS9AVGPSUP,Банківські послуги,Інші витрати,310153,Київська міська організація,39842314,Київ,"Комiсiя за обслуговування рахунку за жовтень 2019 р. згiдно договору банкiвського рахунку вiд 2017-10-19, без ПДВ.",26005056218695,current,100.00,"ПАТ КБ ""Приватбанк""",14360570,юридична особа
Самопоміч,"Вінницька область, Вінниця, вулиця Соборна, 71",70,2019-11-01,847805403,Банківські послуги,Інші витрати,310121,Барська районна організація,39919455,Вінницька область,Списання щомісячної плати за обслуговування ТП Моя громада за за жовтень 2019 р.,26000171311565,current,49.00,"Вінницька обласна філія АТ ""Ощадбанк""",09302607,юридична особа
Самопоміч,"Вінницька область, Вінниця, вулиця Соборна, 71",70,2019-11-01,840454703,Банківські послуги,Інші витрати,310120,Барська районна організація,39919455,Вінницька область,Коміс.за розрах.обсл. рахунку 26000171311565 з 01-10-2019 по 31-10-2019. Без НДС,26000171311565,current,100.00,"Вінницька обласна філія АТ ""Ощадбанк""",09302607,юридична особа
Самопоміч,"Київ, вулиця Єреванська, 1",70,2019-11-01,TR.1170953_910,Банківські послуги,Інші витрати,309972,Центральний офіс,38558365,Україна,"Плата за розрахункове обслуговування в після операційний час по рахунку № 26008924418040.980 з 2019-09-11 по 2019-09-11 згідно Договору № 2019/КД/291-0048 від 2019-06-18 р, без ПДВ",26008924418040,state,0.80,"АБ ""Укргазбанк""",23697280,юридична особа
Самопоміч,"Київ, вулиця Єреванська, 1",70,2019-11-01,TR.1170953_909,Банківські послуги,Інші витрати,309971,Центральний офіс,38558365,Україна,"Плата за розрахункове обслуговування в після операційний час по рахунку № 26008924418040.980 з 2019-09-11 по 2019-09-11 згідно Договору № 2019/КД/291-0048 від 2019-06-18 р, без ПДВ",26008924418040,state,0.80,"АБ ""Укргазбанк""",23697280,юридична особа
Самопоміч,"Київ, вулиця Єреванська, 1",70,2019-11-01,TR.1170953_908,Банківські послуги,Інші витрати,309970,Центральний офіс,38558365,Україна,"Плата за розрахункове обслуговування в після операційний час по рахунку № 26008924418040.980 з 2019-09-11 по 2019-09-11 згідно Договору № 2019/КД/291-0048 від 2019-06-18 р, без ПДВ",26008924418040,state,0.80,"АБ ""Укргазбанк""",23697280,юридична особа
Самопоміч,"Київ, вулиця Єреванська, 1",70,2019-11-01,3206,Банківські послуги,Інші витрати,309969,Центральний офіс,38558365,Україна,Банківська комісія за виплату розрахункових та відпустки працівників за листопад 2019 р.,26008924418040,state,47.50,"АБ ""Укргазбанк""",23697280,юридична особа
Самопоміч,"Львівська область, Львів, вулиця Конотопська, 6",63,2019-11-01,3203,Податок на доходи,Податкові платежі,309968,Центральний офіс,38558365,Україна,*;101;38558365; сплата ПДФО із розрахункових та відпустки працівників за листопад 2019 р.;;;11010100,26008924418040,state,2124.43,УДКСУ у Франківському районі м. Львова,37965138,юридична особа
Самопоміч,"Львівська область, Львів, вулиця Стрийська, 35",62,2019-11-01,3202,Сплата ЄСВ,Податкові платежі,309967,Центральний офіс,38558365,Україна,*;101;38558365; сплата єдиного соціального внеску 22% із розрахункових і відпустки працівників за листопад 2019р .,26008924418040,state,2596.53,ГОЛОВНЕ УПРАВЛІННЯ ДФС У ЛЬВІВСЬКІЙ ОБЛАСТІ,43143039,юридична особа
Самопоміч,"Львівська область, Львів, вулиця Конотопська, 6",61,2019-11-01,3204,Військовий збір,Податкові платежі,309966,Центральний офіс,38558365,Україна,*;101;38558365; сплата військового збору із розрахункових та відпустки працівників за листопад 2019 р.;;; 11011000,26008924418040,state,177.04,УДКСУ у Франківському районі м. Львова,37965138,юридична особа
Самопоміч,"Львівська область, Львів",84,2019-11-01,233,"Заробітна плата, премії","Заробітна плата, лікарняні, вагітності, відрядження, компенсації",309705,Центральний офіс,38558365,Україна,Зарплата,26008924418040,state,6575.03,Гамор Анета Григорівна,,фізична особа
Самопоміч,"Львівська область, Львів",84,2019-11-01,233,"Заробітна плата, премії","Заробітна плата, лікарняні, вагітності, відрядження, компенсації",309704,Центральний офіс,38558365,Україна,Зарплата,26008924418040,state,609.71,Блавацька Ілона Олегівна,,фізична особа
Самопоміч,"Львівська область, Львів",84,2019-11-01,232,"Заробітна плата, премії","Заробітна плата, лікарняні, вагітності, відрядження, компенсації",309703,Центральний офіс,38558365,Україна,Зарплата,26008924418040,state,1347.32,Телішевська Галина Ігорівна,,фізична особа
Самопоміч,"Львівська область, Львів",84,2019-11-01,232,"Заробітна плата, премії","Заробітна плата, лікарняні, вагітності, відрядження, компенсації",309702,Центральний офіс,38558365,Україна,Зарплата,26008924418040,state,968.84,Алєксєєва Наталія Ігорівна,,фізична особа
Самопоміч,"Київ, вулиця Михайла Грушевського, 1Д",70,2019-11-01,AS9avh7zwp,Банківські послуги,Інші витрати,309584,Центральний офіс,38558365,Україна,"Комісія за обслуговування рахунку за жовтень 2019 р. згідно договору банківського рахунку від 2018-04-23, без ПДВ.",26006924866928,current,100.00,"ПАТ КБ ""Приватбанк""",14360570,юридична особа
Самопоміч,"Одеська область, Одеса, вулиця Канатна, 1",70,2019-10-31,IS/NA/980/1,Банківські послуги,Інші витрати,310199,Одеська міська організація,39923299,Одеська область,"Комісія банку за розрахункове обслуговування недіючого рахунка за 10.2019, згідно тарифів Банка. Без ПДВ.",29037010353673,current,200.00,"ПАТ ""Банк Восток""",26237202,юридична особа
Самопоміч,"Київ, вулиця Турівська, 12",62,2019-10-31,370,Сплата ЄСВ,Податкові платежі,310187,Київська міська організація,39842314,Київ,201;;;ЄСВ ВIД ЗАРПЛАТИ ЗА ЖОВТЕНЬ 2019Р.,26005056218695,current,204.74,ДПІ у Подільському районі ГУ ДФС у м. Києві,39467012,юридична особа
Самопоміч,"Київ, вулиця Межигірська, 25",63,2019-10-31,371,Податок на доходи,Податкові платежі,310177,Київська міська організація,39842314,Київ,ПДФО ВIД ЗАРПЛАТИ ЗА ЖОВТЕНЬ 2019 Р.,26005056218695,current,172.06,УДКСУ у Подільському районі м. Києва,37975298,юридична особа
Самопоміч,"Київ, вулиця Межигірська, 25",61,2019-10-31,369,Військовий збір,Податкові платежі,310176,Київська міська організація,39842314,Київ,ВIЙСЬКОВИЙ ЗБIР ВIД ЗАРПЛАТИ ЗА ЖОВТЕНЬ 2019Р.,26005056218695,current,11.01,УДКСУ у Подільському районі м. Києва,37975298,юридична особа
Самопоміч,"Київ, вулиця Смоленська, 31/33",76,2019-10-31,368,Послуги зв’язку,Послуги зв’язку,310173,Київська міська організація,39842314,Київ,"ОПЛ. ЗА ТЕЛЕКОМУН. ПОСЛУГИ 01004109263403, ЗГ. РАХ.N226845190904 ВIД 2019-09-01 ТА ДОГ.N226845 ВIД 2018-03-15 ЗА ВЕРЕСНЬ 2019 В Т. Ч. ПДВ - 20 % -138,89 ГРН.",26005056218695,current,833.33,"ПрАТ ""Датагруп""",31720260,юридична особа
Самопоміч,"Київ, вулиця Смоленська, 31/33",76,2019-10-31,369,Послуги зв’язку,Послуги зв’язку,310172,Київська міська організація,39842314,Київ,"ОПЛ. ЗА ТЕЛЕКОМ.ПОСЛ. 01002103031497 ЗА 08-09. 2019, ЗГ. РАХ.N5370754*3965656 ВIД 2019-10-01 ТА ДОГ.N5370754 ВIД 2017-01-01 В Т. Ч. ПДВ - 20 % 18,67ГРН.",26005056218695,current,112.00,"ПрАТ ""Датагруп""",31720260,юридична особа
Самопоміч,"Київ, вулиця Михайла Грушевського, 1Д",70,2019-10-31,373,Банківські послуги,Інші витрати,310152,Київська міська організація,39842314,Київ,Комiсiя РКО вiд зарплати за жовтень 2019р.,26005056218695,current,1.91,"ПАТ КБ ""Приватбанк""",14360570,юридична особа
Самопоміч,"Київ, вулиця Михайла Грушевського, 1Д",70,2019-10-31,AVO2OBA9HY,Банківські послуги,Інші витрати,310151,Київська міська організація,39842314,Київ,"Комiсiя за виконання платежiв в нацiональнiй валютi, згiдно з вiдкритою офертою банку N б/н вiд 2017-10-19 та тарифiв банку, без ПДВ.",26005056218695,current,3.00,"ПАТ КБ ""Приватбанк""",14360570,юридична особа
Самопоміч,"Київ, вулиця Михайла Грушевського, 1Д",70,2019-10-31,AVO2OBA9HX,Банківські послуги,Інші витрати,310150,Київська міська організація,39842314,Київ,"Комiсiя за викон. платежу 368 вiд 2019-10-31, 833.33 в нац. валютi в пiсляоперацiйний час, згiдно з вiдкритою офертою банку № б/н вiд 2017-10-19 без ПДВ",26005056218695,current,1.67,"ПАТ КБ ""Приватбанк""",14360570,юридична особа
Самопоміч,"Київ, вулиця Михайла Грушевського, 1Д",70,2019-10-31,AVO2OBA9BY,Банківські послуги,Інші витрати,310149,Київська міська організація,39842314,Київ,"Комiсiя за виконання платежiв в нацiональнiй валютi, згiдно з вiдкритою офертою банку N б/н вiд 2017-10-19 та тарифiв банку, без ПДВ.",26005056218695,current,3.00,"ПАТ КБ ""Приватбанк""",14360570,юридична особа
Самопоміч,"Київ, вулиця Михайла Грушевського, 1Д",70,2019-10-31,AVO2OBA96Y,Банківські послуги,Інші витрати,310148,Київська міська організація,39842314,Київ,"Комiсiя за виконання платежiв в нацiональнiй валютi, згiдно з вiдкритою офертою банку N б/н вiд 2017-10-19 та тарифiв банку, без ПДВ.",26005056218695,current,3.00,"ПАТ КБ ""Приватбанк""",14360570,юридична особа
Самопоміч,"Київ, вулиця Михайла Грушевського, 1Д",70,2019-10-31,AVO2OBA98Y,Банківські послуги,Інші витрати,310147,Київська міська організація,39842314,Київ,"Комiсiя за виконання платежiв в нацiональнiй валютi, згiдно з вiдкритою офертою банку N б/н вiд 2017-10-19 та тарифiв банку, без ПДВ.",26005056218695,current,3.00,"ПАТ КБ ""Приватбанк""",14360570,юридична особа
Самопоміч,"Київ, вулиця Михайла Грушевського, 1Д",70,2019-10-31,AVO2OBA92Y,Банківські послуги,Інші витрати,310146,Київська міська організація,39842314,Київ,"Комiсiя за виконання платежiв в нацiональнiй валютi, згiдно з вiдкритою офертою банку N б/н вiд 2017-10-19 та тарифiв банку, без ПДВ.",26005056218695,current,3.00,"ПАТ КБ ""Приватбанк""",14360570,юридична особа
Самопоміч,"Київ, вулиця Михайла Грушевського, 1Д",70,2019-10-31,AVO2OBA92X,Банківські послуги,Інші витрати,310145,Київська міська організація,39842314,Київ,"Комiсiя за викон. платежу 369 вiд 2019-10-31, 112.00 в нац. валютi в пiсляоперацiйний час, згiдно з вiдкритою офертою банку № б/н вiд 2017-10-19 без ПДВ",26005056218695,current,0.22,"ПАТ КБ ""Приватбанк""",14360570,юридична особа
Самопоміч,Київ,84,2019-10-31,372,"Заробітна плата, премії","Заробітна плата, лікарняні, вагітності, відрядження, компенсації",310134,Київська міська організація,39842314,Київ,Зарплата за жовтень 2019р.,26005056218695,current,763.94,Зубер Світлана Олександрівна,,фізична особа
Самопоміч,"Київ, вулиця Єреванська, 1",70,2019-10-31,TR.1170956,Банківські послуги,Інші витрати,309965,Центральний офіс,38558365,Україна,"Плата за розрахункове обслуговування по рахунку № 26045903290725.980 за перiод з 2019-10-01 по 2019-10-31 зг. договору № 2019/КД/291-0048 від 2019-06-18 , без ПДВ .",26008924418040,state,60.00,"АБ ""Укргазбанк""",23697280,юридична особа
Самопоміч,"Київ, вулиця Єреванська, 1",70,2019-10-31,TR.1170953_907,Банківські послуги,Інші витрати,309964,Центральний офіс,38558365,Україна,"Плата за розрахункове обслуговування по рахунку № 26008924418040.980 за перiод з 2019-10-01 по 2019-10-31 зг. договору № 2019/КД/291-0048 від 2019-06-18 , без ПДВ",26008924418040,state,60.00,"АБ ""Укргазбанк""",23697280,юридична особа
Самопоміч,"Київ, вулиця Єреванська, 1",70,2019-10-31,TR.1170953_906,Банківські послуги,Інші витрати,309963,Центральний офіс,38558365,Україна,"Плата за розрахункове обслуговування по рахунку № 26008924418040.980 з 2019-10-31 по 2019-10-31 згідно Договору № 2019/КД/291-0048 від 2019-06-18 р, без ПДВ",26008924418040,state,0.80,"АБ ""Укргазбанк""",23697280,юридична особа
Самопоміч,"Київ, вулиця Єреванська, 1",70,2019-10-31,TR.1170953_905,Банківські послуги,Інші витрати,309962,Центральний офіс,38558365,Україна,"Плата за розрахункове обслуговування по рахунку № 26008924418040.980 з 2019-10-31 по 2019-10-31 згідно Договору № 2019/КД/291-0048 від 2019-06-18 р, без ПДВ",26008924418040,state,0.80,"АБ ""Укргазбанк""",23697280,юридична особа
Самопоміч,"Київ, вулиця Єреванська, 1",70,2019-10-31,TR.1170953_904,Банківські послуги,Інші витрати,309961,Центральний офіс,38558365,Україна,"Плата за розрахункове обслуговування по рахунку № 26008924418040.980 з 2019-10-31 по 2019-10-31 згідно Договору № 2019/КД/291-0048 від 2019-06-18 р, без ПДВ",26008924418040,state,0.80,"АБ ""Укргазбанк""",23697280,юридична особа
Самопоміч,"Київ, вулиця Єреванська, 1",70,2019-10-31,TR.1170953_903,Банківські послуги,Інші витрати,309960,Центральний офіс,38558365,Україна,"Плата за розрахункове обслуговування по рахунку № 26008924418040.980 з 2019-10-31 по 2019-10-31 згідно Договору № 2019/КД/291-0048 від 2019-06-18 р, без ПДВ",26008924418040,state,0.80,"АБ ""Укргазбанк""",23697280,юридична особа
Самопоміч,"Київ, вулиця Єреванська, 1",70,2019-10-31,TR.1170953_902,Банківські послуги,Інші витрати,309959,Центральний офіс,38558365,Україна,"Плата за розрахункове обслуговування по рахунку № 26008924418040.980 з 2019-10-31 по 2019-10-31 згідно Договору № 2019/КД/291-0048 від 2019-06-18 р, без ПДВ",26008924418040,state,0.80,"АБ ""Укргазбанк""",23697280,юридична особа
Самопоміч,"Київ, вулиця Єреванська, 1",70,2019-10-31,TR.1170953_901,Банківські послуги,Інші витрати,309958,Центральний офіс,38558365,Україна,"Плата за розрахункове обслуговування по рахунку № 26008924418040.980 з 2019-10-31 по 2019-10-31 згідно Договору № 2019/КД/291-0048 від 2019-06-18 р, без ПДВ",26008924418040,state,0.80,"АБ ""Укргазбанк""",23697280,юридична особа
Самопоміч,"Київ, вулиця Єреванська, 1",70,2019-10-31,TR.1170953_900,Банківські послуги,Інші витрати,309957,Центральний офіс,38558365,Україна,"Плата за розрахункове обслуговування по рахунку № 26008924418040.980 з 2019-10-31 по 2019-10-31 згідно Договору № 2019/КД/291-0048 від 2019-06-18 р, без ПДВ",26008924418040,state,0.80,"АБ ""Укргазбанк""",23697280,юридична особа
Самопоміч,"Київ, вулиця Єреванська, 1",70,2019-10-31,TR.1170953_899,Банківські послуги,Інші витрати,309956,Центральний офіс,38558365,Україна,"Плата за розрахункове обслуговування по рахунку № 26008924418040.980 з 2019-10-31 по 2019-10-31 згідно Договору № 2019/КД/291-0048 від 2019-06-18 р, без ПДВ",26008924418040,state,0.80,"АБ ""Укргазбанк""",23697280,юридична особа
Самопоміч,"Київ, вулиця Смоленська, 31/33",76,2019-10-31,3196,Послуги зв’язку,Послуги зв’язку,309955,Центральний офіс,38558365,Україна,"Оплата за телекомунікаційні послуги за жовтень 19 р., до дог. №ІНК.33148/2018 від 31.07.18 р., згідно акту наданих послуг від 31.10.19р. в т.ч. ПДВ 129.03 грн.",26008924418040,state,774.19,"ПрАТ ""Датагруп""",31720260,юридична особа
Самопоміч,"Львівська область, Червоноград, вулиця Коновальця, 3",79,2019-10-31,3198,"Оренда будинків і приміщень та експлуатаційні витрати (прибирання, страхування орендованих будинків, охорона, сигналізація, ремонт, вивіз сміття, тощо)",Оренда нерухомості,309954,Центральний офіс,38558365,Україна,"Оплата за послуги оренди приміщення у жовтні 2019 р., згідно акту № 86 від 2019-10-31 р. в т.ч. ПДВ 49.22 грн.",26008924418040,state,299.57,"КП ""Червонограджитлокомунсервіс""",31616100,юридична особа
Самопоміч,"Львівська область, Червоноград, вулиця Коновальця, 3",79,2019-10-31,3199,"Оренда будинків і приміщень та експлуатаційні витрати (прибирання, страхування орендованих будинків, охорона, сигналізація, ремонт, вивіз сміття, тощо)",Оренда нерухомості,309953,Центральний офіс,38558365,Україна,"Оплата за послуги оренди приміщення у вересні 2019 р., згідно акту № 80 від 2019-09-30 р. в т.ч. ПДВ 48,88 грн.",26008924418040,state,295.33,"КП ""Червонограджитлокомунсервіс""",31616100,юридична особа
Самопоміч,"Львівська область, Львів, вулиця Академіка Андрія Сахарова, 42",79,2019-10-31,3197,"Оренда будинків і приміщень та експлуатаційні витрати (прибирання, страхування орендованих будинків, охорона, сигналізація, ремонт, вивіз сміття, тощо)",Оренда нерухомості,309952,Центральний офіс,38558365,Україна,"Оплата за оренду нежитлового приміщення у жовтні 2019р., згідно акту виконаних робіт від 2019-10-31 р. в т.ч. ПДВ 367.50 грн.",26008924418040,state,2205.00,"ПАТ ""Промбудприлад""",31588943,юридична особа
Самопоміч,"Полтавська область, Полтава, вулиця Європейська, 57",75,2019-10-31,3201,Поштові послуги та поширення друкованих матеріалів,Поштові послуги та поширення друкованих матеріалів,309951,Центральний офіс,38558365,Україна,"Оплата за організацію перевезення відправлень, згідно рахунку-фактури № НП-002876563 від 2019-10-20 р. в т.ч. ПДВ 472.03 грн.",26008924418040,state,2832.15,"ТОВ ""Нова пошта""",31316718,юридична особа
Самопоміч,"Київ, вулиця Єреванська, 1",70,2019-10-31,3194,Банківські послуги,Інші витрати,309950,Центральний офіс,38558365,Україна,Банківська комісія за виплату зарплати працівників за жовтень 2019 р.,26008924418040,state,383.95,"АБ ""Укргазбанк""",23697280,юридична особа
Самопоміч,"Львівська область, Львів, вулиця Конотопська, 6",63,2019-10-31,3192,Податок на доходи,Податкові платежі,309949,Центральний офіс,38558365,Україна,*;101;38558365; сплата ПДФО із зарплати працівників за жовтень 2019 р.;;;11010100,26008924418040,state,17170.31,УДКСУ у Франківському районі м. Львова,37965138,юридична особа
Самопоміч,"Львівська область, Львів, вулиця Стрийська, 35",62,2019-10-31,3195,Сплата ЄСВ,Податкові платежі,309948,Центральний офіс,38558365,Україна,*;101;38558365; сплата єдиного соціального внеску 22% із зарплати працівників за жовтень 2019р .,26008924418040,state,20985.93,ГОЛОВНЕ УПРАВЛІННЯ ДФС У ЛЬВІВСЬКІЙ ОБЛАСТІ,43143039,юридична особа
Самопоміч,"Львівська область, Львів, вулиця Конотопська, 6",61,2019-10-31,3191,Військовий збір,Податкові платежі,309947,Центральний офіс,38558365,Україна,*;101;38558365; сплата військового збору із зарплати працівників за жовтень 2019 р.;;; 11011000,26008924418040,state,1430.83,УДКСУ у Франківському районі м. Львова,37965138,юридична особа
Самопоміч,"Закарпатська область, Мукачево",84,2019-10-31,231,"Заробітна плата, премії","Заробітна плата, лікарняні, вагітності, відрядження, компенсації",309701,Центральний офіс,38558365,Україна,Зарплата,26008924418040,state,7629.41,Ковач Ольга Володимирівна,,фізична особа
Самопоміч,"Львівська область, Львів",84,2019-10-31,231,"Заробітна плата, премії","Заробітна плата, лікарняні, вагітності, відрядження, компенсації",309700,Центральний офіс,38558365,Україна,Зарплата,26008924418040,state,3751.30,Довганик Богдан Романович,,фізична особа
Самопоміч,"Львівська область, Львів",84,2019-10-31,231,"Заробітна плата, премії","Заробітна плата, лікарняні, вагітності, відрядження, компенсації",309699,Центральний офіс,38558365,Україна,Зарплата,26008924418040,state,5252.63,Кокорузь Марія Михайлівна,,фізична особа
Самопоміч,"Львівська область, Львів",84,2019-10-31,231,"Заробітна плата, премії","Заробітна плата, лікарняні, вагітності, відрядження, компенсації",309698,Центральний офіс,38558365,Україна,Зарплата,26008924418040,state,3751.30,Телішевська Галина Ігорівна,,фізична особа
Самопоміч,"Івано-Франківська область, Коломийський район, Коломия",84,2019-10-31,231,"Заробітна плата, премії","Заробітна плата, лікарняні, вагітності, відрядження, компенсації",309697,Центральний офіс,38558365,Україна,Зарплата,26008924418040,state,8424.12,Федюк Любомир Мирославович,,фізична особа
Самопоміч,"Львівська область, Львів",84,2019-10-31,231,"Заробітна плата, премії","Заробітна плата, лікарняні, вагітності, відрядження, компенсації",309696,Центральний офіс,38558365,Україна,Зарплата,26008924418040,state,10002.13,Камінська Ірина Степанівна,,фізична особа
Самопоміч,Київ,84,2019-10-31,231,"Заробітна плата, премії","Заробітна плата, лікарняні, вагітності, відрядження, компенсації",309695,Центральний офіс,38558365,Україна,Зарплата,26008924418040,state,8616.28,Баланович Станіслав Васильович,,фізична особа
Самопоміч,"Львівська область, Львів",84,2019-10-31,231,"Заробітна плата, премії","Заробітна плата, лікарняні, вагітності, відрядження, компенсації",309694,Центральний офіс,38558365,Україна,Зарплата,26008924418040,state,4916.63,Івасько Лілія Михайлівна,,фізична особа
Самопоміч,"Львівська область, Львів",84,2019-10-31,231,"Заробітна плата, премії","Заробітна плата, лікарняні, вагітності, відрядження, компенсації",309693,Центральний офіс,38558365,Україна,Зарплата,26008924418040,state,2515.63,Блавацька Ілона Олегівна,,фізична особа
Самопоміч,"Львівська область, Львів",84,2019-10-31,231,"Заробітна плата, премії","Заробітна плата, лікарняні, вагітності, відрядження, компенсації",309692,Центральний офіс,38558365,Україна,Зарплата,26008924418040,state,5755.75,Алєксєєва Наталія Ігорівна,,фізична особа
Самопоміч,"Львівська область, Львів",84,2019-10-31,231,"Заробітна плата, премії","Заробітна плата, лікарняні, вагітності, відрядження, компенсації",309691,Центральний офіс,38558365,Україна,Зарплата,26008924418040,state,8504.83,Дунаєвська Ольга Євстахіївна,,фізична особа
Самопоміч,"Львівська область, Львів",84,2019-10-31,231,"Заробітна плата, премії","Заробітна плата, лікарняні, вагітності, відрядження, компенсації",309690,Центральний офіс,38558365,Україна,Зарплата,26008924418040,state,2167.22,Васів Наталія Юріївна,,фізична особа
Самопоміч,"Львівська область, Львів",84,2019-10-31,231,"Заробітна плата, премії","Заробітна плата, лікарняні, вагітності, відрядження, компенсації",309689,Центральний офіс,38558365,Україна,Зарплата,26008924418040,state,5502.18,Склярук Олександр Олександрович,,фізична особа
Самопоміч,"Київ, вулиця Єреванська, 1",70,2019-10-31,TR.1170985,Банківські послуги,Інші витрати,309583,Центральний офіс,38558365,Україна,"Плата за розрахункове обслуговування по рахунку № 26006924866928.980 за перiод з 2019-10-01 по 2019-10-31 зг. договору № 2019/КД/291-0048 від 2019-06-18 , без ПДВ",26006924866928,current,60.00,"АБ ""Укргазбанк""",23697280,юридична особа
Самопоміч,"Київ, вулиця Єреванська, 1",70,2019-10-31,TR.1170985,Банківські послуги,Інші витрати,309582,Центральний офіс,38558365,Україна,"Плата за розрахункове обслуговування по рахунку № 26006924866928.980 з 2019-10-31 по 2019-10-31 згідно Договору № 2019/КД/291-0048 від 2019-06-18 р, без ПДВ",26006924866928,current,0.80,"АБ ""Укргазбанк""",23697280,юридична особа
Самопоміч,"Львівська область, Трускавець, вулиця Бориславська, 1",79,2019-10-31,3200,"Оренда будинків і приміщень та експлуатаційні витрати (прибирання, страхування орендованих будинків, охорона, сигналізація, ремонт, вивіз сміття, тощо)",Оренда нерухомості,309581,Центральний офіс,38558365,Україна,"Оплата пені, згідно рахунку на оплату №127 від 2019-10-21 р.",26006924866928,current,38.44,Відділ культури Трускавецької міської ради,02229209,юридична особа
Самопоміч,"Одеська область, Одеса, вулиця Канатна, 1",70,2019-10-30,IS/NA/980/1,Банківські послуги,Інші витрати,310200,Одеська міська організація,39923299,Одеська область,"Комісія банку за розрахункове обслуговування недіючого рахунка за 11.2019, згідно тарифів Банка. Без ПДВ.",29037010353673,current,200.00,"ПАТ ""Банк Восток""",26237202,юридична особа
Самопоміч,"Київ, вулиця Миколи Лєскова, 9",70,2019-10-30,bn,Банківські послуги,Інші витрати,310132,Івано-Франківська обласна організація,39927768,Івано-Франківська область,"Часткове списання комісії за користування пакетом послуг з 27.09.19 по 29.10.19 по рах №UA7738808050000000026000492575(UAH), без ПДВ",26000492575,current,77.00,"АТ ""Райффайзен банк Аваль""",14305909,юридична особа
Самопоміч,"Київ, вулиця Миколи Лєскова, 9",70,2019-10-30,bn,Банківські послуги,Інші витрати,310131,Івано-Франківська обласна організація,39927768,Івано-Франківська область,"Комісія за вих перекази в нац. вал з використування системи Клієнт -Банк на інші банки за період з 27.10.19 по 29.10.19 №UA7738808050000000026000492575(UAH) 1*3=3 грн., без ПДВ",26000492575,current,3.00,"АТ ""Райффайзен банк Аваль""",14305909,юридична особа
Самопоміч,"Київ, вулиця Дегтярівська, 53",64,2019-10-25,300346,Повернення платежів партії,Повернення,310130,Івано-Франківська обласна організація,39927768,Івано-Франківська область,"Повернення залишку коштів по угоді (8203677) у т.ч. ПДВ 0,47",26000492575,current,3.00,"ПрАТ ""Київстар""",21673832,юридична особа
Самопоміч,"Київ, вулиця Братиславська, 14Б",79,2019-10-25,10,"Оренда будинків і приміщень та експлуатаційні витрати (прибирання, страхування орендованих будинків, охорона, сигналізація, ремонт, вивіз сміття, тощо)",Оренда нерухомості,310119,Барська районна організація,39919455,Вінницька область,"Оплата за оренду нежитлового приміщення згідно договору від 01/04-2019 від 2019-04-01р., без ПДВ.",26000171311565,current,1020.00,"ТОВ ""Вектор БМ""",42258575,юридична особа
Самопоміч,"Київ, вулиця Єреванська, 1",70,2019-10-25,3189,Банківські послуги,Інші витрати,309946,Центральний офіс,38558365,Україна,Банківська комісія за відшкодування відрядних витрат,26008924418040,state,3.87,"АБ ""Укргазбанк""",23697280,юридична особа
Самопоміч,"Львівська область, Львів",83,2019-10-25,170,"Виплати працівникам (не зарплата): лікарняні, вагітності, відрядження, компенсації ","Заробітна плата, лікарняні, вагітності, відрядження, компенсації",309673,Центральний офіс,38558365,Україна,відрядження,26008924418040,state,773.12,Івасько Лілія Михайлівна,,фізична особа
Самопоміч,"Київ, вулиця Єреванська, 1",70,2019-10-24,TR.1170953_898,Банківські послуги,Інші витрати,309945,Центральний офіс,38558365,Україна,"Плата за розрахункове обслуговування по рахунку № 26008924418040.980 з 2019-10-24 по 2019-10-24 згідно Договору № 2019/КД/291-0048 від 2019-06-18 р, без ПДВ",26008924418040,state,0.80,"АБ ""Укргазбанк""",23697280,юридична особа
Самопоміч,"Київ, вулиця Єреванська, 1",70,2019-10-24,TR.1170953_897,Банківські послуги,Інші витрати,309944,Центральний офіс,38558365,Україна,"Плата за розрахункове обслуговування по рахунку № 26008924418040.980 з 2019-10-24 по 2019-10-24 згідно Договору № 2019/КД/291-0048 від 2019-06-18 р, без ПДВ",26008924418040,state,0.80,"АБ ""Укргазбанк""",23697280,юридична особа
Самопоміч,"Київ, вулиця Єреванська, 1",70,2019-10-24,TR.1170953_896,Банківські послуги,Інші витрати,309943,Центральний офіс,38558365,Україна,"Плата за розрахункове обслуговування по рахунку № 26008924418040.980 з 2019-10-24 по 2019-10-24 згідно Договору № 2019/КД/291-0048 від 2019-06-18 р, без ПДВ",26008924418040,state,0.80,"АБ ""Укргазбанк""",23697280,юридична особа
Самопоміч,"Київ, вулиця Єреванська, 1",70,2019-10-24,TR.1170953_895,Банківські послуги,Інші витрати,309942,Центральний офіс,38558365,Україна,"Плата за розрахункове обслуговування по рахунку № 26008924418040.980 з 2019-10-24 по 2019-10-24 згідно Договору № 2019/КД/291-0048 від 2019-06-18 р, без ПДВ",26008924418040,state,0.80,"АБ ""Укргазбанк""",23697280,юридична особа
Самопоміч,"Львівська область, Моршин, вулиця Геологів, 12",79,2019-10-24,3187,"Оренда будинків і приміщень та експлуатаційні витрати (прибирання, страхування орендованих будинків, охорона, сигналізація, ремонт, вивіз сміття, тощо)",Оренда нерухомості,309941,Центральний офіс,38558365,Україна,"Оплата за питну воду , згідно рахунку-фактури № 3440871541 від 18.10.19 р. в т.ч. ПДВ 717.60 грн.",26008924418040,state,4305.60,ТОВ ʼІДС АКВА СЕРВІСʼ,42201052,юридична особа
Самопоміч,"Київ, вулиця Велика Житомирська, 33",69,2019-10-24,3186,Організація заходів та інші організаційні послуги,Організація заходів та інші організаційні послуги,309940,Центральний офіс,38558365,Україна,"Оплата за оренду приміщення та обладнання, згідно рахунку на оплату № ВСТ00188 від 2019-10-16 р. в т.ч. ПДВ 7500.00 грн.",26008924418040,state,45000.00,Торгово-промислова палата України,00016934,юридична особа
Самопоміч,"Полтавська область, Полтава, вулиця Європейська, 57",75,2019-10-24,3185,Поштові послуги та поширення друкованих матеріалів,Поштові послуги та поширення друкованих матеріалів,309939,Центральний офіс,38558365,Україна,"Оплата за організацію перевезення відправлень, згідно рахунку-фактури № НП-002838982 від 2019-10-10 р. в т.ч. ПДВ 587.75 грн.",26008924418040,state,3526.50,"ТОВ ""Нова пошта""",31316718,юридична особа
Самопоміч,"Київ, вулиця Ентузіастів, 11/1, 191",69,2019-10-24,3188,Організація заходів та інші організаційні послуги,Організація заходів та інші організаційні послуги,309659,Центральний офіс,38558365,Україна,"Оплата за послуги організації харчування, згідно рахунку на оплату № 9 від 17.10.19 р.",26008924418040,state,116344.20,Конколь Михайло Тіборович,,фізична особа
Самопоміч,"Київ, вулиця Єреванська, 1",70,2019-10-23,TR.1170953_894,Банківські послуги,Інші витрати,309938,Центральний офіс,38558365,Україна,"Плата за розрахункове обслуговування в після операційний час по рахунку № 26008924418040.980 з 2019-10-23 по 2019-10-23 згідно Договору № 2019/КД/291-0048 від 2019-06-18 р, без ПДВ",26008924418040,state,0.80,"АБ ""Укргазбанк""",23697280,юридична особа
Самопоміч,"Львівська область, Львів, вулиця Миколи Коперника, 47",82,2019-10-23,3184,"Гонорари, в тому числі за надані консультаційні послуги","Гонорари, в тому числі за надані консультаційні послуги",309658,Центральний офіс,38558365,Україна,"Оплата за вчинення нотаріальних дій, згідно рахунку №146 від 2019-10-23 р.",26008924418040,state,1200.00,Кулиняк Ігор Ярославович,,фізична особа
Самопоміч,"Київ, вулиця Єреванська, 1",70,2019-10-22,TR.1170953_893,Банківські послуги,Інші витрати,309937,Центральний офіс,38558365,Україна,"Плата за надання інших довідок, повідомлень за запитом власника рахунку згідно договору № 2019/КД/291-0048 від 2019-06-18 р. (без ПДВ)",26008924418040,state,3000.00,"АБ ""Укргазбанк""",23697280,юридична особа
Самопоміч,"Київ, вулиця Єреванська, 1",70,2019-10-18,TR.1170953_892,Банківські послуги,Інші витрати,309936,Центральний офіс,38558365,Україна,"Плата за розрахункове обслуговування по рахунку № 26008924418040.980 з 2019-09-18 по 2019-09-18 згідно Договору № 2019/КД/291-0048 від 2019-06-18 р, без ПДВ",26008924418040,state,0.80,"АБ ""Укргазбанк""",23697280,юридична особа
Самопоміч,"Київ, вулиця Єреванська, 1",70,2019-10-18,TR.1170953_891,Банківські послуги,Інші витрати,309935,Центральний офіс,38558365,Україна,"Плата за розрахункове обслуговування в після операційний час по рахунку № 26008924418040.980 з 2019-10-18 по 2019-10-18 згідно Договору № 2019/КД/291-0048 від 2019-06-18 р, без ПДВ",26008924418040,state,0.80,"АБ ""Укргазбанк""",23697280,юридична особа
Самопоміч,"Київ, вулиця Єреванська, 1",70,2019-10-18,TR.1170953_890,Банківські послуги,Інші витрати,309934,Центральний офіс,38558365,Україна,"Плата за розрахункове обслуговування в після операційний час по рахунку № 26008924418040.980 з 2019-10-18 по 2019-10-18 згідно Договору № 2019/КД/291-0048 від 2019-06-18 р, без ПДВ",26008924418040,state,0.80,"АБ ""Укргазбанк""",23697280,юридична особа
Самопоміч,"Київ, вулиця Єреванська, 1",70,2019-10-18,TR.1170953_889,Банківські послуги,Інші витрати,309933,Центральний офіс,38558365,Україна,"Плата за розрахункове обслуговування в після операційний час по рахунку № 26008924418040.980 з 2019-10-18 по 2019-10-18 згідно Договору № 2019/КД/291-0048 від 2019-06-18 р, без ПДВ",26008924418040,state,0.80,"АБ ""Укргазбанк""",23697280,юридична особа
Самопоміч,"Київ, вулиця Єреванська, 1",70,2019-10-18,TR.1170953_888,Банківські послуги,Інші витрати,309932,Центральний офіс,38558365,Україна,"Плата за розрахункове обслуговування в після операційний час по рахунку № 26008924418040.980 з 2019-10-18 по 2019-10-18 згідно Договору № 2019/КД/291-0048 від 2019-06-18 р, без ПДВ",26008924418040,state,0.80,"АБ ""Укргазбанк""",23697280,юридична особа
Самопоміч,"Київ, вулиця Єреванська, 1",70,2019-10-18,TR.1170953_887,Банківські послуги,Інші витрати,309931,Центральний офіс,38558365,Україна,"Плата за розрахункове обслуговування в після операційний час по рахунку № 26008924418040.980 з 2019-10-18 по 2019-10-18 згідно Договору № 2019/КД/291-0048 від 2019-06-18 р, без ПДВ",26008924418040,state,0.80,"АБ ""Укргазбанк""",23697280,юридична особа
Самопоміч,"Київ, вулиця Єреванська, 1",70,2019-10-18,TR.1170953_886,Банківські послуги,Інші витрати,309930,Центральний офіс,38558365,Україна,"Плата за розрахункове обслуговування в після операційний час по рахунку № 26008924418040.980 з 2019-10-18 по 2019-10-18 згідно Договору № 2019/КД/291-0048 від 2019-06-18 р, без ПДВ",26008924418040,state,0.80,"АБ ""Укргазбанк""",23697280,юридична особа
Самопоміч,"Київ, вулиця Єреванська, 1",70,2019-10-18,TR.1170953_885,Банківські послуги,Інші витрати,309929,Центральний офіс,38558365,Україна,"Плата за розрахункове обслуговування в після операційний час по рахунку № 26008924418040.980 з 2019-10-18 по 2019-10-18 згідно Договору № 2019/КД/291-0048 від 2019-06-18 р, без ПДВ",26008924418040,state,0.80,"АБ ""Укргазбанк""",23697280,юридична особа
Самопоміч,"Київ, вулиця Єреванська, 1",70,2019-10-18,TR.1170953_884,Банківські послуги,Інші витрати,309928,Центральний офіс,38558365,Україна,"Плата за розрахункове обслуговування в після операційний час по рахунку № 26008924418040.980 з 2019-10-18 по 2019-10-18 згідно Договору № 2019/КД/291-0048 від 2019-06-18 р, без ПДВ",26008924418040,state,0.80,"АБ ""Укргазбанк""",23697280,юридична особа
Самопоміч,"Київ, вулиця Єреванська, 1",70,2019-10-18,TR.1170953_883,Банківські послуги,Інші витрати,309927,Центральний офіс,38558365,Україна,"Плата за розрахункове обслуговування в після операційний час по рахунку № 26008924418040.980 з 2019-10-18 по 2019-10-18 згідно Договору № 2019/КД/291-0048 від 2019-06-18 р, без ПДВ",26008924418040,state,0.80,"АБ ""Укргазбанк""",23697280,юридична особа
Самопоміч,"Київ, вулиця Єреванська, 1",70,2019-10-18,TR.1170953_882,Банківські послуги,Інші витрати,309926,Центральний офіс,38558365,Україна,"Плата за розрахункове обслуговування в після операційний час по рахунку № 26008924418040.980 з 2019-10-18 по 2019-10-18 згідно Договору № 2019/КД/291-0048 від 2019-06-18 р, без ПДВ",26008924418040,state,0.80,"АБ ""Укргазбанк""",23697280,юридична особа
Самопоміч,"Київ, вулиця Єреванська, 1",70,2019-10-18,TR.1170953_881,Банківські послуги,Інші витрати,309925,Центральний офіс,38558365,Україна,"Плата за розрахункове обслуговування в після операційний час по рахунку № 26008924418040.980 з 2019-10-18 по 2019-10-18 згідно Договору № 2019/КД/291-0048 від 2019-06-18 р, без ПДВ",26008924418040,state,0.80,"АБ ""Укргазбанк""",23697280,юридична особа
Самопоміч,"Київ, вулиця Єреванська, 1",70,2019-10-18,TR.1170953_880,Банківські послуги,Інші витрати,309924,Центральний офіс,38558365,Україна,"Плата за розрахункове обслуговування в після операційний час по рахунку № 26008924418040.980 з 2019-10-18 по 2019-10-18 згідно Договору № 2019/КД/291-0048 від 2019-06-18 р, без ПДВ",26008924418040,state,0.80,"АБ ""Укргазбанк""",23697280,юридична особа
Самопоміч,"Київ, вулиця Єреванська, 1",70,2019-10-18,TR.1170953_879,Банківські послуги,Інші витрати,309923,Центральний офіс,38558365,Україна,"Плата за розрахункове обслуговування в після операційний час по рахунку № 26008924418040.980 з 2019-10-18 по 2019-10-18 згідно Договору № 2019/КД/291-0048 від 2019-06-18 р, без ПДВ",26008924418040,state,0.80,"АБ ""Укргазбанк""",23697280,юридична особа
Самопоміч,"Київ, Повітрофлотський проспект, 72",76,2019-10-18,3180,Послуги зв’язку,Послуги зв’язку,309922,Центральний офіс,38558365,Україна,"Оплата за телекомунікаційні послуги за серпень 2019р., згідно акту наданих послуг від 2019-08-31р. договір № 8566-Т від 31.01.17 р. в т.ч. ПДВ 31.92 грн.",26008924418040,state,191.51,"ТОВ ""Укрком""",22891175,юридична особа
Самопоміч,"Київ, вулиця Смоленська, 31/33",76,2019-10-18,3182,Послуги зв’язку,Послуги зв’язку,309921,Центральний офіс,38558365,Україна,"Оплата за телекомунікаційні послуги за серпень 19 р., до дог. №ІНК.33148/2018 від 31.07.18 р., згідно акту наданих послуг від 31.08.19р. в т.ч. ПДВ 666.67 грн.",26008924418040,state,4000.00,"ПрАТ ""Датагруп""",31720260,юридична особа
Самопоміч,"Київ, Повітрофлотський проспект, 72",76,2019-10-18,3179,Послуги зв’язку,Послуги зв’язку,309920,Центральний офіс,38558365,Україна,"Оплата за телекомунікаційні послуги за липень 2019р., згідно акту наданих послуг від 2019-07-31р. договір № 8566-Т від 31.01.17 р. в т.ч. ПДВ 31.92 грн.",26008924418040,state,191.51,"ТОВ ""Укрком""",22891175,юридична особа
Самопоміч,"Київ, бульвар Тараса Шевченка, 18",76,2019-10-18,3176,Послуги зв’язку,Послуги зв’язку,309919,Центральний офіс,38558365,Україна,"Оплата за телекомунікаційні послуги за вересень 2019р.,зг. рах.-акт № 4607010000511030.9.2019 від 30.09.19р.зг. договору №4607010000511030 в т.ч. ПДВ 40.20 грн.",26008924418040,state,243.82,"ПАТ ""Укртелеком""",21560766,юридична особа
Самопоміч,"Київ, Повітрофлотський проспект, 72",76,2019-10-18,3181,Послуги зв’язку,Послуги зв’язку,309918,Центральний офіс,38558365,Україна,"Оплата за телекомунікаційні послуги за вересень 2019р., згідно акту наданих послуг від 2019-09-30р. договір № 8566-Т від 31.01.17 р. в т.ч. ПДВ 31.92 грн.",26008924418040,state,191.51,"ТОВ ""Укрком""",22891175,юридична особа
Самопоміч,"Київ, вулиця Магнітогорська, 1",76,2019-10-18,3178,Послуги зв’язку,Послуги зв’язку,309917,Центральний офіс,38558365,Україна,"Оплата за телекомунікаційні послуги за вересень 19р.до дог. №272028/17 від 01.12.17 р., зг. акту наданих послуг №132831 від 2019-09-30 р. в т.ч. ПДВ 78.67 грн.",26008924418040,state,472.00,"ТОВ ""Воля-кабель""",30777913,юридична особа
Самопоміч,"Кіровоградська область, Світловодськ, вулиця Анатолія Солов'яненка, 3",79,2019-10-18,3173,"Оренда будинків і приміщень та експлуатаційні витрати (прибирання, страхування орендованих будинків, охорона, сигналізація, ремонт, вивіз сміття, тощо)",Оренда нерухомості,309916,Центральний офіс,38558365,Україна,"Оплата за оренду приміщення за липень 2019р., згідно рахунку №7 від 2019-07-31 р.",26008924418040,state,3528.00,"ТОВ "" Промінь-Чигирин""",38869131,юридична особа
Самопоміч,"Львівська область, Львів, вулиця Академіка Андрія Сахарова, 42",79,2019-10-18,3177,"Оренда будинків і приміщень та експлуатаційні витрати (прибирання, страхування орендованих будинків, охорона, сигналізація, ремонт, вивіз сміття, тощо)",Оренда нерухомості,309915,Центральний офіс,38558365,Україна,Оплата за оренду нежитлового приміщення у липні 2019р. згідно акту виконаних робіт від 2019-07-31 р. в т.ч. ПДВ 1333.33 грн.,26008924418040,state,8000.00,"ПАТ ""Промбудприлад""",31588943,юридична особа
Самопоміч,"Сумська область, Шостка, вулиця Садовий бульвар, 14",79,2019-10-18,3169,"Оренда будинків і приміщень та експлуатаційні витрати (прибирання, страхування орендованих будинків, охорона, сигналізація, ремонт, вивіз сміття, тощо)",Оренда нерухомості,309914,Центральний офіс,38558365,Україна,"Оплата за оренду нежитлового приміщення у липні 2019 р., згідно акту виконаних робіт від 2019-07-31 р. в т.ч. ПДВ 22.12 грн.",26008924418040,state,132.73,Виконавчий комітет Шосткинської міської ради,04057994,юридична особа
Самопоміч,"Кіровоградська область, Світловодськ, вулиця Анатолія Солов'яненка, 3",79,2019-10-18,3172,"Оренда будинків і приміщень та експлуатаційні витрати (прибирання, страхування орендованих будинків, охорона, сигналізація, ремонт, вивіз сміття, тощо)",Оренда нерухомості,309913,Центральний офіс,38558365,Україна,"Оплата за відшкодування витрат комунальних послуг за червень 2019р., згідно рахунку-фактури №6 від 2019-07-18 р.",26008924418040,state,127.08,"ТОВ "" Промінь-Чигирин""",38869131,юридична особа
Самопоміч,"Кіровоградська область, Світловодськ, вулиця Анатолія Солов'яненка, 3",79,2019-10-18,3171,"Оренда будинків і приміщень та експлуатаційні витрати (прибирання, страхування орендованих будинків, охорона, сигналізація, ремонт, вивіз сміття, тощо)",Оренда нерухомості,309912,Центральний офіс,38558365,Україна,"Оплата за відшкодування витрат комунальних послуг за липень 2019р., згідно рахунку-фактури №7 від 2019-08-19 р.",26008924418040,state,96.49,"ТОВ "" Промінь-Чигирин""",38869131,юридична особа
Самопоміч,"Кіровоградська область, Світловодськ, вулиця Анатолія Солов'яненка, 3",79,2019-10-18,3170,"Оренда будинків і приміщень та експлуатаційні витрати (прибирання, страхування орендованих будинків, охорона, сигналізація, ремонт, вивіз сміття, тощо)",Оренда нерухомості,309911,Центральний офіс,38558365,Україна,"Оплата за відшкодування витрат комунальних послуг за березень 2019р., згідно рахунку-фактури №3 від 2019-04-18 р.",26008924418040,state,1245.59,"ТОВ "" Промінь-Чигирин""",38869131,юридична особа
Самопоміч,"Житомирська область, Баранівський район, Баранівка, вулиця Соборна, 5",79,2019-10-18,3166,"Оренда будинків і приміщень та експлуатаційні витрати (прибирання, страхування орендованих будинків, охорона, сигналізація, ремонт, вивіз сміття, тощо)",Оренда нерухомості,309910,Центральний офіс,38558365,Україна,"Оплата за послуги оренди офісного приміщення за липень 2019 р., згідно акту наданих послуг від 2019-07-31 р.",26008924418040,state,300.00,Баранівське споживче товариство,35144290,юридична особа
Самопоміч,"Львівська область, Львів, Галицька площа, 15",79,2019-10-18,3162,"Оренда будинків і приміщень та експлуатаційні витрати (прибирання, страхування орендованих будинків, охорона, сигналізація, ремонт, вивіз сміття, тощо)",Оренда нерухомості,309909,Центральний офіс,38558365,Україна,"101;Г-83-17суб від 09.01.18р.; 38558365,Оплата за оренду приміщень за вересень 2019 р., згідно акту № ОУ-0028041 від 2019-09-30 р. в т.ч. ПДВ 8919.16 грн.",26008924418040,state,53514.95,Управління комунальної власності Департаменту економічного розвитку Львівської міської ради,25558625,юридична особа
Самопоміч,"Львівська область, Пустомитівський район, Зимна Вода, вулиця Гайдамацька, 11",69,2019-10-18,3167,Організація заходів та інші організаційні послуги,Організація заходів та інші організаційні послуги,309657,Центральний офіс,38558365,Україна,"Оплата за послуги організації заходів, згідно акту надання послуг від 7.10.2019 р.",26008924418040,state,8360.00,Ковальчук Лариса Василівна,,фізична особа
Самопоміч,"Львівська область, Пустомитівський район, Зимна Вода, вулиця Гайдамацька, 11",69,2019-10-18,3168,Організація заходів та інші організаційні послуги,Організація заходів та інші організаційні послуги,309656,Центральний офіс,38558365,Україна,"Оплата за послуги організації заходів, згідно акту надання послуг від 2019-10-18 р.",26008924418040,state,4180.00,Ковальчук Лариса Василівна,,фізична особа
Самопоміч,"Дніпропетровська область, Криничанський район, Світлогірське, вулиця Фрунзе",79,2019-10-18,3175,"Оренда будинків і приміщень та експлуатаційні витрати (прибирання, страхування орендованих будинків, охорона, сигналізація, ремонт, вивіз сміття, тощо)",Оренда нерухомості,309655,Центральний офіс,38558365,Україна,"Оплата за оренду нежитлового приміщення за липень і серпень 2019р., згідно акту наданих послуг від 2019-08-31 року",26008924418040,state,2439.11,Заруба Віктор Володимирович,,фізична особа
Самопоміч,"Дніпропетровська область, Криничанський район, Світлогірське, вулиця Фрунзе",79,2019-10-18,3174,"Оренда будинків і приміщень та експлуатаційні витрати (прибирання, страхування орендованих будинків, охорона, сигналізація, ремонт, вивіз сміття, тощо)",Оренда нерухомості,309654,Центральний офіс,38558365,Україна,"Оплата за комунальні послуги за липень і серпень 2019р., згідно акту наданих послуг від 2019-08-31 року",26008924418040,state,1477.62,Заруба Віктор Володимирович,,фізична особа
Самопоміч,"Київ, вулиця Єреванська, 1",70,2019-10-18,TR.1170985_79,Банківські послуги,Інші витрати,309580,Центральний офіс,38558365,Україна,"Плата за розрахункове обслуговування по рахунку № 26006924866928.980 з 2019-10-18 по 2019-10-18 згідно Договору № 2019/КД/291-0048 від 2019-06-18 р, без ПДВ",26006924866928,current,0.80,"АБ ""Укргазбанк""",23697280,юридична особа
Самопоміч,"Київ, вулиця Єреванська, 1",70,2019-10-18,TR.1170985_78,Банківські послуги,Інші витрати,309579,Центральний офіс,38558365,Україна,"Плата за розрахункове обслуговування по рахунку № 26006924866928.980 з 2019-10-18 по 2019-10-18 згідно Договору № 2019/КД/291-0048 від 2019-06-18 р, без ПДВ",26006924866928,current,0.80,"АБ ""Укргазбанк""",23697280,юридична особа
Самопоміч,"Київ, вулиця Єреванська, 1",70,2019-10-18,TR.1170985,Банківські послуги,Інші витрати,309578,Центральний офіс,38558365,Україна,"Плата за розрахункове обслуговування по рахунку № 26006924866928.980 з 2019-10-18 по 2019-10-18 згідно Договору № 2019/КД/291-0048 від 2019-06-18 р, без ПДВ",26006924866928,current,0.80,"АБ ""Укргазбанк""",23697280,юридична особа
Самопоміч,"Київ, вулиця Єреванська, 1",70,2019-10-18,TR.1170985,Банківські послуги,Інші витрати,309577,Центральний офіс,38558365,Україна,"Плата за розрахункове обслуговування в після операційний час по рахунку № 26006924866928.980 з 2019-10-18 по 2019-10-18 згідно Договору № 2019/КД/291-0048 від 2019-06-18 р, без ПДВ",26006924866928,current,0.80,"АБ ""Укргазбанк""",23697280,юридична особа
Самопоміч,"Львівська область, Львів, вулиця Шевченка, 1",79,2019-10-18,3164,"Оренда будинків і приміщень та експлуатаційні витрати (прибирання, страхування орендованих будинків, охорона, сигналізація, ремонт, вивіз сміття, тощо)",Оренда нерухомості,309574,Центральний офіс,38558365,Україна,"Оплата пені, згідно рахунку за пеню від 30.09.19р. по дог. 54512 .",26006924866928,current,175.46,"ТОВ ""Львівенергозбут""",42092130,юридична особа
Самопоміч,"Львівська область, Львів, Галицька площа, 15",79,2019-10-18,3163,"Оренда будинків і приміщень та експлуатаційні витрати (прибирання, страхування орендованих будинків, охорона, сигналізація, ремонт, вивіз сміття, тощо)",Оренда нерухомості,309573,Центральний офіс,38558365,Україна,"Оплата пені, згідно акту № ОУ-0028041 від 2019-09-30 р.",26006924866928,current,3015.41,Управління комунальної власності Департаменту економічного розвитку Львівської міської ради,25558625,юридична особа
Самопоміч,"Сумська область, Шостка, вулиця Садовий бульвар, 9",79,2019-10-18,3183,"Оренда будинків і приміщень та експлуатаційні витрати (прибирання, страхування орендованих будинків, охорона, сигналізація, ремонт, вивіз сміття, тощо)",Оренда нерухомості,309572,Центральний офіс,38558365,Україна,Оплата пені без ПДВ,26006924866928,current,3.55,Управління освіти Шосткинської міської ради,22978663,юридична особа
Самопоміч,"Тернопільська область, Тернопіль, вулиця Вербицького, 4, 2",58,2019-10-18,3165,"Виготовлення друкованих матеріалів (плакатів, листівок, буклетів та інших агітаційних матеріалів)",Друкована агітація,309571,Центральний офіс,38558365,Україна,"Оплата за друк постерів, згідно акту наданих послуг №8 від 28.05.19р. в т.ч. ПДВ 2820.00 грн.",26006924866928,current,16920.00,ТОВ ʼТЕРПРІНТʼ,42698238,юридична особа
Самопоміч,"Київ, вулиця Михайла Грушевського, 1Д",70,2019-10-18,AIO2MN83QY,Банківські послуги,Інші витрати,309570,Центральний офіс,38558365,Україна,"Комiсiя за виконання платежiв в нацiональнiй валютi, згiдно з вiдкритою офертою банку N б/н вiд 2018-04-23 та тарифiв банку, без ПДВ.",26006924866928,current,3.00,"ПАТ КБ ""Приватбанк""",14360570,юридична особа
Самопоміч,"Київ, вулиця Єреванська, 1",70,2019-10-17,TR.1170953_878,Банківські послуги,Інші витрати,309908,Центральний офіс,38558365,Україна,"Плата за розрахункове обслуговування по рахунку № 26008924418040.980 з 2019-09-17 по 2019-09-17 згідно Договору № 2019/КД/291-0048 від 2019-06-18 р, без ПДВ",26008924418040,state,0.80,"АБ ""Укргазбанк""",23697280,юридична особа
Самопоміч,"Київ, вулиця Єреванська, 1",70,2019-10-17,TR.1170953_877,Банківські послуги,Інші витрати,309907,Центральний офіс,38558365,Україна,"Плата за розрахункове обслуговування в після операційний час по рахунку № 26008924418040.980 з 2019-10-17 по 2019-10-17 згідно Договору № 2019/КД/291-0048 від 2019-06-18 р, без ПДВ",26008924418040,state,0.80,"АБ ""Укргазбанк""",23697280,юридична особа
Самопоміч,"Київ, вулиця Єреванська, 1",70,2019-10-17,TR.1170953_876,Банківські послуги,Інші витрати,309906,Центральний офіс,38558365,Україна,"Плата за розрахункове обслуговування в після операційний час по рахунку № 26008924418040.980 з 2019-10-17 по 2019-10-17 згідно Договору № 2019/КД/291-0048 від 2019-06-18 р, без ПДВ",26008924418040,state,0.80,"АБ ""Укргазбанк""",23697280,юридична особа
Самопоміч,"Київ, вулиця Єреванська, 1",70,2019-10-17,TR.1170953_875,Банківські послуги,Інші витрати,309905,Центральний офіс,38558365,Україна,"Плата за розрахункове обслуговування в після операційний час по рахунку № 26008924418040.980 з 2019-10-17 по 2019-10-17 згідно Договору № 2019/КД/291-0048 від 2019-06-18 р, без ПДВ",26008924418040,state,0.80,"АБ ""Укргазбанк""",23697280,юридична особа
Самопоміч,"Київ, вулиця Єреванська, 1",70,2019-10-17,TR.1170953_874,Банківські послуги,Інші витрати,309904,Центральний офіс,38558365,Україна,"Плата за розрахункове обслуговування в після операційний час по рахунку № 26008924418040.980 з 2019-10-17 по 2019-10-17 згідно Договору № 2019/КД/291-0048 від 2019-06-18 р, без ПДВ",26008924418040,state,0.80,"АБ ""Укргазбанк""",23697280,юридична особа
Самопоміч,"Київ, вулиця Єреванська, 1",70,2019-10-17,TR.1170953_873,Банківські послуги,Інші витрати,309903,Центральний офіс,38558365,Україна,"Плата за розрахункове обслуговування в після операційний час по рахунку № 26008924418040.980 з 2019-10-17 по 2019-10-17 згідно Договору № 2019/КД/291-0048 від 2019-06-18 р, без ПДВ",26008924418040,state,0.80,"АБ ""Укргазбанк""",23697280,юридична особа
Самопоміч,"Київ, вулиця Єреванська, 1",70,2019-10-17,TR.1170953_872,Банківські послуги,Інші витрати,309902,Центральний офіс,38558365,Україна,"Плата за розрахункове обслуговування в після операційний час по рахунку № 26008924418040.980 з 2019-10-17 по 2019-10-17 згідно Договору № 2019/КД/291-0048 від 2019-06-18 р, без ПДВ",26008924418040,state,0.80,"АБ ""Укргазбанк""",23697280,юридична особа
Самопоміч,"Київ, вулиця Єреванська, 1",70,2019-10-17,TR.1170953_871,Банківські послуги,Інші витрати,309901,Центральний офіс,38558365,Україна,"Плата за розрахункове обслуговування в після операційний час по рахунку № 26008924418040.980 з 2019-10-17 по 2019-10-17 згідно Договору № 2019/КД/291-0048 від 2019-06-18 р, без ПДВ",26008924418040,state,0.80,"АБ ""Укргазбанк""",23697280,юридична особа
Самопоміч,"Київ, вулиця Єреванська, 1",70,2019-10-17,TR.1170953_870,Банківські послуги,Інші витрати,309900,Центральний офіс,38558365,Україна,"Плата за розрахункове обслуговування в після операційний час по рахунку № 26008924418040.980 з 2019-10-17 по 2019-10-17 згідно Договору № 2019/КД/291-0048 від 2019-06-18 р, без ПДВ",26008924418040,state,0.80,"АБ ""Укргазбанк""",23697280,юридична особа
Самопоміч,"Київ, вулиця Єреванська, 1",70,2019-10-17,TR.1170953_869,Банківські послуги,Інші витрати,309899,Центральний офіс,38558365,Україна,"Плата за розрахункове обслуговування в після операційний час по рахунку № 26008924418040.980 з 2019-10-17 по 2019-10-17 згідно Договору № 2019/КД/291-0048 від 2019-06-18 р, без ПДВ",26008924418040,state,0.80,"АБ ""Укргазбанк""",23697280,юридична особа
Самопоміч,"Київ, вулиця Єреванська, 1",70,2019-10-17,TR.1170953_868,Банківські послуги,Інші витрати,309898,Центральний офіс,38558365,Україна,"Плата за розрахункове обслуговування в після операційний час по рахунку № 26008924418040.980 з 2019-10-17 по 2019-10-17 згідно Договору № 2019/КД/291-0048 від 2019-06-18 р, без ПДВ",26008924418040,state,0.80,"АБ ""Укргазбанк""",23697280,юридична особа
Самопоміч,"Київ, вулиця Єреванська, 1",70,2019-10-17,TR.1170953_867,Банківські послуги,Інші витрати,309897,Центральний офіс,38558365,Україна,"Плата за розрахункове обслуговування в після операційний час по рахунку № 26008924418040.980 з 2019-10-17 по 2019-10-17 згідно Договору № 2019/КД/291-0048 від 2019-06-18 р, без ПДВ",26008924418040,state,0.80,"АБ ""Укргазбанк""",23697280,юридична особа
Самопоміч,"Київ, вулиця Єреванська, 1",70,2019-10-17,TR.1170953_866,Банківські послуги,Інші витрати,309896,Центральний офіс,38558365,Україна,"Плата за розрахункове обслуговування в після операційний час по рахунку № 26008924418040.980 з 2019-10-17 по 2019-10-17 згідно Договору № 2019/КД/291-0048 від 2019-06-18 р, без ПДВ",26008924418040,state,0.80,"АБ ""Укргазбанк""",23697280,юридична особа
Самопоміч,"Київ, вулиця Єреванська, 1",70,2019-10-17,TR.1170953_865,Банківські послуги,Інші витрати,309895,Центральний офіс,38558365,Україна,"Плата за розрахункове обслуговування в після операційний час по рахунку № 26008924418040.980 з 2019-10-17 по 2019-10-17 згідно Договору № 2019/КД/291-0048 від 2019-06-18 р, без ПДВ",26008924418040,state,0.80,"АБ ""Укргазбанк""",23697280,юридична особа
Самопоміч,"Київ, вулиця Єреванська, 1",70,2019-10-17,TR.1170953_864,Банківські послуги,Інші витрати,309894,Центральний офіс,38558365,Україна,"Плата за розрахункове обслуговування в після операційний час по рахунку № 26008924418040.980 з 2019-10-17 по 2019-10-17 згідно Договору № 2019/КД/291-0048 від 2019-06-18 р, без ПДВ",26008924418040,state,0.80,"АБ ""Укргазбанк""",23697280,юридична особа
Самопоміч,"Київ, вулиця Єреванська, 1",70,2019-10-17,TR.1170953_863,Банківські послуги,Інші витрати,309893,Центральний офіс,38558365,Україна,"Плата за розрахункове обслуговування в після операційний час по рахунку № 26008924418040.980 з 2019-10-17 по 2019-10-17 згідно Договору № 2019/КД/291-0048 від 2019-06-18 р, без ПДВ",26008924418040,state,0.80,"АБ ""Укргазбанк""",23697280,юридична особа
Самопоміч,"Київ, вулиця Єреванська, 1",70,2019-10-17,TR.1170953_862,Банківські послуги,Інші витрати,309892,Центральний офіс,38558365,Україна,"Плата за розрахункове обслуговування в після операційний час по рахунку № 26008924418040.980 з 2019-10-17 по 2019-10-17 згідно Договору № 2019/КД/291-0048 від 2019-06-18 р, без ПДВ",26008924418040,state,0.80,"АБ ""Укргазбанк""",23697280,юридична особа
Самопоміч,"Київ, вулиця Єреванська, 1",70,2019-10-17,TR.1170953_861,Банківські послуги,Інші витрати,309891,Центральний офіс,38558365,Україна,"Плата за розрахункове обслуговування в після операційний час по рахунку № 26008924418040.980 з 2019-10-17 по 2019-10-17 згідно Договору № 2019/КД/291-0048 від 2019-06-18 р, без ПДВ",26008924418040,state,0.80,"АБ ""Укргазбанк""",23697280,юридична особа
Самопоміч,"Київ, вулиця Єреванська, 1",70,2019-10-17,TR.1170953_860,Банківські послуги,Інші витрати,309890,Центральний офіс,38558365,Україна,"Плата за розрахункове обслуговування в після операційний час по рахунку № 26008924418040.980 з 2019-10-17 по 2019-10-17 згідно Договору № 2019/КД/291-0048 від 2019-06-18 р, без ПДВ",26008924418040,state,0.80,"АБ ""Укргазбанк""",23697280,юридична особа
Самопоміч,"Київ, вулиця Єреванська, 1",70,2019-10-17,TR.1170953_859,Банківські послуги,Інші витрати,309889,Центральний офіс,38558365,Україна,"Плата за розрахункове обслуговування в після операційний час по рахунку № 26008924418040.980 з 2019-10-17 по 2019-10-17 згідно Договору № 2019/КД/291-0048 від 2019-06-18 р, без ПДВ",26008924418040,state,0.80,"АБ ""Укргазбанк""",23697280,юридична особа
Самопоміч,"Київ, вулиця Єреванська, 1",70,2019-10-17,TR.1170953_858,Банківські послуги,Інші витрати,309888,Центральний офіс,38558365,Україна,"Плата за розрахункове обслуговування в після операційний час по рахунку № 26008924418040.980 з 2019-10-17 по 2019-10-17 згідно Договору № 2019/КД/291-0048 від 2019-06-18 р, без ПДВ",26008924418040,state,0.80,"АБ ""Укргазбанк""",23697280,юридична особа
Самопоміч,"Київ, вулиця Єреванська, 1",70,2019-10-17,TR.1170953_857,Банківські послуги,Інші витрати,309887,Центральний офіс,38558365,Україна,"Плата за розрахункове обслуговування в після операційний час по рахунку № 26008924418040.980 з 2019-10-17 по 2019-10-17 згідно Договору № 2019/КД/291-0048 від 2019-06-18 р, без ПДВ",26008924418040,state,0.80,"АБ ""Укргазбанк""",23697280,юридична особа
Самопоміч,"Київ, вулиця Єреванська, 1",70,2019-10-17,TR.1170953_856,Банківські послуги,Інші витрати,309886,Центральний офіс,38558365,Україна,"Плата за розрахункове обслуговування в після операційний час по рахунку № 26008924418040.980 з 2019-10-17 по 2019-10-17 згідно Договору № 2019/КД/291-0048 від 2019-06-18 р, без ПДВ",26008924418040,state,0.80,"АБ ""Укргазбанк""",23697280,юридична особа
Самопоміч,"Київ, вулиця Єреванська, 1",70,2019-10-17,TR.1170953_855,Банківські послуги,Інші витрати,309885,Центральний офіс,38558365,Україна,"Плата за розрахункове обслуговування в після операційний час по рахунку № 26008924418040.980 з 2019-10-17 по 2019-10-17 згідно Договору № 2019/КД/291-0048 від 2019-06-18 р, без ПДВ",26008924418040,state,0.80,"АБ ""Укргазбанк""",23697280,юридична особа
Самопоміч,"Київ, вулиця Єреванська, 1",70,2019-10-17,TR.1170953_854,Банківські послуги,Інші витрати,309884,Центральний офіс,38558365,Україна,"Плата за розрахункове обслуговування в після операційний час по рахунку № 26008924418040.980 з 2019-10-17 по 2019-10-17 згідно Договору № 2019/КД/291-0048 від 2019-06-18 р, без ПДВ",26008924418040,state,0.80,"АБ ""Укргазбанк""",23697280,юридична особа
Самопоміч,"Київ, вулиця Єреванська, 1",70,2019-10-17,TR.1170953_853,Банківські послуги,Інші витрати,309883,Центральний офіс,38558365,Україна,"Плата за розрахункове обслуговування в після операційний час по рахунку № 26008924418040.980 з 2019-10-17 по 2019-10-17 згідно Договору № 2019/КД/291-0048 від 2019-06-18 р, без ПДВ",26008924418040,state,0.80,"АБ ""Укргазбанк""",23697280,юридична особа
Самопоміч,"Київ, вулиця Єреванська, 1",70,2019-10-17,TR.1170953_852,Банківські послуги,Інші витрати,309882,Центральний офіс,38558365,Україна,"Плата за розрахункове обслуговування в після операційний час по рахунку № 26008924418040.980 з 2019-10-17 по 2019-10-17 згідно Договору № 2019/КД/291-0048 від 2019-06-18 р, без ПДВ",26008924418040,state,0.80,"АБ ""Укргазбанк""",23697280,юридична особа
Самопоміч,"Київ, вулиця Єреванська, 1",70,2019-10-17,TR.1170953_851,Банківські послуги,Інші витрати,309881,Центральний офіс,38558365,Україна,"Плата за розрахункове обслуговування в після операційний час по рахунку № 26008924418040.980 з 2019-10-17 по 2019-10-17 згідно Договору № 2019/КД/291-0048 від 2019-06-18 р, без ПДВ",26008924418040,state,0.80,"АБ ""Укргазбанк""",23697280,юридична особа
Самопоміч,"Київ, вулиця Єреванська, 1",70,2019-10-17,TR.1170953_850,Банківські послуги,Інші витрати,309880,Центральний офіс,38558365,Україна,"Плата за розрахункове обслуговування в після операційний час по рахунку № 26008924418040.980 з 2019-10-17 по 2019-10-17 згідно Договору № 2019/КД/291-0048 від 2019-06-18 р, без ПДВ",26008924418040,state,0.80,"АБ ""Укргазбанк""",23697280,юридична особа
Самопоміч,"Київ, вулиця Єреванська, 1",70,2019-10-17,TR.1170953_849,Банківські послуги,Інші витрати,309879,Центральний офіс,38558365,Україна,"Плата за розрахункове обслуговування в після операційний час по рахунку № 26008924418040.980 з 2019-10-17 по 2019-10-17 згідно Договору № 2019/КД/291-0048 від 2019-06-18 р, без ПДВ",26008924418040,state,0.80,"АБ ""Укргазбанк""",23697280,юридична особа
Самопоміч,"Київ, вулиця Єреванська, 1",70,2019-10-17,TR.1170953_848,Банківські послуги,Інші витрати,309878,Центральний офіс,38558365,Україна,"Плата за розрахункове обслуговування в після операційний час по рахунку № 26008924418040.980 з 2019-10-17 по 2019-10-17 згідно Договору № 2019/КД/291-0048 від 2019-06-18 р, без ПДВ",26008924418040,state,0.80,"АБ ""Укргазбанк""",23697280,юридична особа
Самопоміч,"Київ, вулиця Єреванська, 1",70,2019-10-17,TR.1170953_847,Банківські послуги,Інші витрати,309877,Центральний офіс,38558365,Україна,"Плата за розрахункове обслуговування в після операційний час по рахунку № 26008924418040.980 з 2019-10-17 по 2019-10-17 згідно Договору № 2019/КД/291-0048 від 2019-06-18 р, без ПДВ",26008924418040,state,0.80,"АБ ""Укргазбанк""",23697280,юридична особа
Самопоміч,"Київ, вулиця Єреванська, 1",70,2019-10-17,TR.1170953_846,Банківські послуги,Інші витрати,309876,Центральний офіс,38558365,Україна,"Плата за розрахункове обслуговування в після операційний час по рахунку № 26008924418040.980 з 2019-10-17 по 2019-10-17 згідно Договору № 2019/КД/291-0048 від 2019-06-18 р, без ПДВ",26008924418040,state,0.80,"АБ ""Укргазбанк""",23697280,юридична особа
Самопоміч,"Київ, вулиця Єреванська, 1",70,2019-10-17,TR.1170953_845,Банківські послуги,Інші витрати,309875,Центральний офіс,38558365,Україна,"Плата за розрахункове обслуговування в після операційний час по рахунку № 26008924418040.980 з 2019-10-17 по 2019-10-17 згідно Договору № 2019/КД/291-0048 від 2019-06-18 р, без ПДВ",26008924418040,state,0.80,"АБ ""Укргазбанк""",23697280,юридична особа
Самопоміч,"Київ, вулиця Парково-Сирецька, 23",72,2019-10-17,3128,"Придбання, ремонт офісної техніки та програмного забезпечення (Бухгалтерські програми, Ліга.закон, домени)",Придбання офісної техніки та програмного забезпечення,309874,Центральний офіс,38558365,Україна,"Оплата послуг абонентського обслуговування за червень 2019 р.,згідно акту про надання інформаційних послуг від 2019-06-30 р.",26008924418040,state,13628.00,"ТОВ ""ЛІГА ЗАКОН 1""",37855479,юридична особа
Самопоміч,"Київ, вулиця Парково-Сирецька, 23",72,2019-10-17,3130,"Придбання, ремонт офісної техніки та програмного забезпечення (Бухгалтерські програми, Ліга.закон, домени)",Придбання офісної техніки та програмного забезпечення,309873,Центральний офіс,38558365,Україна,"Оплата послуг абонентського обслуговування за серпень 2019 р.,згідно акту про надання інформаційних послуг від 2019-08-31 р.",26008924418040,state,13628.00,"ТОВ ""ЛІГА ЗАКОН 1""",37855479,юридична особа
Самопоміч,"Київ, вулиця Парково-Сирецька, 23",72,2019-10-17,3129,"Придбання, ремонт офісної техніки та програмного забезпечення (Бухгалтерські програми, Ліга.закон, домени)",Придбання офісної техніки та програмного забезпечення,309872,Центральний офіс,38558365,Україна,"Оплата послуг абонентського обслуговування за липень 2019 р.,згідно акту про надання інформаційних послуг від 2019-07-31 р.",26008924418040,state,13628.00,"ТОВ ""ЛІГА ЗАКОН 1""",37855479,юридична особа
Самопоміч,"Сумська область, Шостка, вулиця Садовий бульвар, 9",79,2019-10-17,3156,"Оренда будинків і приміщень та експлуатаційні витрати (прибирання, страхування орендованих будинків, охорона, сигналізація, ремонт, вивіз сміття, тощо)",Оренда нерухомості,309871,Центральний офіс,38558365,Україна,"Оплата комунальних послуг за липень-серпень 2019 р., згідно рахунку №169 від 2019-10-04 року",26008924418040,state,221.61,Управління освіти Шосткинської міської ради,22978663,юридична особа
Самопоміч,"Львівська область, Львів, вулиця Миколи Коперника, 22",79,2019-10-17,3148,"Оренда будинків і приміщень та експлуатаційні витрати (прибирання, страхування орендованих будинків, охорона, сигналізація, ремонт, вивіз сміття, тощо)",Оренда нерухомості,309870,Центральний офіс,38558365,Україна,"Оплата за утримання будинків, споруд та прибудинкової території за серпень 2019 р., згідно рахунку №6379 від 2019-08-31 р. в т.ч. ПДВ 31.82 грн.",26008924418040,state,190.92,"ЛКП ""Цитадель-Центр""",20773129,юридична особа
Самопоміч,"Львівська область, Львів, вулиця Миколи Коперника, 22",79,2019-10-17,3147,"Оренда будинків і приміщень та експлуатаційні витрати (прибирання, страхування орендованих будинків, охорона, сигналізація, ремонт, вивіз сміття, тощо)",Оренда нерухомості,309869,Центральний офіс,38558365,Україна,"Оплата за утримання будинків, споруд та прибудинкової території за липень 2019 р., згідно акту наданих послуг від 2019-07-31 р. в т.ч. ПДВ 31.82 грн.",26008924418040,state,190.92,"ЛКП ""Цитадель-Центр""",20773129,юридична особа
Самопоміч,"Львівська область, Львів, вулиця Миколи Коперника, 22",79,2019-10-17,3149,"Оренда будинків і приміщень та експлуатаційні витрати (прибирання, страхування орендованих будинків, охорона, сигналізація, ремонт, вивіз сміття, тощо)",Оренда нерухомості,309868,Центральний офіс,38558365,Україна,"Оплата за утримання будинків, споруд та прибудинкової території за вересень 2019 р., згідно акту наданих послуг від 2019-09-30 р. в т.ч. ПДВ 31.82 грн.",26008924418040,state,190.92,"ЛКП ""Цитадель-Центр""",20773129,юридична особа
Самопоміч,"Київ, вулиця Смоленська, 31/33",76,2019-10-17,3160,Послуги зв’язку,Послуги зв’язку,309867,Центральний офіс,38558365,Україна,"Оплата за телекомунікаційні послуги за серпень і вересень 2019 р., згідно рахунку №3642418*3967393 від 2019-10-01р. в т.ч. ПДВ 32.00 грн.",26008924418040,state,192.00,"ПрАТ ""Датагруп""",31720260,юридична особа
Самопоміч,"Київ, вулиця Магнітогорська, 1",76,2019-10-17,3125,Послуги зв’язку,Послуги зв’язку,309866,Центральний офіс,38558365,Україна,"Оплата за телекомунікаційні послуги за серпень 19р.до дог. №192835/17 від 28.09.17 р., зг. акту наданих послуг №109902 від 2019-08-31 р. в т.ч. ПДВ 50.00 грн.",26008924418040,state,300.00,"ТОВ ""Воля-кабель""",30777913,юридична особа
Самопоміч,"Київ, вулиця Магнітогорська, 1",76,2019-10-17,3126,Послуги зв’язку,Послуги зв’язку,309865,Центральний офіс,38558365,Україна,"Оплата за телекомунікаційні послуги за вересень 19р.до дог. №192835/17 від 28.09.17 р., зг. акту наданих послуг №136224 від 2019-09-30 р. в т.ч. ПДВ 50.00 грн.",26008924418040,state,300.00,"ТОВ ""Воля-кабель""",30777913,юридична особа
Самопоміч,"Львівська область, Львів, вулиця Джохара Дудаєва, 19, 1",72,2019-10-17,3133,"Придбання, ремонт офісної техніки та програмного забезпечення (Бухгалтерські програми, Ліга.закон, домени)",Придбання офісної техніки та програмного забезпечення,309864,Центральний офіс,38558365,Україна,"Оплата за програмну продукцію з технічною підтримкою, згідно акту №2334 від 2019-09-30р.",26008924418040,state,11344.41,ТОВ ʼМАКЛАУДʼ,40231242,юридична особа
Самопоміч,"Київ, вулиця Лугова, 12",72,2019-10-17,3131,"Придбання, ремонт офісної техніки та програмного забезпечення (Бухгалтерські програми, Ліга.закон, домени)",Придбання офісної техніки та програмного забезпечення,309863,Центральний офіс,38558365,Україна,"Оплата за посл. у сфері інформатизації щодо розміщення користувацької інформ. за серпень 19 р.,зг. акту над.посл. №6002752 від 31.08.19р.в т.ч. ПДВ 4324.42 грн.",26008924418040,state,25946.50,ТОВ 'Софтпром Солюшинз',38282502,юридична особа
Самопоміч,"Київ, вулиця Лугова, 12",72,2019-10-17,3132,"Придбання, ремонт офісної техніки та програмного забезпечення (Бухгалтерські програми, Ліга.закон, домени)",Придбання офісної техніки та програмного забезпечення,309862,Центральний офіс,38558365,Україна,"Оплата за посл. у сфері інформатизації щодо розміщення користувацької інформ. за вересень19 р.,зг. акту над.посл. №6003133 від 30.09.19р.в т.ч. ПДВ 4250.50 грн.",26008924418040,state,25502.98,ТОВ 'Софтпром Солюшинз',38282502,юридична особа
Самопоміч,"Львівська область, Львів, площа Ринок, 1",78,2019-10-17,3161,Оренда обладнання та технічних засобів,Оренда обладнання та технічних засобів,309861,Центральний офіс,38558365,Україна,"Оплата за оренду терміналу та сканера, згідно рахунку на оплату № 5336 від 2019-09-30 р. в т.ч. ПДВ 333.81 грн.",26008924418040,state,2002.79,"ЛКП ""Міський центр інформаційних технологій""",23948670,юридична особа
Самопоміч,"Сумська область, Шостка, вулиця Садовий бульвар, 14",79,2019-10-17,3155,"Оренда будинків і приміщень та експлуатаційні витрати (прибирання, страхування орендованих будинків, охорона, сигналізація, ремонт, вивіз сміття, тощо)",Оренда нерухомості,309860,Центральний офіс,38558365,Україна,"Оплата за оренду нежитлового приміщення усерпні 2019 р., згідно акту виконаних робіт від 2019-08-31 р. в т.ч. ПДВ 23.34 грн.",26008924418040,state,140.04,Виконавчий комітет Шосткинської міської ради,04057994,юридична особа
Самопоміч,"Закарпатська область, Хуст, вулиця Карпатської Січі, 41",79,2019-10-17,3152,"Оренда будинків і приміщень та експлуатаційні витрати (прибирання, страхування орендованих будинків, охорона, сигналізація, ремонт, вивіз сміття, тощо)",Оренда нерухомості,309859,Центральний офіс,38558365,Україна,"Оплата за оренду нежитлового приміщення у серпні 2019 р., згідно акту наданих послуг від 2019-08-31 р.",26008924418040,state,3250.00,"ПрАТ ""Служба побуту""",03054108,юридична особа
Самопоміч,"Львівська область, Львів, вулиця Академіка Андрія Сахарова, 42",79,2019-10-17,3139,"Оренда будинків і приміщень та експлуатаційні витрати (прибирання, страхування орендованих будинків, охорона, сигналізація, ремонт, вивіз сміття, тощо)",Оренда нерухомості,309858,Центральний офіс,38558365,Україна,"Оплата за оренду нежитлового приміщення у серпні 2019р., згідно акту виконаних робіт від 2019-08-31 р. в т.ч. ПДВ 367.50 грн.",26008924418040,state,2205.00,"ПАТ ""Промбудприлад""",31588943,юридична особа
Самопоміч,"Закарпатська область, Хуст, вулиця Карпатської Січі, 41",79,2019-10-17,3153,"Оренда будинків і приміщень та експлуатаційні витрати (прибирання, страхування орендованих будинків, охорона, сигналізація, ремонт, вивіз сміття, тощо)",Оренда нерухомості,309857,Центральний офіс,38558365,Україна,"Оплата за оренду нежитлового приміщення у липні 2019 р., згідно акту наданих послуг від 2019-07-31 р.",26008924418040,state,3250.00,"ПрАТ ""Служба побуту""",03054108,юридична особа
Самопоміч,"Львівська область, Львів, вулиця Академіка Андрія Сахарова, 42",79,2019-10-17,3138,"Оренда будинків і приміщень та експлуатаційні витрати (прибирання, страхування орендованих будинків, охорона, сигналізація, ремонт, вивіз сміття, тощо)",Оренда нерухомості,309856,Центральний офіс,38558365,Україна,"Оплата за оренду нежитлового приміщення у липні 2019р., згідно акту виконаних робіт від 2019-07-31 р. в т.ч. ПДВ 367.50 грн.",26008924418040,state,2205.00,"ПАТ ""Промбудприлад""",31588943,юридична особа
Самопоміч,"Львівська область, Львів, вулиця Академіка Андрія Сахарова, 42",79,2019-10-17,3140,"Оренда будинків і приміщень та експлуатаційні витрати (прибирання, страхування орендованих будинків, охорона, сигналізація, ремонт, вивіз сміття, тощо)",Оренда нерухомості,309855,Центральний офіс,38558365,Україна,"Оплата за оренду нежитлового приміщення у вересні 2019р., згідно акту виконаних робіт від 2019-09-30 р. в т.ч. ПДВ 367.50 грн.",26008924418040,state,2205.00,"ПАТ ""Промбудприлад""",31588943,юридична особа
Самопоміч,"Львівська область, Турківський район, Турка, вулиця Січових Стрільців, 64",79,2019-10-17,3127,"Оренда будинків і приміщень та експлуатаційні витрати (прибирання, страхування орендованих будинків, охорона, сигналізація, ремонт, вивіз сміття, тощо)",Оренда нерухомості,309854,Центральний офіс,38558365,Україна,"Оплата за оренду нежитлового приміщення за серпень 2019 р., згідно акту наданих послуг від 2019-08-31 р.",26008924418040,state,927.59,Відділ культури і туризму Турківської РДА,26057411,юридична особа
Самопоміч,"Львівська область, Львів, вулиця Зелена, 151",77,2019-10-17,3142,"Оренда, ремонт та обслуговування автомобілів","Оренда, ремонт та обслуговування автомобілів",309853,Центральний офіс,38558365,Україна,"Оплата за оренду легкового автомобіля TOYOTA за серпень 2019 року, згідно акту наданих послуг №421 від 2019-08-31 року в т.ч. ПДВ 200.00 грн.",26008924418040,state,1200.00,"ПАТ ""Південьзахіделектромережбуд""",00114086,юридична особа
Самопоміч,"Львівська область, Львів, вулиця Зелена, 151",77,2019-10-17,3141,"Оренда, ремонт та обслуговування автомобілів","Оренда, ремонт та обслуговування автомобілів",309852,Центральний офіс,38558365,Україна,"Оплата за оренду легкового автомобіля TOYOTA за серпень 2019 року, згідно акту наданих послуг №420 від 2019-08-31 року в т.ч. ПДВ 200.00 грн.",26008924418040,state,1200.00,"ПАТ ""Південьзахіделектромережбуд""",00114086,юридична особа
Самопоміч,"Львівська область, Львів, вулиця Зелена, 151",77,2019-10-17,3143,"Оренда, ремонт та обслуговування автомобілів","Оренда, ремонт та обслуговування автомобілів",309851,Центральний офіс,38558365,Україна,"Оплата за оренду легкового автомобіля TOYOTA за вересень 2019 року, згідно акту наданих послуг №459 від 2019-09-30 року в т.ч. ПДВ 200.00 грн.",26008924418040,state,1200.00,"ПАТ ""Південьзахіделектромережбуд""",00114086,юридична особа
Самопоміч,"Київ, вулиця Дегтярівська, 53",76,2019-10-17,3145,Послуги зв’язку,Послуги зв’язку,309850,Центральний офіс,38558365,Україна,"Оплата за надані послуги мобільного звʼязку за вересень 2019 р., згідно рахунку № 37-20516273 від 2019-09-30 р. в т.ч. ПДВ 1134,82 грн.",26008924418040,state,7234.50,"ПрАТ ""Київстар""",21673832,юридична особа
Самопоміч,"Київ, вулиця Дегтярівська, 53",76,2019-10-17,3146,Послуги зв’язку,Послуги зв’язку,309849,Центральний офіс,38558365,Україна,"Оплата за надані послуги мобільного звʼязку за вересень 2019 р., згідно рахунку № 26-20516275 від 2019-09-30 р. в т.ч. ПДВ 166.50 грн.",26008924418040,state,999.00,"ПрАТ ""Київстар""",21673832,юридична особа
Самопоміч,"Львівська область, Львів, вулиця Шевченка, 1",79,2019-10-17,3144,"Оренда будинків і приміщень та експлуатаційні витрати (прибирання, страхування орендованих будинків, охорона, сигналізація, ремонт, вивіз сміття, тощо)",Оренда нерухомості,309848,Центральний офіс,38558365,Україна,"Оплата за електричну енергію за вересень 2019 р., згідно акту наданих послуг від 2019-09-30 р. в т.ч. ПДВ 181.38 грн.",26008924418040,state,1088.26,"ТОВ ""Львівенергозбут""",42092130,юридична особа
Самопоміч,"Сумська область, Шостка, вулиця Садовий бульвар, 9",79,2019-10-17,3157,"Оренда будинків і приміщень та експлуатаційні витрати (прибирання, страхування орендованих будинків, охорона, сигналізація, ремонт, вивіз сміття, тощо)",Оренда нерухомості,309847,Центральний офіс,38558365,Україна,"Оплата експлуатаційних послуг за січень-серпень 2019 р., згідно рахунку №151 від 2019-09-02 року",26008924418040,state,9.49,Управління освіти Шосткинської міської ради,22978663,юридична особа
Самопоміч,"Тернопільська область, Тернопіль, вулиця Текстильна, 28",82,2019-10-17,3158,"Гонорари, в тому числі за надані консультаційні послуги","Гонорари, в тому числі за надані консультаційні послуги",309846,Центральний офіс,38558365,Україна,"Оплата винагороди повіреному за виконання доручення, згідно акту наданих послуг № 661 від 2019-09-30 р. в т.ч. ПДВ 1222.89 грн.",26008924418040,state,7337.34,"ТОВ ""ПОДІЛЛЯ-ТЕР""",36829762,юридична особа
Самопоміч,"Львівська область, Львів, вулиця Джерельна, 75",68,2019-10-17,3134,Соцдослідження,"Гонорари, в тому числі за надані консультаційні послуги",309845,Центральний офіс,38558365,Україна,"Опл. за організацію соц. дослідження на території м. Львова (вибірка 1200осіб), згідно акту наданих послуг №25 від 2019-10-16 р.",26008924418040,state,188000.00,ТОВ ʼКонсалтингова компанія ʼФАМАʼ,41664187,юридична особа
Самопоміч,"Івано-Франківська область, Івано-Франківськ, вулиця Незалежності, 5",79,2019-10-17,3154,"Оренда будинків і приміщень та експлуатаційні витрати (прибирання, страхування орендованих будинків, охорона, сигналізація, ремонт, вивіз сміття, тощо)",Оренда нерухомості,309653,Центральний офіс,38558365,Україна,"Оплата за оренду приміщення за серпень 2019 р., згідно акту наданих послуг від 2019-08-31 р.",26008924418040,state,1400.00,Михайлюк Лілія Ярославівна,,фізична особа
Самопоміч,"Львівська область, Яворівський район, Бірки, вулиця Брюховицька, 26",75,2019-10-17,3137,Поштові послуги та поширення друкованих матеріалів,Поштові послуги та поширення друкованих матеріалів,309652,Центральний офіс,38558365,Україна,"Оплата за користувацький супровід системи , згідно акту наданих послуг від 2019-07-31 р.",26008924418040,state,25000.00,Пасемко Ігор Степанович,,фізична особа
Самопоміч,"Львівська область, Яворівський район, Бірки, вулиця Брюховицька, 26",75,2019-10-17,3135,Поштові послуги та поширення друкованих матеріалів,Поштові послуги та поширення друкованих матеріалів,309651,Центральний офіс,38558365,Україна,"Оплата за користувацький супровід системи , згідно акту наданих послуг від 2019-05-31 р.",26008924418040,state,25000.00,Пасемко Ігор Степанович,,фізична особа
Самопоміч,"Львівська область, Яворівський район, Бірки, вулиця Брюховицька, 26",75,2019-10-17,3136,Поштові послуги та поширення друкованих матеріалів,Поштові послуги та поширення друкованих матеріалів,309650,Центральний офіс,38558365,Україна,"Оплата за користувацький супровід системи , згідно акту наданих послуг від 2019-06-30 р.",26008924418040,state,25000.00,Пасемко Ігор Степанович,,фізична особа
Самопоміч,"Тернопільська область, Тернопіль, проспект Злуки, 5, 91",58,2019-10-17,3159,"Виготовлення друкованих матеріалів (плакатів, листівок, буклетів та інших агітаційних матеріалів)",Друкована агітація,309649,Центральний офіс,38558365,Україна,"Оплата за друк газети ʼОбʼєднання ʼСАМОПОМІЧʼ 148 тис. шт., згідно акту надання послуг №67 від 2019-09-30р.",26008924418040,state,59200.00,Луцишин-Кобилянська Марія Володимирівна,,фізична особа
Самопоміч,"Дніпропетровська область, Дніпровський район, Дніпро́",76,2019-10-17,3151,Послуги зв’язку,Послуги зв’язку,309648,Центральний офіс,38558365,Україна,"Оплата за доступ до мережі інтернет у серпні 2019р., згідно акту надання послуг №349 від 31.08.19р.",26008924418040,state,760.00,Шапоренко Євген Миколайович,,фізична особа
Самопоміч,"Дніпропетровська область, Дніпровський район, Дніпро́",76,2019-10-17,3150,Послуги зв’язку,Послуги зв’язку,309647,Центральний офіс,38558365,Україна,"Оплата за доступ до мережі інтернет у липні 2019р., згідно акту надання послуг №298 від 31.07.19р.",26008924418040,state,760.00,Шапоренко Євген Миколайович,,фізична особа
Самопоміч,"Київ, вулиця Єреванська, 1",70,2019-10-17,TR.1170985_77,Банківські послуги,Інші витрати,309569,Центральний офіс,38558365,Україна,"Плата за розрахункове обслуговування по рахунку № 26006924866928.980 з 2019-10-17 по 2019-10-17 згідно Договору № 2019/КД/291-0048 від 2019-06-18 р, без ПДВ",26006924866928,current,0.80,"АБ ""Укргазбанк""",23697280,юридична особа
Самопоміч,"Київ, вулиця Єреванська, 1",70,2019-10-17,TR.1170985_76,Банківські послуги,Інші витрати,309568,Центральний офіс,38558365,Україна,"Плата за розрахункове обслуговування по рахунку № 26006924866928.980 з 2019-10-17 по 2019-10-17 згідно Договору № 2019/КД/291-0048 від 2019-06-18 р, без ПДВ",26006924866928,current,0.80,"АБ ""Укргазбанк""",23697280,юридична особа
Самопоміч,"Київ, вулиця Єреванська, 1",70,2019-10-17,TR.1170985,Банківські послуги,Інші витрати,309567,Центральний офіс,38558365,Україна,"Плата за розрахункове обслуговування по рахунку № 26006924866928.980 з 2019-10-17 по 2019-10-17 згідно Договору № 2019/КД/291-0048 від 2019-06-18 р, без ПДВ",26006924866928,current,0.80,"АБ ""Укргазбанк""",23697280,юридична особа
Самопоміч,"Львівська область, Львів, вулиця Михайла Грушевського, 17",58,2019-10-17,3123,"Виготовлення друкованих матеріалів (плакатів, листівок, буклетів та інших агітаційних матеріалів)",Друкована агітація,309566,Центральний офіс,38558365,Україна,"Оплата за ПВХ з друком, згідно видаткової накладної № 1128 від 2019-06-04 р. в т.ч. ПДВ 198.00 грн.",26006924866928,current,1188.00,"ТОВ ""Формат-Захід""",34462135,юридична особа
Самопоміч,"Львівська область, Львів, вулиця Михайла Грушевського, 17",58,2019-10-17,3122,"Виготовлення друкованих матеріалів (плакатів, листівок, буклетів та інших агітаційних матеріалів)",Друкована агітація,309565,Центральний офіс,38558365,Україна,"Оплата за наклейки з друком, згідно видаткової накладної № 915 від 2019-05-10 р. в т.ч. ПДВ 90.00 грн.",26006924866928,current,540.00,"ТОВ ""Формат-Захід""",34462135,юридична особа
Самопоміч,"Львівська область, Львів, вулиця Михайла Грушевського, 17",58,2019-10-17,3124,"Виготовлення друкованих матеріалів (плакатів, листівок, буклетів та інших агітаційних матеріалів)",Друкована агітація,309564,Центральний офіс,38558365,Україна,"Оплата за листівки та інше, згідно видаткової накладної № 1440 від 2019-07-10 р. в т.ч. ПДВ 237.32 грн.",26006924866928,current,1423.91,"ТОВ ""Формат-Захід""",34462135,юридична особа
Самопоміч,"Київ, вулиця Турівська, 12",62,2019-10-16,366,Сплата ЄСВ,Податкові платежі,310186,Київська міська організація,39842314,Київ,201;;;ЄСВ ВIД ЗАРПЛАТИ ЗА ЖОВТЕНЬ 2019Р.,26005056218695,current,250.00,ДПІ у Подільському районі ГУ ДФС у м. Києві,39467012,юридична особа
Самопоміч,"Київ, вулиця Межигірська, 25",61,2019-10-16,365,Військовий збір,Податкові платежі,310175,Київська міська організація,39842314,Київ,ВIЙСЬКОВИЙ ЗБIР ВIД ЗАРПЛАТИ ЗА ЖОВТЕНЬ 2019Р.,26005056218695,current,20.00,УДКСУ у Подільському районі м. Києва,37975298,юридична особа
Самопоміч,"Київ, вулиця Межигірська, 25",63,2019-10-16,367,Податок на доходи,Податкові платежі,310174,Київська міська організація,39842314,Київ,ПДФО ВIД ЗАРПЛАТИ ЗА ЖОВТЕНЬ 2019 Р.,26005056218695,current,200.00,УДКСУ у Подільському районі м. Києва,37975298,юридична особа
Самопоміч,"Київ, вулиця Михайла Грушевського, 1Д",70,2019-10-16,364,Банківські послуги,Інші витрати,310144,Київська міська організація,39842314,Київ,Комiсiя РКО вiд зарплати за жовтень 2019р.,26005056218695,current,2.25,"ПАТ КБ ""Приватбанк""",14360570,юридична особа
Самопоміч,"Київ, вулиця Михайла Грушевського, 1Д",70,2019-10-16,AGO2MCMPBY,Банківські послуги,Інші витрати,310143,Київська міська організація,39842314,Київ,"Комiсiя за виконання платежiв в нацiональнiй валютi, згiдно з вiдкритою офертою банку N б/н вiд 2017-10-19 та тарифiв банку, без ПДВ.",26005056218695,current,3.00,"ПАТ КБ ""Приватбанк""",14360570,юридична особа
Самопоміч,"Київ, вулиця Михайла Грушевського, 1Д",70,2019-10-16,AGO2MCMM9Y,Банківські послуги,Інші витрати,310142,Київська міська організація,39842314,Київ,"Комiсiя за виконання платежiв в нацiональнiй валютi, згiдно з вiдкритою офертою банку N б/н вiд 2017-10-19 та тарифiв банку, без ПДВ.",26005056218695,current,3.00,"ПАТ КБ ""Приватбанк""",14360570,юридична особа
Самопоміч,"Київ, вулиця Михайла Грушевського, 1Д",70,2019-10-16,AGO2MCMNIY,Банківські послуги,Інші витрати,310141,Київська міська організація,39842314,Київ,"Комiсiя за виконання платежiв в нацiональнiй валютi, згiдно з вiдкритою офертою банку N б/н вiд 2017-10-19 та тарифiв банку, без ПДВ.",26005056218695,current,3.00,"ПАТ КБ ""Приватбанк""",14360570,юридична особа
Самопоміч,Київ,84,2019-10-16,363,"Заробітна плата, премії","Заробітна плата, лікарняні, вагітності, відрядження, компенсації",310133,Київська міська організація,39842314,Київ,Зарплата за жовтень 2019р.,26005056218695,current,900.00,Зубер Світлана Олександрівна,,фізична особа
Самопоміч,"Київ, вулиця Єреванська, 1",70,2019-10-16,TR.1170953_844,Банківські послуги,Інші витрати,309844,Центральний офіс,38558365,Україна,"Плата за розрахункове обслуговування по рахунку № 26008924418040.980 з 2019-09-16 по 2019-09-16 згідно Договору № 2019/КД/291-0048 від 2019-06-18 р, без ПДВ",26008924418040,state,0.80,"АБ ""Укргазбанк""",23697280,юридична особа
Самопоміч,"Київ, вулиця Єреванська, 1",70,2019-10-16,TR.1170953_843,Банківські послуги,Інші витрати,309843,Центральний офіс,38558365,Україна,"Плата за розрахункове обслуговування по рахунку № 26008924418040.980 з 2019-09-16 по 2019-09-16 згідно Договору № 2019/КД/291-0048 від 2019-06-18 р, без ПДВ",26008924418040,state,0.80,"АБ ""Укргазбанк""",23697280,юридична особа
Самопоміч,"Київ, вулиця Єреванська, 1",70,2019-10-16,TR.1170953_842,Банківські послуги,Інші витрати,309842,Центральний офіс,38558365,Україна,"Плата за розрахункове обслуговування по рахунку № 26008924418040.980 з 2019-09-16 по 2019-09-16 згідно Договору № 2019/КД/291-0048 від 2019-06-18 р, без ПДВ",26008924418040,state,0.80,"АБ ""Укргазбанк""",23697280,юридична особа
Самопоміч,"Київ, вулиця Єреванська, 1",70,2019-10-16,TR.1170953_841,Банківські послуги,Інші витрати,309841,Центральний офіс,38558365,Україна,"Плата за розрахункове обслуговування по рахунку № 26008924418040.980 з 2019-09-16 по 2019-09-16 згідно Договору № 2019/КД/291-0048 від 2019-06-18 р, без ПДВ",26008924418040,state,0.80,"АБ ""Укргазбанк""",23697280,юридична особа
Самопоміч,"Київ, вулиця Єреванська, 1",70,2019-10-16,TR.1170953_840,Банківські послуги,Інші витрати,309840,Центральний офіс,38558365,Україна,"Плата за розрахункове обслуговування в після операційний час по рахунку № 26008924418040.980 з 2019-10-16 по 2019-10-16 згідно Договору № 2019/КД/291-0048 від 2019-06-18 р, без ПДВ",26008924418040,state,0.80,"АБ ""Укргазбанк""",23697280,юридична особа
Самопоміч,"Одеська область, Одеса, проспект Небесної Сотні, 47/3",52,2019-10-16,3120,Інша реклама (без класифікації),Реклама (без класифікації),309839,Центральний офіс,38558365,Україна,"Оплата за розміщення реклами, та інше, згідно акту наданих послуг №297 від 2019-10-15 року в т.ч. ПДВ 18823.33 грн.",26008924418040,state,112940.00,ТОВ ʼАЙДІМЕДІАʼ,38770187,юридична особа
Самопоміч,"Львівська область, Львів, вулиця Зелена, 145",57,2019-10-16,3121,Виготовлення брендованої продукції,"Виготовлення брендованої продукції (футболки, кепки, парасольки)",309838,Центральний офіс,38558365,Україна,"Оплата за довідники Львівʼянина, згідно рахунку на оплату № 473 від 16.10.19 р. в т.ч. ПДВ 27730.00 грн.",26008924418040,state,166380.00,ТОВ ʼНео Друкʼ,40547038,юридична особа
Самопоміч,"Київ, вулиця Єреванська, 1",70,2019-10-16,3116,Банківські послуги,Інші витрати,309837,Центральний офіс,38558365,Україна,Банківська комісія за виплату авансу працівників за жовтень 2019 р.,26008924418040,state,350.79,"АБ ""Укргазбанк""",23697280,юридична особа
Самопоміч,"Львівська область, Львів, вулиця Конотопська, 6",63,2019-10-16,3118,Податок на доходи,Податкові платежі,309836,Центральний офіс,38558365,Україна,*;101;38558365; сплата ПДФО із авансу працівників за жовтень 2019 р.;;;11010100,26008924418040,state,15687.53,УДКСУ у Франківському районі м. Львова,37965138,юридична особа
Самопоміч,"Львівська область, Львів, вулиця Стрийська, 35",62,2019-10-16,3119,Сплата ЄСВ,Податкові платежі,309835,Центральний офіс,38558365,Україна,*;101;38558365; сплата єдиного соціального внеску 22% із авансу працівників за жовтень 2019р .,26008924418040,state,19173.65,ГОЛОВНЕ УПРАВЛІННЯ ДФС У ЛЬВІВСЬКІЙ ОБЛАСТІ,43143039,юридична особа
Самопоміч,"Львівська область, Львів, вулиця Конотопська, 6",61,2019-10-16,3115,Військовий збір,Податкові платежі,309834,Центральний офіс,38558365,Україна,*;101;38558365; сплата військового збору із авансу працівників за жовтень 2019 р.;;; 11011000,26008924418040,state,1307.33,УДКСУ у Франківському районі м. Львова,37965138,юридична особа
Самопоміч,"Львівська область, Львів",84,2019-10-16,228,"Заробітна плата, премії","Заробітна плата, лікарняні, вагітності, відрядження, компенсації",309688,Центральний офіс,38558365,Україна,Зарплата,26008924418040,state,5252.62,Кокорузь Марія Михайлівна,,фізична особа
Самопоміч,"Львівська область, Львів",84,2019-10-16,228,"Заробітна плата, премії","Заробітна плата, лікарняні, вагітності, відрядження, компенсації",309687,Центральний офіс,38558365,Україна,Зарплата,26008924418040,state,5755.75,Алєксєєва Наталія Ігорівна,,фізична особа
Самопоміч,Київ,84,2019-10-16,228,"Заробітна плата, премії","Заробітна плата, лікарняні, вагітності, відрядження, компенсації",309686,Центральний офіс,38558365,Україна,Зарплата,26008924418040,state,8512.87,Баланович Станіслав Васильович,,фізична особа
Самопоміч,"Львівська область, Львів",84,2019-10-16,228,"Заробітна плата, премії","Заробітна плата, лікарняні, вагітності, відрядження, компенсації",309685,Центральний офіс,38558365,Україна,Зарплата,26008924418040,state,5011.12,Івасько Лілія Михайлівна,,фізична особа
Самопоміч,"Львівська область, Львів",84,2019-10-16,228,"Заробітна плата, премії","Заробітна плата, лікарняні, вагітності, відрядження, компенсації",309684,Центральний офіс,38558365,Україна,Зарплата,26008924418040,state,2002.44,Васів Наталія Юріївна,,фізична особа
Самопоміч,"Івано-Франківська область, Коломийський район, Коломия",84,2019-10-16,228,"Заробітна плата, премії","Заробітна плата, лікарняні, вагітності, відрядження, компенсації",309683,Центральний офіс,38558365,Україна,Зарплата,26008924418040,state,8251.25,Федюк Любомир Мирославович,,фізична особа
Самопоміч,"Закарпатська область, Мукачево",84,2019-10-16,228,"Заробітна плата, премії","Заробітна плата, лікарняні, вагітності, відрядження, компенсації",309682,Центральний офіс,38558365,Україна,Зарплата,26008924418040,state,7506.62,Ковач Ольга Володимирівна,,фізична особа
Самопоміч,"Львівська область, Львів",84,2019-10-16,228,"Заробітна плата, премії","Заробітна плата, лікарняні, вагітності, відрядження, компенсації",309681,Центральний офіс,38558365,Україна,Зарплата,26008924418040,state,5412.16,Дунаєвська Ольга Євстахіївна,,фізична особа
Самопоміч,"Львівська область, Львів",84,2019-10-16,228,"Заробітна плата, премії","Заробітна плата, лікарняні, вагітності, відрядження, компенсації",309680,Центральний офіс,38558365,Україна,Зарплата,26008924418040,state,5502.17,Склярук Олександр Олександрович,,фізична особа
Самопоміч,"Львівська область, Львів",84,2019-10-16,228,"Заробітна плата, премії","Заробітна плата, лікарняні, вагітності, відрядження, компенсації",309679,Центральний офіс,38558365,Україна,Зарплата,26008924418040,state,682.05,Телішевська Галина Ігорівна,,фізична особа
Самопоміч,"Львівська область, Львів",84,2019-10-16,228,"Заробітна плата, премії","Заробітна плата, лікарняні, вагітності, відрядження, компенсації",309678,Центральний офіс,38558365,Україна,Зарплата,26008924418040,state,3751.30,Довганик Богдан Романович,,фізична особа
Самопоміч,"Львівська область, Львів",84,2019-10-16,228,"Заробітна плата, премії","Заробітна плата, лікарняні, вагітності, відрядження, компенсації",309677,Центральний офіс,38558365,Україна,Зарплата,26008924418040,state,2515.62,Блавацька Ілона Олегівна,,фізична особа
Самопоміч,"Львівська область, Львів",84,2019-10-16,228,"Заробітна плата, премії","Заробітна плата, лікарняні, вагітності, відрядження, компенсації",309676,Центральний офіс,38558365,Україна,Зарплата,26008924418040,state,10002.12,Камінська Ірина Степанівна,,фізична особа
Самопоміч,"Київ, вулиця Єреванська, 1",70,2019-10-15,TR.1170953_839,Банківські послуги,Інші витрати,309833,Центральний офіс,38558365,Україна,"Плата за розрахункове обслуговування по рахунку № 26008924418040.980 з 2019-10-15 по 2019-10-15 згідно Договору № 2019/КД/291-0048 від 2019-06-18 р, без ПДВ",26008924418040,state,0.80,"АБ ""Укргазбанк""",23697280,юридична особа
Самопоміч,"Львівська область, Львів, вулиця Зелена, 145",57,2019-10-15,3114,Виготовлення брендованої продукції,"Виготовлення брендованої продукції (футболки, кепки, парасольки)",309832,Центральний офіс,38558365,Україна,"Оплата за довідники Львівʼянина, згідно рахунку на оплату № 467 від 15.10.19 р. в т.ч. ПДВ 33276.00 грн.",26008924418040,state,199656.00,ТОВ ʼНео Друкʼ,40547038,юридична особа
Самопоміч,"Київ, вулиця Дегтярівська, 53",76,2019-10-11,30,Послуги зв’язку,Послуги зв’язку,310129,Івано-Франківська обласна організація,39927768,Івано-Франківська область,"За послуги звязку о/р № 8203924 згідно рахунку № 1 від 2019-10-11 р., у т.ч. ПДВ - 96,91 грн",26000492575,current,617.81,"ПрАТ ""Київстар""",21673832,юридична особа
Самопоміч,"Київ, вулиця Єреванська, 1",70,2019-10-11,TR.1170953_838,Банківські послуги,Інші витрати,309831,Центральний офіс,38558365,Україна,"Плата за розрахункове обслуговування по рахунку № 26008924418040.980 з 2019-10-11 по 2019-10-11 згідно Договору № 2019/КД/291-0048 від 2019-06-18 р, без ПДВ",26008924418040,state,0.80,"АБ ""Укргазбанк""",23697280,юридична особа
Самопоміч,"Київ, вулиця Єреванська, 1",70,2019-10-11,TR.1170953_837,Банківські послуги,Інші витрати,309830,Центральний офіс,38558365,Україна,"Плата за розрахункове обслуговування по рахунку № 26008924418040.980 з 2019-10-11 по 2019-10-11 згідно Договору № 2019/КД/291-0048 від 2019-06-18 р, без ПДВ",26008924418040,state,0.80,"АБ ""Укргазбанк""",23697280,юридична особа
Самопоміч,"Київ, вулиця Єреванська, 1",70,2019-10-11,TR.1170953_836,Банківські послуги,Інші витрати,309829,Центральний офіс,38558365,Україна,"Плата за розрахункове обслуговування по рахунку № 26008924418040.980 з 2019-10-11 по 2019-10-11 згідно Договору № 2019/КД/291-0048 від 2019-06-18 р, без ПДВ",26008924418040,state,0.80,"АБ ""Укргазбанк""",23697280,юридична особа
Самопоміч,"Київ, вулиця Єреванська, 1",70,2019-10-11,TR.1170953_835,Банківські послуги,Інші витрати,309828,Центральний офіс,38558365,Україна,"Плата за розрахункове обслуговування по рахунку № 26008924418040.980 з 2019-10-11 по 2019-10-11 згідно Договору № 2019/КД/291-0048 від 2019-06-18 р, без ПДВ",26008924418040,state,0.80,"АБ ""Укргазбанк""",23697280,юридична особа
Самопоміч,"Київ, вулиця Єреванська, 1",70,2019-10-11,TR.1170953_834,Банківські послуги,Інші витрати,309827,Центральний офіс,38558365,Україна,"Плата за розрахункове обслуговування по рахунку № 26008924418040.980 з 2019-10-11 по 2019-10-11 згідно Договору № 2019/КД/291-0048 від 2019-06-18 р, без ПДВ",26008924418040,state,0.80,"АБ ""Укргазбанк""",23697280,юридична особа
Самопоміч,"Київ, вулиця Єреванська, 1",70,2019-10-11,TR.1170953_833,Банківські послуги,Інші витрати,309826,Центральний офіс,38558365,Україна,"Плата за розрахункове обслуговування по рахунку № 26008924418040.980 з 2019-10-11 по 2019-10-11 згідно Договору № 2019/КД/291-0048 від 2019-06-18 р, без ПДВ",26008924418040,state,0.80,"АБ ""Укргазбанк""",23697280,юридична особа
Самопоміч,"Київ, вулиця Єреванська, 1",70,2019-10-11,TR.1170953_832,Банківські послуги,Інші витрати,309825,Центральний офіс,38558365,Україна,"Плата за розрахункове обслуговування по рахунку № 26008924418040.980 з 2019-10-11 по 2019-10-11 згідно Договору № 2019/КД/291-0048 від 2019-06-18 р, без ПДВ",26008924418040,state,0.80,"АБ ""Укргазбанк""",23697280,юридична особа
Самопоміч,"Київ, вулиця Єреванська, 1",70,2019-10-11,TR.1170953_831,Банківські послуги,Інші витрати,309824,Центральний офіс,38558365,Україна,"Плата за розрахункове обслуговування по рахунку № 26008924418040.980 з 2019-10-11 по 2019-10-11 згідно Договору № 2019/КД/291-0048 від 2019-06-18 р, без ПДВ",26008924418040,state,0.80,"АБ ""Укргазбанк""",23697280,юридична особа
Самопоміч,"Київ, вулиця Єреванська, 1",70,2019-10-11,TR.1170953_830,Банківські послуги,Інші витрати,309823,Центральний офіс,38558365,Україна,"Плата за розрахункове обслуговування по рахунку № 26008924418040.980 з 2019-10-11 по 2019-10-11 згідно Договору № 2019/КД/291-0048 від 2019-06-18 р, без ПДВ",26008924418040,state,0.80,"АБ ""Укргазбанк""",23697280,юридична особа
Самопоміч,"Київ, вулиця Єреванська, 1",70,2019-10-11,TR.1170953_829,Банківські послуги,Інші витрати,309822,Центральний офіс,38558365,Україна,"Плата за розрахункове обслуговування по рахунку № 26008924418040.980 з 2019-10-11 по 2019-10-11 згідно Договору № 2019/КД/291-0048 від 2019-06-18 р, без ПДВ",26008924418040,state,0.80,"АБ ""Укргазбанк""",23697280,юридична особа
Самопоміч,"Київ, вулиця Єреванська, 1",70,2019-10-11,TR.1170953_828,Банківські послуги,Інші витрати,309821,Центральний офіс,38558365,Україна,"Плата за розрахункове обслуговування по рахунку № 26008924418040.980 з 2019-10-11 по 2019-10-11 згідно Договору № 2019/КД/291-0048 від 2019-06-18 р, без ПДВ",26008924418040,state,0.80,"АБ ""Укргазбанк""",23697280,юридична особа
Самопоміч,"Київ, вулиця Єреванська, 1",70,2019-10-11,TR.1170953_827,Банківські послуги,Інші витрати,309820,Центральний офіс,38558365,Україна,"Плата за розрахункове обслуговування по рахунку № 26008924418040.980 з 2019-10-11 по 2019-10-11 згідно Договору № 2019/КД/291-0048 від 2019-06-18 р, без ПДВ",26008924418040,state,0.80,"АБ ""Укргазбанк""",23697280,юридична особа
Самопоміч,"Київ, вулиця Єреванська, 1",70,2019-10-11,TR.1170953_826,Банківські послуги,Інші витрати,309819,Центральний офіс,38558365,Україна,"Плата за розрахункове обслуговування по рахунку № 26008924418040.980 з 2019-10-11 по 2019-10-11 згідно Договору № 2019/КД/291-0048 від 2019-06-18 р, без ПДВ",26008924418040,state,0.80,"АБ ""Укргазбанк""",23697280,юридична особа
